Workbook

Sheet homepage
A1: 1 | C1: Continuous Rasch model | J1: =ROUND(AVERAGE(var!B1:'var'!G1),2) -> 1 | K1: =MAX(data!B2:G81) -> 80 | O1: Group | R1: Fit指標 | S1: 變異數 | T1: 代碼 | U1: 8 | V1: 能力代碼 | W1: 最大Fit指標 | X1: 指標代碼 | Y1: =SUMSQ(Y2:Y81)/80 -> 1.690658893 | AA1: measure | AB1: SE | AC1: 125 | AE1: 最大最小 | AF1: SE | AG1: 1 | AH1: theta | AI1: SE
I2: 486 | K2: alpha= | N2: 57.14285714 | O2: =MID(person!A2,1,1) -> A | P2: =trust2!A2 -> 1.119952169 | Q2: =trust2!A2 -> 1.119952169 | R2: =var!A2 -> 0.7586785374 | S2: ='var2'!A2 -> 1.104173929 | T2: =person!A2 -> A1 | U2: =LARGE(Q$2:Q2000,1) -> 2.38 | V2: =VLOOKUP(U2,Q$2:T2000,4,FALSE) -> B66 | W2: =LARGE(R$2:R2000,1) -> 5.56 | X2: =VLOOKUP(W2,R$2:T2000,3,FALSE) -> B59 | Y2: 1.28898106 | AA2: -3.6285 | AB2: 6.2994 | AC2: 0.0518 | AE2: =LARGE(homepage!AA2:'homepage'!AA121,1) -> 4.0404 | AF2: =VLOOKUP(AE2,AA2:AB121,2,FALSE) -> 7.6724 | AG2: =VLOOKUP(AE2,AA2:AC121,3,FALSE) -> 1.9656 | AH2: =IF(AE2=AE3,AE2,IF(ABS((AG1-AG2+1)*AH3)+AE2>6,5.818,ABS((AG1-AG2+1)*AH3)+AE2)) -> 4.854731034 | AI2: =IF(AF2=AF3,AF2,ABS((AG1-AG2+2)*AI3)+AF2) -> 89.29488276
J3: 1 | K3: 1 | L3: 1.7 | M3: 1 | O3: =MID(person!A3,1,1) -> A | P3: =trust2!A3 -> 1.365637463 | Q3: =trust2!A3 -> 1.365637463 | R3: =var!A3 -> 0.1451791874 | S3: ='var2'!A3 -> 0.9715690434 | T3: =person!A3 -> A2 | U3: =LARGE(Q$2:Q2001,2) -> 2.21 | V3: =VLOOKUP(U3,Q$2:T2001,4,FALSE) -> B64 | W3: =LARGE(R$2:R2001,2) -> 5.19 | X3: =VLOOKUP(W3,R$2:T2001,3,FALSE) -> B62 | Y3: 1.352438161 | AA3: -2.9087 | AB3: 4.5153 | AC3: 0.1034 | AE3: =LARGE(homepage!AA2:'homepage'!AA121,4) -> 3.6285 | AF3: =VLOOKUP(AE3,AA2:AB121,2,FALSE) -> 6.2994 | AG3: =VLOOKUP(AE3,AA2:AC121,3,FALSE) -> 1.9482 | AH3: =IF(AE2=AE3,AE3,ABS((AE3-AE2)/(AG3-AG2))) -> 23.67241379 | AI3: =IF(AF2=AF3,AE3,ABS((AF3-AF2)/(AG3-AG2))) -> 78.90804598
B4: Step: | O4: =MID(person!A4,1,1) -> A | P4: =trust2!A4 -> 0.7777326866 | Q4: =trust2!A4 -> 0.7777326866 | R4: =var!A4 -> 1.018576802 | S4: ='var2'!A4 -> 1.271971392 | T4: =person!A4 -> A3 | U4: =LARGE(Q$2:Q2002,3) -> 1.84 | V4: =VLOOKUP(U4,Q$2:T2002,4,FALSE) -> B60 | W4: =LARGE(R$2:R2002,3) -> 4.81 | X4: =VLOOKUP(W4,R$2:T2002,3,FALSE) -> B78 | Y4: 1.150895084 | AA4: -2.9087 | AB4: 4.5153 | AC4: 0.1034 | AE4: =SMALL(homepage!AA2:'homepage'!AA121,1) -> -3.6285 | AF4: =VLOOKUP(AE4,AA2:AB121,2,FALSE) -> 6.2994 | AG4: =VLOOKUP(AE4,AA2:AC121,3,FALSE) -> 0.0518 | AH4: =IF(AE4=AE5,AE4,IF(AE4-(0-AG4+1)*AH5<-6,-5.818,AE4-(AG4+1)*AH5)) -> -5.818 | AI4: =IF(AF4=AF5,AF4,AF4+(0-AG4+2)*AI5) -> 73.65954767
B5: 1.Paste data onto Data sheet | O5: =MID(person!A5,1,1) -> A | P5: =trust2!A5 -> 0.4759030667 | Q5: =trust2!A5 -> 0.4759030667 | R5: =var!A5 -> 2.422001792 | S5: ='var2'!A5 -> 1.385340907 | T5: =person!A5 -> A4 | U5: =LARGE(Q$2:Q2003,4) -> 1.58 | V5: =VLOOKUP(U5,Q$2:T2003,4,FALSE) -> B73 | W5: =LARGE(R$2:R2003,4) -> 4.77 | X5: =VLOOKUP(W5,R$2:T2003,3,FALSE) -> B64 | Y5: 1.073889803 | AA5: -2.9087 | AB5: 4.5153 | AC5: 0.1034 | AE5: =SMALL(homepage!AA2:'homepage'!AA121,2) -> -2.9087 | AF5: =VLOOKUP(AE5,AA2:AB121,2,FALSE) -> 4.5153 | AG5: =VLOOKUP(AE5,AA2:AC121,3,FALSE) -> 0.1034 | AH5: =IF(AE4=AE5,AE5,ABS((AE5-AE4)/(AG5-AG4))) -> 13.9496124 | AI5: =IF(AF4=AF5,AF4,ABS((AF4-AF5)/(AG5-AG4))) -> 34.5755814
B6: 2.Click the icon of Run Rasch score | O6: =MID(person!A6,1,1) -> A | P6: =trust2!A6 -> 0.7027159344 | Q6: =trust2!A6 -> 0.7027159344 | R6: =var!A6 -> 1.647444617 | S6: ='var2'!A6 -> 1.303923845 | T6: =person!A6 -> A5 | U6: =LARGE(Q$2:Q2004,5) -> 1.57 | V6: =VLOOKUP(U6,Q$2:T2004,4,FALSE) -> B75 | W6: =LARGE(R$2:R2004,5) -> 4.55 | X6: =VLOOKUP(W6,R$2:T2004,3,FALSE) -> B38 | Y6: 1.12441465 | AA6: -2.6027 | AB6: 3.9464 | AC6: 0.138
B7: 3.Scatter plot to see outlier person | O7: =MID(person!A7,1,1) -> A | P7: =trust2!A7 -> 0.6550799896 | Q7: =trust2!A7 -> 0.6550799896 | R7: =var!A7 -> 0.9637240492 | S7: ='var2'!A7 -> 1.32302189 | T7: =person!A7 -> A6 | U7: =LARGE(Q$2:Q2005,6) -> 1.49 | V7: =VLOOKUP(U7,Q$2:T2005,4,FALSE) -> B56 | W7: =LARGE(R$2:R2005,6) -> 3.15 | X7: =VLOOKUP(W7,R$2:T2005,3,FALSE) -> B37 | Y7: 1.126899799 | AA7: -2.4756 | AB7: 3.738 | AC7: 0.1552
B8: 4.Person item Map to see overall person dispersion | O8: =MID(person!A8,1,1) -> A | P8: =trust2!A8 -> 1.125320093 | Q8: =trust2!A8 -> 1.125320093 | R8: =var!A8 -> 0.8903101377 | S8: ='var2'!A8 -> 1.101338916 | T8: =person!A8 -> A7 | U8: =LARGE(Q$2:Q2006,7) -> 1.45 | V8: =VLOOKUP(U8,Q$2:T2006,4,FALSE) -> B32 | W8: =LARGE(R$2:R2006,7) -> 3.07 | X8: =VLOOKUP(W8,R$2:T2006,3,FALSE) -> B66 | Y8: 1.257901929 | AA8: -2.1595 | AB8: 3.2836 | AC8: 0.2068
B9: 5.According to the selected person on I18, eg G19 at person 138, and click ploi | G9: =MAX(0.059972019726397,2.72564457772421) -> 2.725644578 | H9: =MIN(-0.06,-4.83) -> -4.83 | O9: =MID(person!A9,1,1) -> A | P9: =trust2!A9 -> 0.706399183 | Q9: =trust2!A9 -> 0.706399183 | R9: =var!A9 -> 1.237975902 | S9: ='var2'!A9 -> 1.30240721 | T9: =person!A9 -> A8 | U9: =LARGE(Q$2:Q2007,8) -> 1.43 | V9: =VLOOKUP(U9,Q$2:T2007,4,FALSE) -> B33 | W9: =LARGE(R$2:R2007,8) -> 2.65 | X9: =VLOOKUP(W9,R$2:T2007,3,FALSE) -> A9 | Y9: 1.112152777 | AA9: -1.9859 | AB9: 3.0697 | AC9: 0.2414
B10: 6. See person performance on Kidmap | O10: =MID(person!A10,1,1) -> A | P10: =trust2!A10 -> 0.854535183 | Q10: =trust2!A10 -> 0.854535183 | R10: =var!A10 -> 2.64627627 | S10: ='var2'!A10 -> 1.237124962 | T10: =person!A10 -> A9 | U10: =LARGE(Q$2:Q2008,9) -> 1.41 | V10: =VLOOKUP(U10,Q$2:T2008,4,FALSE) -> B65 | W10: =LARGE(R$2:R2008,9) -> 2.42 | X10: =VLOOKUP(W10,R$2:T2008,3,FALSE) -> A4 | Y10: 1.172341177 | AA10: -1.8326 | AB10: 2.9 | AC10: 0.2758
O11: =MID(person!A11,1,1) -> A | P11: =trust2!A11 -> 1.212448714 | Q11: =trust2!A11 -> 1.212448714 | R11: =var!A11 -> 0.1516840061 | S11: ='var2'!A11 -> 1.054813605 | T11: =person!A11 -> A10 | U11: =LARGE(Q$2:Q2009,10) -> 1.38 | V11: =VLOOKUP(U11,Q$2:T2009,4,FALSE) -> B18 | W11: =LARGE(R$2:R2009,10) -> 2.16 | X11: =VLOOKUP(W11,R$2:T2009,3,FALSE) -> B13 | Y11: 1.301737913 | AA11: -1.8326 | AB11: 2.9 | AC11: 0.2758
O12: =MID(person!A12,1,1) -> A | P12: =trust2!A12 -> 0.5320187049 | Q12: =trust2!A12 -> 0.5320187049 | R12: =var!A12 -> 0.910516246 | S12: ='var2'!A12 -> 1.367552646 | T12: =person!A12 -> A11 | Y12: 1.101513366 | AA12: -1.6946 | AB12: 2.7619 | AC12: 0.3104
O13: =MID(person!A13,1,1) -> A | P13: =trust2!A13 -> 0.9008604826 | Q13: =trust2!A13 -> 0.9008604826 | R13: =var!A13 -> 0.6654156662 | S13: ='var2'!A13 -> 1.215184413 | T13: =person!A13 -> A12 | Y13: 1.166639363 | AA13: -1.6946 | AB13: 2.7619 | AC13: 0.3104
O14: =MID(person!A14,1,1) -> B | P14: =trust2!A14 -> 0.8612287 | Q14: =trust2!A14 -> 0.8612287 | R14: =var!A14 -> 2.156001583 | S14: ='var2'!A14 -> 1.233995266 | T14: =person!A14 -> B13 | Y14: 1.155867108 | AA14: -1.6946 | AB14: 2.7619 | AC14: 0.3104
K15: Delta<>0 | L15: Y | O15: =MID(person!A15,1,1) -> B | P15: =trust2!A15 -> 1.022358793 | Q15: =trust2!A15 -> 1.022358793 | R15: =var!A15 -> 0.05026765136 | S15: ='var2'!A15 -> 1.154885789 | T15: =person!A15 -> B14 | Y15: 1.27349103 | AA15: -1.6946 | AB15: 2.7619 | AC15: 0.3104
E16: F-value | F16: p-value | K16: Iteration | L16: 22 | O16: =MID(person!A16,1,1) -> B | P16: =trust2!A16 -> 0.989435044 | Q16: =trust2!A16 -> 0.989435044 | R16: =var!A16 -> 0.4721772942 | S16: ='var2'!A16 -> 1.1715769 | T16: =person!A16 -> B15 | Y16: 1.272118743 | AA16: -1.6946 | AB16: 2.7619 | AC16: 0.3104
B17: 疊代= 5 /22 | C17: R-square= | D17: =SUM(person!D2:'person'!D81)/SUM(person!C2:'person'!C81) -> 0.65 | E17: =SUM(person!D2:'person'!D81)/SUM(person!B2:'person'!B81) -> 1.85 | F17: =FDIST(1.85090801650215,1,479) -> 0.17 | G17: =MAX(data!B2:'data'!G81) -> 80.00 | H17: =MIN(data!B2:'data'!G81) -> 16.25 | I17: =COUNTIF(var!A2:A500,">2") -> 11 | K17: Minimal | L17: 0.0001 | M17: Reliabiltiy | O17: =MID(person!A17,1,1) -> B | P17: =trust2!A17 -> 0.82362933 | Q17: =trust2!A17 -> 0.82362933 | R17: =var!A17 -> 0.426198145 | S17: ='var2'!A17 -> 1.251388569 | T17: =person!A17 -> B16 | Y17: 1.203274556 | AA17: -1.5686 | AB17: 2.6473 | AC17: 0.3448
B18: 80 | C18: =(trust2!B1-trust2!C1) -> 0.1886114357 | D18: item(1,2)_t | E18: =(trust2!B1-trust2!C1)/SQRT(1/'var2'!B1+1/'var2'!C1) -> 0.48 | F18: =TDIST(0.481641437731685,158,2) -> 0.63 | G18: select record in data | M18: 0.83 | N18: Obs.mean | O18: =MID(person!A18,1,1) -> B | P18: =trust2!A18 -> 1.157725229 | Q18: =trust2!A18 -> 1.157725229 | R18: =var!A18 -> 0.9577278654 | S18: ='var2'!A18 -> 1.084140378 | T18: =person!A18 -> B17 | Y18: 1.345385362 | AA18: -1.5686 | AB18: 2.6473 | AC18: 0.3448
B19: 殘差和= 0<0.05 | E19: Win over rate= | F19: =1-F18 -> 0.37 | G19: =H22+1 -> 60 | M19: 1.00 | N19: Obs.-expect | O19: =MID(person!A19,1,1) -> B | P19: =trust2!A19 -> 1.380422632 | Q19: =trust2!A19 -> 1.380422632 | R19: =var!A19 -> 0.9654019878 | S19: ='var2'!A19 -> 0.9634960138 | T19: =person!A19 -> B18 | Y19: 1.467494855 | AA19: -1.4523 | AB19: 2.5508 | AC19: 0.3794
G20: 81 | I20: Sum residual: | J20: =AVERAGE(var!B2:'var'!G81) -> 0.00 | K20: =SUMSQ(var!B2:'var'!G81)/(480) -> 1.00 | O20: =MID(person!A20,1,1) -> B | P20: =trust2!A20 -> 0.888981045 | Q20: =trust2!A20 -> 0.888981045 | R20: =var!A20 -> 0.3020346959 | S20: ='var2'!A20 -> 1.220871953 | T20: =person!A20 -> B19 | Y20: 1.252196713 | AA20: -1.3437 | AB20: 2.4686 | AC20: 0.4138
G21: =MAX(4.2339596194967,0.150711228868777) -> 4.233959619 | H21: =MIN(-4.5,-0.15) -> -4.5 | I21: Redidual: | J21: =residual!A1 -> 1.00 | O21: =MID(person!A21,1,1) -> B | P21: =trust2!A21 -> 0.9021141338 | Q21: =trust2!A21 -> 0.9021141338 | R21: =var!A21 -> 0.6252900823 | S21: ='var2'!A21 -> 1.214581822 | T21: =person!A21 -> B20 | Y21: 1.247638424 | AA21: -1.2417 | AB21: 2.398 | AC21: 0.4482
D22: =MAX(2.37602333166225,0.470214179150147) -> 2.376023332 | H22: =MATCH(I22,person!A2:A81,0) -> 59 | I22: B59 | O22: =MID(person!A22,1,1) -> B | P22: =trust2!A22 -> 1.324416142 | Q22: =trust2!A22 -> 1.324416142 | R22: =var!A22 -> 1.190777497 | S22: ='var2'!A22 -> 0.9940639295 | T22: =person!A22 -> B21 | Y22: 1.407799171 | AA22: -1.2417 | AB22: 2.398 | AC22: 0.4482
D23: =MIN(-0.06,-0.42) -> -0.42 | O23: =MID(person!A23,1,1) -> B | P23: =trust2!A23 -> 1.13466865 | Q23: =trust2!A23 -> 1.13466865 | R23: =var!A23 -> 0.2980239427 | S23: ='var2'!A23 -> 1.096391796 | T23: =person!A23 -> B22 | Y23: 1.328774246 | AA23: -1.2417 | AB23: 2.398 | AC23: 0.4482
C24: Wright range | D24: 0.2 | O24: =MID(person!A24,1,1) -> B | P24: =trust2!A24 -> 1.185922222 | Q24: =trust2!A24 -> 1.185922222 | R24: =var!A24 -> 0.199186074 | S24: ='var2'!A24 -> 1.069069257 | T24: =person!A24 -> B23 | Y24: 1.357349014 | AA24: -1.1451 | AB24: 2.3369 | AC24: 0.4828
D25: =MAX(trust!A2:'trust'!A81) -> 91.14 | O25: =MID(person!A25,1,1) -> B | P25: =trust2!A25 -> 1.100884764 | Q25: =trust2!A25 -> 1.100884764 | R25: =var!A25 -> 0.5982734908 | S25: ='var2'!A25 -> 1.114209454 | T25: =person!A25 -> B24 | Y25: 1.306066592 | AA25: -1.1451 | AB25: 2.3369 | AC25: 0.4828
D26: =MIN(trust!A2:'trust'!A81) -> 48.56 | O26: =MID(person!A26,1,1) -> B | P26: =trust2!A26 -> 1.011185823 | Q26: =trust2!A26 -> 1.011185823 | R26: =var!A26 -> 0.2837740891 | S26: ='var2'!A26 -> 1.160576453 | T26: =person!A26 -> B25 | Y26: 1.263786478 | AA26: -1.1451 | AB26: 2.3369 | AC26: 0.4828
O27: =MID(person!A27,1,1) -> B | P27: =trust2!A27 -> 0.6509740497 | Q27: =trust2!A27 -> 0.6509740497 | R27: =var!A27 -> 1.67952712 | S27: ='var2'!A27 -> 1.324621917 | T27: =person!A27 -> B26 | Y27: 1.109807072 | AA27: -1.0986 | AB27: 2.3094 | AC27: 0.5
O28: =MID(person!A28,1,1) -> B | P28: =trust2!A28 -> 0.9131639796 | Q28: =trust2!A28 -> 0.9131639796 | R28: =var!A28 -> 0.3722509205 | S28: ='var2'!A28 -> 1.209251234 | T28: =person!A28 -> B27 | Y28: 1.220801937 | AA28: -1.0531 | AB28: 2.2837 | AC28: 0.5172
A29: 10410 | B29: 14 | C29: 4 | D29: =B18 -> 80 | E29: =I17 -> 11 | F29: =E29/D29 -> 0.14 | G29: =MID(B17,5,2) -> 5 | H29: =J21 -> 1.00 | I29: =M18 -> 0.83 | J29: =M19 -> 1.00 | O29: =MID(person!A29,1,1) -> B | P29: =trust2!A29 -> 1.101413172 | Q29: =trust2!A29 -> 1.101413172 | R29: =var!A29 -> 0.3872364399 | S29: ='var2'!A29 -> 1.113932097 | T29: =person!A29 -> B28 | AA29: -1.0531 | AB29: 2.2837 | AC29: 0.5172
O30: =MID(person!A30,1,1) -> B | P30: =trust2!A30 -> 1.264292719 | Q30: =trust2!A30 -> 1.264292719 | R30: =var!A30 -> 1.156821336 | S30: ='var2'!A30 -> 1.026777672 | T30: =person!A30 -> B29 | Y30: 1.388936265 | AA30: -0.9651 | AB30: 2.2374 | AC30: 0.5518
O31: =MID(person!A31,1,1) -> B | P31: =trust2!A31 -> 1.074694465 | Q31: =trust2!A31 -> 1.074694465 | R31: =var!A31 -> 0.457366193 | S31: ='var2'!A31 -> 1.127899334 | T31: =person!A31 -> B30 | Y31: 1.287621348 | AA31: -0.9651 | AB31: 2.2374 | AC31: 0.5518
O32: =MID(person!A32,1,1) -> B | P32: =trust2!A32 -> 0.8106212137 | Q32: =trust2!A32 -> 0.8106212137 | R32: =var!A32 -> 0.1262556847 | S32: ='var2'!A32 -> 1.257296956 | T32: =person!A32 -> B31 | Y32: 1.210605138 | AA32: -0.8804 | AB32: 2.1969 | AC32: 0.5862
O33: =MID(person!A33,1,1) -> B | P33: =trust2!A33 -> 1.447182068 | Q33: =trust2!A33 -> 1.447182068 | R33: =var!A33 -> 0.680324105 | S33: ='var2'!A33 -> 0.9270697079 | T33: =person!A33 -> B32 | Y33: 1.490313121 | AA33: -0.8804 | AB33: 2.1969 | AC33: 0.5862
O34: =MID(person!A34,1,1) -> B | P34: =trust2!A34 -> 1.430912762 | Q34: =trust2!A34 -> 1.430912762 | R34: =var!A34 -> 0.3210396524 | S34: ='var2'!A34 -> 0.9359385399 | T34: =person!A34 -> B33 | Y34: 1.485606531 | AA34: -0.8804 | AB34: 2.1969 | AC34: 0.5862
O35: =MID(person!A35,1,1) -> B | P35: =trust2!A35 -> 1.112362964 | Q35: =trust2!A35 -> 1.112362964 | R35: =var!A35 -> 0.4970467802 | S35: ='var2'!A35 -> 1.108174875 | T35: =person!A35 -> B34 | Y35: 1.305939577 | AA35: -0.7985 | AB35: 2.1615 | AC35: 0.6206
O36: =MID(person!A36,1,1) -> B | P36: =trust2!A36 -> 1.289285131 | Q36: =trust2!A36 -> 1.289285131 | R36: =var!A36 -> 0.5181018287 | S36: ='var2'!A36 -> 1.013198943 | T36: =person!A36 -> B35 | Y36: 1.415014624 | AA36: -0.7191 | AB36: 2.1307 | AC36: 0.6552
O37: =MID(person!A37,1,1) -> B | P37: =trust2!A37 -> 1.009374713 | Q37: =trust2!A37 -> 1.009374713 | R37: =var!A37 -> 0.1125685664 | S37: ='var2'!A37 -> 1.161496392 | T37: =person!A37 -> B36 | Y37: 1.283677141 | AA37: -0.7191 | AB37: 2.1307 | AC37: 0.6552
O38: =MID(person!A38,1,1) -> B | P38: =trust2!A38 -> 0.5431757222 | Q38: =trust2!A38 -> 0.5431757222 | R38: =var!A38 -> 3.154935395 | S38: ='var2'!A38 -> 1.363820326 | T38: =person!A38 -> B37 | Y38: 1.078849461 | AA38: -0.7191 | AB38: 2.1307 | AC38: 0.6552
O39: =MID(person!A39,1,1) -> B | P39: =trust2!A39 -> 0.3861310621 | Q39: =trust2!A39 -> 0.3861310621 | R39: =var!A39 -> 4.549914903 | S39: ='var2'!A39 -> 1.410211478 | T39: =person!A39 -> B38 | Y39: 1.025290141 | AA39: -0.6419 | AB39: 2.1039 | AC39: 0.6896
O40: =MID(person!A40,1,1) -> B | P40: =trust2!A40 -> 0.5629973223 | Q40: =trust2!A40 -> 0.5629973223 | R40: =var!A40 -> 1.534549906 | S40: ='var2'!A40 -> 1.3570342 | T40: =person!A40 -> B39 | Y40: 1.0943839 | AA40: -0.6419 | AB40: 2.1039 | AC40: 0.6896
A41: 雙因子變異數分析：無重複試驗(原始資料) | O41: =MID(person!A41,1,1) -> B | P41: =trust2!A41 -> 1.101494899 | Q41: =trust2!A41 -> 1.101494899 | R41: =var!A41 -> 0.05827640072 | S41: ='var2'!A41 -> 1.113889195 | T41: =person!A41 -> B40 | Y41: 1.325015286 | AA41: -0.6419 | AB41: 2.1039 | AC41: 0.6896
A42: 變源 | B42: SS | C42: 自由度 | D42: MS | E42: F | F42: P-值 | G42: 臨界值 | O42: =MID(person!A42,1,1) -> B | P42: =trust2!A42 -> 1.22410321 | Q42: =trust2!A42 -> 1.22410321 | R42: =var!A42 -> 0.1039767897 | S42: ='var2'!A42 -> 1.048529518 | T42: =person!A42 -> B41 | Y42: 1.357008627 | AA42: -0.5293 | AB42: 2.0704 | AC42: 0.7414
A43: 列 | B43: 22841.01064 | C43: 79 | D43: =B43/C43 -> 289.13 | E43: =D43/D45 -> 5.80 | F43: =FDIST(E43,C43,C45) -> 0.00 | G43: =FINV(0.05,C43,C45) -> 1.31 | O43: =MID(person!A43,1,1) -> B | P43: =trust2!A43 -> 0.7127342155 | Q43: =trust2!A43 -> 0.7127342155 | R43: =var!A43 -> 0.1928058424 | S43: ='var2'!A43 -> 1.299785621 | T43: =person!A43 -> B42 | Y43: 1.140815801 | AA43: -0.5293 | AB43: 2.0704 | AC43: 0.7414
A44: 欄 | B44: 20103.27082 | C44: 5 | D44: =B44/C44 -> 4020.65 | E44: =D44/D45 -> 80.65 | F44: =FDIST(E44,C44,C45) -> 0.00 | G44: =FINV(0.05,C44,C45) -> 2.24 | O44: =MID(person!A44,1,1) -> B | P44: =trust2!A44 -> 0.8006624685 | Q44: =trust2!A44 -> 0.8006624685 | R44: =var!A44 -> 0.08503237011 | S44: ='var2'!A44 -> 1.261780888 | T44: =person!A44 -> B43 | Y44: 1.192963309 | AA44: -0.456 | AB44: 2.0522 | AC44: 0.7758
A45: 錯誤 | B45: 19691.27151 | C45: 395 | D45: =B45/C45 -> 49.85 | O45: =MID(person!A45,1,1) -> B | P45: =trust2!A45 -> 0.8112580124 | Q45: =trust2!A45 -> 0.8112580124 | R45: =var!A45 -> 0.1321187695 | S45: ='var2'!A45 -> 1.257009065 | T45: =person!A45 -> B44 | Y45: 1.196522129 | AA45: -0.384 | AB45: 2.037 | AC45: 0.8104
A46: WMS | C46: =C44+C45 -> 400 | D46: =(C44*D44+C45*D45)/(C44+C45) -> 99.49 | O46: =MID(person!A46,1,1) -> B | P46: =trust2!A46 -> 1.332051702 | Q46: =trust2!A46 -> 1.332051702 | R46: =var!A46 -> 0.5212373832 | S46: ='var2'!A46 -> 0.9898996312 | T46: =person!A46 -> B45 | Y46: 1.407532318 | AA46: -0.3129 | AB46: 2.0245 | AC46: 0.8448
A47: 總和 | B47: 62635.55296 | C47: 479 | O47: =MID(person!A47,1,1) -> B | P47: =trust2!A47 -> 0.8477903324 | Q47: =trust2!A47 -> 0.8477903324 | R47: =var!A47 -> 0.4025959688 | S47: ='var2'!A47 -> 1.240264304 | T47: =person!A47 -> B46 | Y47: 1.215659661 | AA47: -0.3129 | AB47: 2.0245 | AC47: 0.8448
A48: ICC(3,k)= | B48: =IF(ISERROR(ROUND((D43-D45)/D43,2)),"",ROUND((D43-D45)/D43,2)) -> 0.83 | C48: ICC(2,k)= | D48: =ROUND((D43-D45)/(D43+(D44-D45)/(C43+1)),2) -> 0.71 | E48: ICC(1,k)= | F48: =IF(ROUND(D43,7)=0,0,ROUND((D43-D46)/D43,2)) -> 0.66 | G48: Cronbach's alpha | O48: =MID(person!A48,1,1) -> B | P48: =trust2!A48 -> 1.110740205 | Q48: =trust2!A48 -> 1.110740205 | R48: =var!A48 -> 0.3762621401 | S48: ='var2'!A48 -> 1.109029258 | T48: =person!A48 -> B47 | Y48: 1.294504071 | AA48: -0.2426 | AB48: 2.0147 | AC48: 0.8794
A49: ICC(3,1)= | B49: =ROUND((D43-D45)/(D43+C44*D45),2) -> 0.44 | C49: ICC(2,1)= | D49: =ROUND((D43-D45)/(D43+C44*D45+(C44+1)*(D44-D45)/(C43+1)),2) -> 0.29 | E49: ICC(1,1)= | F49: =ROUND((D43-D46)/(D43+2*D46),2) -> 0.39 | G49: =IF(ROUND(D43,7)=0,0,(D43-D45)/D43) -> 0.83 | O49: =MID(person!A49,1,1) -> B | P49: =trust2!A49 -> 1.075026116 | Q49: =trust2!A49 -> 1.075026116 | R49: =var!A49 -> 0.431477044 | S49: ='var2'!A49 -> 1.127726701 | T49: =person!A49 -> B48 | Y49: 1.2826883 | AA49: -0.1728 | AB49: 2.0075 | AC49: 0.9138
O50: =MID(person!A50,1,1) -> B | P50: =trust2!A50 -> 0.9947310822 | Q50: =trust2!A50 -> 0.9947310822 | R50: =var!A50 -> 0.06169395891 | S50: ='var2'!A50 -> 1.168908151 | T50: =person!A50 -> B49 | Y50: 1.294113963 | AA50: -0.1728 | AB50: 2.0075 | AC50: 0.9138
A51: 雙因子變異數分析：無重複試驗(期望值資料) | O51: =MID(person!A51,1,1) -> B | P51: =trust2!A51 -> 1.191940406 | Q51: =trust2!A51 -> 1.191940406 | R51: =var!A51 -> 1.24870562 | S51: ='var2'!A51 -> 1.065841177 | T51: =person!A51 -> B50 | Y51: 1.338233952 | AA51: -0.1035 | AB51: 2.0027 | AC51: 0.9482
A52: 變源 | B52: SS | C52: 自由度 | D52: MS | E52: F | F52: P-值 | G52: 臨界值 | O52: =MID(person!A52,1,1) -> B | P52: =trust2!A52 -> 0.6673939959 | Q52: =trust2!A52 -> 0.6673939959 | R52: =var!A52 -> 0.3299733908 | S52: ='var2'!A52 -> 1.318178685 | T52: =person!A52 -> B51 | Y52: 1.140034421 | AA52: -0.1035 | AB52: 2.0027 | AC52: 0.9482
A53: 列 | B53: 2.284051545 | C53: 79 | D53: =B53/C53 -> 0.03 | E53: =D53/D55 -> 242.46 | F53: =FDIST(E53,C53,C55) -> 0.00 | G53: =FINV(0.05,C53,C55) -> 1.31 | O53: =MID(person!A53,1,1) -> B | P53: =trust2!A53 -> 1.172766137 | Q53: =trust2!A53 -> 1.172766137 | R53: =var!A53 -> 0.6893145161 | S53: ='var2'!A53 -> 1.076112435 | T53: =person!A53 -> B52 | Y53: 1.365147489 | AA53: -0.1035 | AB53: 2.0027 | AC53: 0.9482
A54: 欄 | B54: 2.009416294 | C54: 5 | D54: =B54/C54 -> 0.40 | E54: =IF(ROUND(D55,10)=0,0,D54/D55) -> 3370.30 | F54: =FDIST(E54,C54,C55) -> 0.00 | G54: =FINV(0.05,C54,C55) -> 2.24 | O54: =MID(person!A54,1,1) -> B | P54: =trust2!A54 -> 0.8850091551 | Q54: =trust2!A54 -> 0.8850091551 | R54: =var!A54 -> 0.7890514247 | S54: ='var2'!A54 -> 1.222764373 | T54: =person!A54 -> B53 | Y54: 1.222329928 | AA54: -0.1035 | AB54: 2.0027 | AC54: 0.9482
A55: 錯誤 | B55: 0.04710086316 | C55: 395 | D55: =B55/C55 -> 0.00 | O55: =MID(person!A55,1,1) -> B | P55: =trust2!A55 -> 0.5472073405 | Q55: =trust2!A55 -> 0.5472073405 | R55: =var!A55 -> 0.2833294076 | S55: ='var2'!A55 -> 1.362456069 | T55: =person!A55 -> B54 | Y55: 1.130457884 | AA55: -0.069 | AB55: 2.0012 | AC55: 0.9656
A56: WMS | C56: =C54+C55 -> 400 | D56: =(C54*D54+C55*D55)/(C54+C55) -> 0.01 | O56: =MID(person!A56,1,1) -> B | P56: =trust2!A56 -> 0.7650674991 | Q56: =trust2!A56 -> 0.7650674991 | R56: =var!A56 -> 0.7311199172 | S56: ='var2'!A56 -> 1.277517988 | T56: =person!A56 -> B55 | Y56: 1.152045616 | AA56: -0.069 | AB56: 2.0012 | AC56: 0.9656
A57: 總和 | B57: 4.340568702 | C57: 479 | O57: =MID(person!A57,1,1) -> B | P57: =trust2!A57 -> 1.488378586 | Q57: =trust2!A57 -> 1.488378586 | R57: =var!A57 -> 1.315255926 | S57: ='var2'!A57 -> 0.9046563973 | T57: =person!A57 -> B56 | Y57: 1.439655867 | AA57: -0.069 | AB57: 2.0012 | AC57: 0.9656
A58: ICC(3,k)= | B58: =IF(ISERROR(ROUND((D53-D55)/D53,2)),"",ROUND((D53-D55)/D53,2)) -> 1 | C58: ICC(2,k)= | D58: =ROUND((D53-D55)/(D53+(D54-D55)/(C53+1)),2) -> 0.85 | E58: ICC(1,k)= | F58: =IF(ROUND(D53,7)=0,0,ROUND((D53-D56)/D53,2)) -> 0.82 | G58: Cronbach's alpha | O58: =MID(person!A58,1,1) -> B | P58: =trust2!A58 -> 1.046969696 | Q58: =trust2!A58 -> 1.046969696 | R58: =var!A58 -> 0.02900813645 | S58: ='var2'!A58 -> 1.142260661 | T58: =person!A58 -> B57 | Y58: 1.306677509 | AA58: 0.0345 | AB58: 2.0003 | AC58: 1.0172
A59: ICC(3,1)= | B59: =ROUND((D53-D55)/(D53+C54*D55),2) -> 0.98 | C59: ICC(2,1)= | D59: =ROUND((D53-D55)/(D53+C54*D55+(C54+1)*(D54-D55)/(C53+1)),2) -> 0.48 | E59: ICC(1,1)= | F59: =ROUND((D53-D56)/(D53+2*D56),2) -> 0.61 | G59: =IF(ROUND(D53,7)=0,0,(D53-D55)/D53) -> 1.00 | O59: =MID(person!A59,1,1) -> B | P59: =trust2!A59 -> 1.367465919 | Q59: =trust2!A59 -> 1.367465919 | R59: =var!A59 -> 1.327315697 | S59: ='var2'!A59 -> 0.9705707105 | T59: =person!A59 -> B58 | Y59: 1.47333471 | AA59: 0.0345 | AB59: 2.0003 | AC59: 1.0172
O60: =MID(person!A60,1,1) -> B | P60: =trust2!A60 -> 1.28399671 | Q60: =trust2!A60 -> 1.28399671 | R60: =var!A60 -> 5.559985346 | S60: ='var2'!A60 -> 1.016074962 | T60: =person!A60 -> B59 | Y60: 1.651185641 | AA60: 0.1382 | AB60: 2.0048 | AC60: 1.069
O61: =MID(person!A61,1,1) -> B | P61: =trust2!A61 -> 1.837560852 | Q61: =trust2!A61 -> 1.837560852 | R61: =var!A61 -> 1.050324778 | S61: ='var2'!A61 -> 0.7209800141 | T61: =person!A61 -> B60 | Y61: 1.769154415 | AA61: 0.2076 | AB61: 2.0108 | AC61: 1.1034
O62: =MID(person!A62,1,1) -> B | P62: =trust2!A62 -> 1.361519583 | Q62: =trust2!A62 -> 1.361519583 | R62: =var!A62 -> 0.6691311564 | S62: ='var2'!A62 -> 0.9738173113 | T62: =person!A62 -> B61 | Y62: 1.371533311 | AA62: 0.2076 | AB62: 2.0108 | AC62: 1.1034
O63: =MID(person!A63,1,1) -> B | P63: =trust2!A63 -> -0.06040087073 | Q63: =trust2!A63 -> -0.06040087073 | R63: =var!A63 -> 5.185284137 | S63: ='var2'!A63 -> 1.459508779 | T63: =person!A63 -> B62 | Y63: 1.017631241 | AA63: 0.2426 | AB63: 2.0147 | AC63: 1.1206
O64: =MID(person!A64,1,1) -> B | P64: =trust2!A64 -> 0.808421778 | Q64: =trust2!A64 -> 0.808421778 | R64: =var!A64 -> 0.3483587278 | S64: ='var2'!A64 -> 1.258290221 | T64: =person!A64 -> B63 | Y64: 1.207220389 | AA64: 0.2426 | AB64: 2.0147 | AC64: 1.1206
O65: =MID(person!A65,1,1) -> B | P65: =trust2!A65 -> 2.205953539 | Q65: =trust2!A65 -> 2.205953539 | R65: =var!A65 -> 4.767462049 | S65: ='var2'!A65 -> 0.5493062037 | T65: =person!A65 -> B64 | Y65: 1.982637503 | AA65: 0.2426 | AB65: 2.0147 | AC65: 1.1206
O66: =MID(person!A66,1,1) -> B | P66: =trust2!A66 -> 1.4075825 | Q66: =trust2!A66 -> 1.4075825 | R66: =var!A66 -> 0.2255036201 | S66: ='var2'!A66 -> 0.9486678206 | T66: =person!A66 -> B65 | Y66: 1.459944717 | AA66: 0.3129 | AB66: 2.0245 | AC66: 1.1552
O67: =MID(person!A67,1,1) -> B | P67: =trust2!A67 -> 2.376023332 | Q67: =trust2!A67 -> 2.376023332 | R67: =var!A67 -> 3.072310557 | S67: ='var2'!A67 -> 0.4800435563 | T67: =person!A67 -> B66 | Y67: 2.164172689 | AA67: 0.3483 | AB67: 2.0304 | AC67: 1.1724
O68: =MID(person!A68,1,1) -> B | P68: =trust2!A68 -> 1.219726375 | Q68: =trust2!A68 -> 1.219726375 | R68: =var!A68 -> 0.4741040071 | S68: ='var2'!A68 -> 1.050890887 | T68: =person!A68 -> B67 | Y68: 1.370662213 | AA68: 0.3483 | AB68: 2.0304 | AC68: 1.1724
O69: =MID(person!A69,1,1) -> B | P69: =trust2!A69 -> 1.015243467 | Q69: =trust2!A69 -> 1.015243467 | R69: =var!A69 -> 0.5385185884 | S69: ='var2'!A69 -> 1.158512851 | T69: =person!A69 -> B68 | Y69: 1.348097868 | AA69: 0.384 | AB69: 2.037 | AC69: 1.1896
O70: =MID(person!A70,1,1) -> B | P70: =trust2!A70 -> 0.8645462154 | Q70: =trust2!A70 -> 0.8645462154 | R70: =var!A70 -> 0.2094926331 | S70: ='var2'!A70 -> 1.232438893 | T70: =person!A70 -> B69 | Y70: 1.197118288 | AA70: 0.384 | AB70: 2.037 | AC70: 1.1896
O71: =MID(person!A71,1,1) -> B | P71: =trust2!A71 -> 0.4906215467 | Q71: =trust2!A71 -> 0.4906215467 | R71: =var!A71 -> 0.3797793475 | S71: ='var2'!A71 -> 1.380836853 | T71: =person!A71 -> B70 | Y71: 1.107996928 | AA71: 0.384 | AB71: 2.037 | AC71: 1.1896
O72: =MID(person!A72,1,1) -> B | P72: =trust2!A72 -> 0.946202528 | Q72: =trust2!A72 -> 0.946202528 | R72: =var!A72 -> 0.3583321444 | S72: ='var2'!A72 -> 1.193113671 | T72: =person!A72 -> B71 | Y72: 1.248641072 | AA72: 0.384 | AB72: 2.037 | AC72: 1.1896
O73: =MID(person!A73,1,1) -> B | P73: =trust2!A73 -> 1.146645141 | Q73: =trust2!A73 -> 1.146645141 | R73: =var!A73 -> 0.05173371209 | S73: ='var2'!A73 -> 1.090036561 | T73: =person!A73 -> B72 | Y73: 1.326944667 | AA73: 0.456 | AB73: 2.0522 | AC73: 1.2242
O74: =MID(person!A74,1,1) -> B | P74: =trust2!A74 -> 1.578905088 | Q74: =trust2!A74 -> 1.578905088 | R74: =var!A74 -> 0.8204839262 | S74: ='var2'!A74 -> 0.8557573115 | T74: =person!A74 -> B73 | Y74: 1.501021032 | AA74: 0.5293 | AB74: 2.0704 | AC74: 1.2586
O75: =MID(person!A75,1,1) -> B | P75: =trust2!A75 -> 1.091809471 | Q75: =trust2!A75 -> 1.091809471 | R75: =var!A75 -> 0.01860706926 | S75: ='var2'!A75 -> 1.118966027 | T75: =person!A75 -> B74 | Y75: 1.31532984 | AA75: 0.5293 | AB75: 2.0704 | AC75: 1.2586
O76: =MID(person!A76,1,1) -> B | P76: =trust2!A76 -> 1.574067397 | Q76: =trust2!A76 -> 1.574067397 | R76: =var!A76 -> 2.053198195 | S76: ='var2'!A76 -> 0.8583544741 | T76: =person!A76 -> B75 | Y76: 1.49530832 | AA76: 0.5293 | AB76: 2.0704 | AC76: 1.2586
O77: =MID(person!A77,1,1) -> B | P77: =trust2!A77 -> 1.154819216 | Q77: =trust2!A77 -> 1.154819216 | R77: =var!A77 -> 0.7109232346 | S77: ='var2'!A77 -> 1.085688287 | T77: =person!A77 -> B76 | Y77: 1.30946009 | AA77: 0.5293 | AB77: 2.0704 | AC77: 1.2586
O78: =MID(person!A78,1,1) -> B | P78: =trust2!A78 -> 0.8835289764 | Q78: =trust2!A78 -> 0.8835289764 | R78: =var!A78 -> 0.2296558846 | S78: ='var2'!A78 -> 1.223468413 | T78: =person!A78 -> B77 | Y78: 1.224648409 | AA78: 0.5664 | AB78: 2.0807 | AC78: 1.2758
O79: =MID(person!A79,1,1) -> B | P79: =trust2!A79 -> 0.5583810168 | Q79: =trust2!A79 -> 0.5583810168 | R79: =var!A79 -> 4.805329848 | S79: ='var2'!A79 -> 1.358632219 | T79: =person!A79 -> B78 | Y79: 1.042582299 | AA79: 0.6039 | AB79: 2.0919 | AC79: 1.2932
O80: =MID(person!A80,1,1) -> B | P80: =trust2!A80 -> 0.3904412506 | Q80: =trust2!A80 -> 0.3904412506 | R80: =var!A80 -> 1.175204599 | S80: ='var2'!A80 -> 1.409122393 | T80: =person!A80 -> B79 | Y80: 1.042454227 | AA80: 0.6039 | AB80: 2.0919 | AC80: 1.2932
O81: =MID(person!A81,1,1) -> B | P81: =trust2!A81 -> 1.271043851 | Q81: =trust2!A81 -> 1.271043851 | R81: =var!A81 -> 0.4902026272 | S81: ='var2'!A81 -> 1.023113079 | T81: =person!A81 -> B80 | Y81: 1.356045873 | AA81: 0.7191 | AB81: 2.1307 | AC81: 1.3448
AA82: 0.8391 | AB82: 2.1786 | AC82: 1.3966
AA83: 0.8804 | AB83: 2.1969 | AC83: 1.4138
AA84: 0.9651 | AB84: 2.2374 | AC84: 1.4482
AA85: 1.0531 | AB85: 2.2837 | AC85: 1.4828
AA86: 1.0986 | AB86: 2.3094 | AC86: 1.5
AA87: 1.1451 | AB87: 2.3369 | AC87: 1.5172
AA88: 1.1451 | AB88: 2.3369 | AC88: 1.5172
AA89: 1.1451 | AB89: 2.3369 | AC89: 1.5172
AA90: 1.1451 | AB90: 2.3369 | AC90: 1.5172
AA91: 1.2417 | AB91: 2.398 | AC91: 1.5518
AA92: 1.2417 | AB92: 2.398 | AC92: 1.5518
AA93: 1.3437 | AB93: 2.4686 | AC93: 1.5862
AA94: 1.4523 | AB94: 2.5508 | AC94: 1.6206
AA95: 1.4523 | AB95: 2.5508 | AC95: 1.6206
AA96: 1.4523 | AB96: 2.5508 | AC96: 1.6206
AA97: 1.4523 | AB97: 2.5508 | AC97: 1.6206
AA98: 1.4523 | AB98: 2.5508 | AC98: 1.6206
AA99: 1.5094 | AB99: 2.5971 | AC99: 1.638
A100: 0 | AA100: 1.5686 | AB100: 2.6473 | AC100: 1.6552
B101: =AVERAGE(data!A2:A51) -> 0.5996 | AA101: 1.5686 | AB101: 2.6473 | AC101: 1.6552
B102: =STDEV(data!A2:A51) -> 0.3744871868 | AA102: 1.6946 | AB102: 2.7619 | AC102: 1.6896
B103: =AVERAGE(data!B2:B51) -> 60.85921219 | AA103: 1.6946 | AB103: 2.7619 | AC103: 1.6896
AA104: 1.9071 | AB104: 2.9802 | AC104: 1.7414
B105: =discriminate!B1/discriminate2!B1 ->  | C105: =discriminate!C1/discriminate2!C1 ->  | D105: =discriminate!D1/discriminate2!D1 ->  | E105: =discriminate!E1/discriminate2!E1 ->  | F105: =discriminate!F1/discriminate2!F1 ->  | G105: =discriminate!G1/discriminate2!G1 ->  | H105: =discriminate!H1/discriminate2!H1 ->  | I105: =discriminate!I1/discriminate2!I1 ->  | J105: =discriminate!J1/discriminate2!J1 ->  | K105: =discriminate!K1/discriminate2!K1 ->  | L105: =discriminate!L1/discriminate2!L1 ->  | M105: =discriminate!M1/discriminate2!M1 ->  | N105: =discriminate!N1/discriminate2!N1 ->  | U105: =discriminate!U1/discriminate2!U1 ->  | V105: =discriminate!V1/discriminate2!V1 ->  | W105: =discriminate!W1/discriminate2!W1 ->  | X105: =discriminate!X1/discriminate2!X1 ->  | Y105: =discriminate!Y1/discriminate2!Y1 ->  | Z105: =discriminate!Z1/discriminate2!Z1 ->  | AA105: 1.9071 | AB105: 2.9802 | AC105: 1.7414
AA106: 1.9071 | AB106: 2.9802 | AC106: 1.7414
AA107: 1.9071 | AB107: 2.9802 | AC107: 1.7414
AA108: 2.0698 | AB108: 3.1701 | AC108: 1.7758
AA109: 2.1595 | AB109: 3.2836 | AC109: 1.7932
AA110: 2.3609 | AB110: 3.5629 | AC110: 1.8276
AA111: 2.3609 | AB111: 3.5629 | AC111: 1.8276
AA112: 2.3609 | AB112: 3.5629 | AC112: 1.8276
AA113: 2.6027 | AB113: 3.9464 | AC113: 1.862
AA114: 2.6027 | AB114: 3.9464 | AC114: 1.862
AA115: 2.9087 | AB115: 4.5153 | AC115: 1.8966
AA116: 3.3322 | AB116: 5.4804 | AC116: 1.931
AA117: 3.3322 | AB117: 5.4804 | AC117: 1.931
AA118: 3.6285 | AB118: 6.2994 | AC118: 1.9482
AA119: 4.0404 | AB119: 7.6724 | AC119: 1.9656
AA120: 4.0404 | AB120: 7.6724 | AC120: 1.9656
AA121: 4.0404 | AB121: 7.6724 | AC121: 1.9656

Sheet person
A1: 科別 | B1: TSE | C1: SST | D1: Regress | E1: Fit | F1: theta | U1: =MID([1]data!O1,1,6) ->  | V1: =MID([1]data!P1,1,6) ->  | W1: =MID([1]data!Q1,1,6) ->  | X1: =MID([1]data!R1,1,6) ->  | Y1: MEASURE | Z1: loading | AA1: =CORREL(E2:E54,Z2:Z54) -> 0.01330383571 | AB1: Mean | AC1: Outfit | AD1: Outlier | AE1: Region | AG1: =AVERAGE(E2:E81) -> 1.00 | AH1: RADIANS | AI1: 度 | AJ1: Cos | AK1: Sin | AL1: =AG2 -> 1.235793807 | AM1: F-value | AN1: Prob.
A2: A1 | B2: 0.01960 | C2: 0.02371137449 | D2: 0.00 | E2: =var!A2 -> 0.76 | F2: =trust2!A2 -> 1.12 | H2: =ROUND(PERCENTILE(trust!B2:'trust'!B81,0.05),2) -> 59.22 | I2: =ROUND(PERCENTILE(trust!C2:'trust'!C81,0.05),2) -> 66.84 | J2: =ROUND(PERCENTILE(trust!D2:'trust'!D81,0.05),2) -> 54 | K2: =ROUND(PERCENTILE(trust!E2:'trust'!E81,0.05),2) -> 59.85 | L2: =ROUND(PERCENTILE(trust!F2:'trust'!F81,0.05),2) -> 53.47 | M2: =ROUND(PERCENTILE(trust!G2:'trust'!G81,0.05),2) -> 55.75 | AG2: =STDEV(E2:E81) -> 1.235793807 | AH2: 0 | AI2: 0 | AJ2: =$AL$1*COS(AH2)+$AG$1 -> 2.233710474 | AK2: =$AL$2*SIN(AH2)+AG$3 -> 1.029469843 | AL2: =AG4*2 -> 0.7601754832 | AM2: 0.2095208832 | AN2: =FDIST(0.209520883217093,1,1) -> 0.7267199483
A3: A2 | B3: 0.00310 | C3: 0.04404194787 | D3: 0.04 | E3: =var!A3 -> 0.15 | F3: =trust2!A3 -> 1.37 | H3: =ROUND(AVERAGE(trust!B2:'trust'!B81),2) -> 77.23 | I3: =ROUND(AVERAGE(trust!C2:'trust'!C81),2) -> 80.31 | J3: =ROUND(AVERAGE(trust!D2:'trust'!D81),2) -> 74.75 | K3: =ROUND(AVERAGE(trust!E2:'trust'!E81),2) -> 75.81 | L3: =ROUND(AVERAGE(trust!F2:'trust'!F81),2) -> 63.18 | M3: =ROUND(AVERAGE(trust!G2:'trust'!G81),2) -> 64.43 | Y3: -0.9 | Z3: .946 | AA3: =CORREL(AB2:AB53,AC2:AC53) -> -0.4923135485 | AB3: 72 | AC3: 0.63 | AD3: =1-AC3/(1+AC3) -> 0.61 | AE3: East South Central | AF3: AL | AG3: =AVERAGE(F2:F81) -> 1.03 | AH3: 0.3490658504 | AI3: 20 | AJ3: =$AL$1*COS(AH3)+$AG$1 -> 2.159182988 | AK3: =$AL$2*SIN(AH3)+AG$3 -> 1.289465171 | AM3: 13.20084866 | AN3: =FDIST(13.2008486641098,1,1) -> 0.170984595
A4: A3 | B4: 0.03158 | C4: 0.04292461071 | D4: 0.01 | E4: =var!A4 -> 1.02 | F4: =trust2!A4 -> 0.78 | H4: =ROUND(PERCENTILE(trust!B2:'trust'!B81,0.95),2) -> 90.68 | I4: =ROUND(PERCENTILE(trust!C2:'trust'!C81,0.95),2) -> 92.87 | J4: =ROUND(PERCENTILE(trust!D2:'trust'!D81,0.95),2) -> 90.63 | K4: =ROUND(PERCENTILE(trust!E2:'trust'!E81,0.95),2) -> 89.32 | L4: =ROUND(PERCENTILE(trust!F2:'trust'!F81,0.95),2) -> 75.12 | M4: =ROUND(PERCENTILE(trust!G2:'trust'!G81,0.95),2) -> 73.21 | Y4: -0.94 | Z4: .968 | AB4: 71 | AC4: 0.34 | AD4: 0.75 | AE4: West South Central | AF4: AR | AG4: =STDEV(F2:F81) -> 0.3800877416 | AH4: 0.6981317008 | AI4: 40 | AJ4: 1.944589646 | AK4: 1.518101225 | AM4: 0.3592293145 | AN4: =FDIST(0.359229314515918,1,1) -> 0.6562591404
A5: A4 | B5: 0.08040 | C5: 0.1471405783 | D5: 0.07 | E5: =var!A5 -> 2.42 | F5: =trust2!A5 -> 0.48 | H5: 75.89 | I5: 100.00 | J5: 81.25 | K5: 53.13 | L5: 83.33 | M5: 73.21 | Y5: -0.92 | Z5: .992 | AB5: 69 | AC5: 0.47 | AD5: 0.68 | AE5: Mountain | AF5: AZ | AH5: 1.047197551 | AI5: 60 | AJ5: 1.61581357 | AK5: 1.687801123 | AM5: 0.8300316967 | AN5: =FDIST(0.83003169667652,1,1) -> 0.529606415
A6: A5 | B6: 0.05227 | C6: 0.0596820923 | D6: 0.01 | E6: =var!A6 -> 1.65 | F6: =trust2!A6 -> 0.70 | H6: =ROUND(STDEV(trust!B2:'trust'!B81)/1,2) -> 10.64 | I6: =ROUND(STDEV(trust!C2:'trust'!C81)/1,2) -> 8.69 | J6: =ROUND(STDEV(trust!D2:'trust'!D81)/1,2) -> 12.59 | K6: =ROUND(STDEV(trust!E2:'trust'!E81)/1,2) -> 10.21 | L6: =ROUND(STDEV(trust!F2:'trust'!F81)/1,2) -> 7.76 | M6: =ROUND(STDEV(trust!G2:'trust'!G81)/1,2) -> 5.19 | Y6: -0.94 | Z6: .977 | AB6: 67 | AC6: 1.13 | AD6: 0.47 | AE6: Pacific | AF6: CA | AH6: 1.396263402 | AI6: 80 | AJ6: 1.212510009 | AK6: 1.778096553 | AM6: 0.141851754 | AN6: =FDIST(0.141851754003834,1,1) -> 0.7706890475
A7: A6 | B7: 0.03203 | C7: 0.03932006157 | D7: 0.01 | E7: =var!A7 -> 0.96 | F7: =trust2!A7 -> 0.66 | Y7: -0.96 | Z7: .989 | AB7: 73 | AC7: 0.54 | AD7: 0.65 | AE7: Mountain | AF7: CO | AH7: 1.745329252 | AI7: 100 | AJ7: 0.7833233241 | AK7: 1.778096553 | AM7: 0.2277656441 | AN7: =FDIST(0.227765644053398,1,1) -> 0.7165253774
A8: A7 | B8: 0.02228 | C8: 0.02919746832 | D8: 0.01 | E8: =var!A8 -> 0.89 | F8: =trust2!A8 -> 1.13 | Y8: -0.93 | Z8: .977 | AB8: 68 | AC8: 0.59 | AD8: 0.63 | AE8: New England | AF8: CT | AH8: 2.094395102 | AI8: 120 | AJ8: 0.380019763 | AK8: 1.687801123 | AM8: 0.3103790728 | AN8: =FDIST(0.31037907279343,1,1) -> 0.6764120892
A9: A8 | B9: 0.03958 | C9: 0.04511066604 | D9: 0.01 | E9: =var!A9 -> 1.24 | F9: =trust2!A9 -> 0.71 | H9: =ROUND(STDEV(trust!B2:'trust'!B81)/8.88819441731559,2) -> 1.2 | I9: =ROUND(STDEV(trust!C2:'trust'!C81)/8.88819441731559,2) -> 0.98 | J9: =ROUND(STDEV(trust!D2:'trust'!D81)/8.88819441731559,2) -> 1.42 | K9: =ROUND(STDEV(trust!E2:'trust'!E81)/8.88819441731559,2) -> 1.15 | L9: =ROUND(STDEV(trust!F2:'trust'!F81)/8.88819441731559,2) -> 0.87 | M9: =ROUND(STDEV(trust!G2:'trust'!G81)/8.88819441731559,2) -> 0.58 | Y9: -0.94 | Z9: .972 | AB9: 62 | AC9: 7.76 | AD9: 0.11 | AE9: South Atlantic | AF9: DC | AH9: 2.443460953 | AI9: 140 | AJ9: 0.05124368772 | AK9: 1.518101225 | AM9: 0.1398547542 | AN9: =FDIST(0.139854754170111,1,1) -> 0.7721736775
A10: A9 | B10: 0.08090 | C10: 0.04937364458 | D10: -0.03 | E10: =var!A10 -> 2.65 | F10: =trust2!A10 -> 0.85 | Y10: -0.92 | Z10: .977 | AB10: 68 | AC10: 0.53 | AD10: 0.65 | AE10: South Atlantic | AF10: DE | AH10: 2.792526803 | AI10: 160 | AJ10: -0.1633496549 | AK10: 1.289465171 | AM10: -0.3896774811 | AN10: =FDIST(-0.389677481070176,1,1) -> 
A11: A10 | B11: 0.00364 | C11: 0.04223596856 | D11: 0.04 | E11: =var!A11 -> 0.15 | F11: =trust2!A11 -> 1.21 | J11: =CHIDIST(H8:M11,6) -> 0.0000 | K11: =SUM(trust!B1:G1) -> 435.7100 | W11: =AVERAGE(data!#REF!) ->  | Y11: -0.97 | Z11: .994 | AB11: 67 | AC11: 1.27 | AD11: 0.44 | AE11: South Atlantic | AF11: FL | AH11: 3.141592654 | AI11: 180 | AJ11: -0.2378771407 | AK11: 1.029469843 | AM11: 10.60158211 | AN11: =FDIST(10.6015821132001,1,1) -> 0.1897001355
A12: A11 | B12: 0.03015 | C12: 0.1538610077 | D12: 0.12 | E12: =var!A12 -> 0.91 | F12: =trust2!A12 -> 0.53 | W12: =STDEV(data!#REF!) ->  | Y12: -0.95 | Z12: .973 | AB12: 70 | AC12: 0.23 | AD12: 0.81 | AE12: South Atlantic | AF12: GA | AH12: 3.490658504 | AI12: 200 | AJ12: -0.1633496549 | AK12: 0.7694745156 | AM12: 4.103649944 | AN12: =FDIST(4.10364994394482,1,1) -> 0.2919225007
A13: A12 | B13: 0.01890 | C13: 0.02725327175 | D13: 0.01 | E13: =var!A13 -> 0.67 | F13: =trust2!A13 -> 0.90 | W13: =AVERAGE(data!#REF!) ->  | Y13: -0.93 | Z13: .983 | AB13: 71 | AC13: 0.27 | AD13: 0.79 | AE13: Pacific | AF13: HI | AH13: 3.839724354 | AI13: 220 | AJ13: 0.05124368772 | AK13: 0.5408384615 | AM13: 0.442195906 | AN13: =FDIST(0.442195905989071,1,1) -> 0.6264106991
A14: B13 | B14: 0.06271 | C14: 0.05115435484 | D14: -0.01 | E14: =var!A14 -> 2.16 | F14: =trust2!A14 -> 0.86 | Y14: -0.96 | Z14: .988 | AB14: 74 | AC14: 0.84 | AD14: 0.54 | AE14: West North Central | AF14: IA | AH14: 4.188790205 | AI14: 240 | AJ14: 0.380019763 | AK14: 0.3711385635 | AM14: -0.1842958374 | AN14: =FDIST(-0.184295837392236,1,1) -> 
A15: B14 | B15: 0.00121 | C15: 0.02846301203 | D15: 0.03 | E15: =var!A15 -> 0.05 | F15: =trust2!A15 -> 1.02 | Y15: -0.96 | Z15: .988 | AB15: 73 | AC15: 0.61 | AD15: 0.62 | AE15: Mountain | AF15: ID | AH15: 4.537856055 | AI15: 260 | AJ15: 0.7833233241 | AK15: 0.2808431338 | AM15: 22.43782065 | AN15: =FDIST(22.4378206454864,1,1) -> 0.1324522275
A16: B15 | B16: 0.01351 | C16: 0.06460833461 | D16: 0.05 | E16: =var!A16 -> 0.47 | F16: =trust2!A16 -> 0.99 | Y16: -0.95 | Z16: .998 | AB16: 70 | AC16: 0.02 | AD16: 0.98 | AE16: East North Central | AF16: IL | AH16: 4.886921906 | AI16: 280 | AJ16: 1.212510009 | AK16: 0.2808431338 | AM16: 3.782440757 | AN16: =FDIST(3.78244075679664,1,1) -> 0.3023472709
A17: B16 | B17: 0.01296 | C17: 0.07134753055 | D17: 0.06 | E17: =var!A17 -> 0.43 | F17: =trust2!A17 -> 0.82 | J17: 5.559985346 | Y17: -0.96 | Z17: .994 | AB17: 73 | AC17: 0.47 | AD17: 0.68 | AE17: East North Central | AF17: IN | AH17: 5.235987756 | AI17: 300 | AJ17: 1.61581357 | AK17: 0.3711385635 | AM17: 4.505574141 | AN17: =FDIST(4.50557414083683,1,1) -> 0.2802858466
A18: B17 | B18: 0.02682 | C18: 0.09998887962 | D18: 0.07 | E18: =var!A18 -> 0.96 | F18: =trust2!A18 -> 1.16 | H18: -1.03 | I18: 2.75 | J18: 0.22 | K18: -4.55 | L18: 1.96 | M18: 0.38 | Y18: -0.96 | Z18: .986 | AB18: 74 | AC18: 0.90 | AD18: 0.53 | AE18: West North Central | AF18: KS | AH18: 5.585053606 | AI18: 320 | AJ18: 1.944589646 | AK18: 0.5408384615 | AM18: 2.728622868 | AN18: =FDIST(2.7286228681198,1,1) -> 0.3465542686
A19: B18 | B19: 0.02455 | C19: 0.1077289496 | D19: 0.08 | E19: =var!A19 -> 0.97 | F19: =trust2!A19 -> 1.38 | H19: 82.74 | I19: 86.04 | J19: 80.08 | K19: 81.22 | L19: 67.69 | M19: 69.03 | Y19: -0.96 | Z19: .996 | AB19: 72 | AC19: 0.26 | AD19: 0.79 | AE19: East South Central | AF19: KY | AH19: 5.934119457 | AI19: 340 | AJ19: 2.159182988 | AK19: 0.7694745156 | AM19: 3.388137731 | AN19: =FDIST(3.38813773083035,1,1) -> 0.3168234844
A20: B19 | B20: 0.00808 | C20: 0.04799175184 | D20: 0.04 | E20: =var!A20 -> 0.30 | F20: =trust2!A20 -> 0.89 | H20: -0.23 | I20: -0.42 | J20: -0.09 | K20: -0.15 | L20: 0.47 | M20: 0.41 | Y20: -0.91 | Z20: .949 | AB20: 75 | AC20: 2.44 | AD20: 0.29 | AE20: West South Central | AF20: LA | AH20: 6.283185307 | AI20: 360 | AJ20: 2.233710474 | AK20: 1.029469843 | AM20: 4.942698878 | AN20: =FDIST(4.9426988778296,1,1) -> 0.2690904419
A21: B20 | B21: 0.01822 | C21: 0.07790184928 | D21: 0.06 | E21: =var!A21 -> 0.63 | F21: =trust2!A21 -> 0.90 | G21: =2*(AVERAGE(H5:W5)-G16)/G15 ->  | H21: 1 | I21: 2 | J21: 3 | K21: 4 | L21: 5 | M21: 6 | N21: 7 | O21: 8 | Y21: -0.91 | Z21: .963 | AB21: 69 | AC21: 0.41 | AD21: 0.71 | AE21: New England | AF21: MA | AM21: 3.275844954 | AN21: =FDIST(3.27584495385068,1,1) -> 0.3213443124
A22: B21 | B22: 0.03106 | C22: 0.1148276965 | D22: 0.08 | E22: =var!A22 -> 1.19 | F22: =trust2!A22 -> 1.32 | G22: 0.01 | Y22: -0.97 | Z22: .976 | AB22: 65 | AC22: 2.95 | AD22: 0.25 | AE22: South Atlantic | AF22: MD | AM22: 2.696554297 | AN22: =FDIST(2.69655429695208,1,1) -> 0.3482236954
A23: B22 | B23: 0.00850 | C23: 0.05985202404 | D23: 0.05 | E23: =var!A23 -> 0.30 | F23: =trust2!A23 -> 1.13 | H23: 9.17 | I23: 5.46 | J23: 3.91 | K23: 2.63 | L23: 5.20 | M23: 3.26 | N23: 2.76 | O23: 2.37 | Y23: -0.89 | Z23: .960 | AB23: 75 | AC23: 1.98 | AD23: 0.34 | AE23: New England | AF23: ME | AM23: 6.040784223 | AN23: =FDIST(6.04078422256682,1,1) -> 0.245998062
A24: B23 | B24: 0.00533 | C24: 0.0486476346 | D24: 0.04 | E24: =var!A24 -> 0.20 | F24: =trust2!A24 -> 1.19 | Y24: -0.96 | Z24: .995 | AB24: 71 | AC24: 0.10 | AD24: 0.91 | AE24: East North Central | AF24: MI | AM24: 8.119801086 | AN24: =FDIST(8.1198010857264,1,1) -> 0.2148642567
A25: B24 | B25: 0.01730 | C25: 0.07903207998 | D25: 0.06 | E25: =var!A25 -> 0.60 | F25: =trust2!A25 -> 1.10 | Y25: -0.96 | Z25: .987 | AB25: 74 | AC25: 0.88 | AD25: 0.53 | AE25: West North Central | AF25: MN | AM25: 3.568591593 | AN25: =FDIST(3.56859159310849,1,1) -> 0.3099442129
A26: B25 | B26: 0.00780 | C26: 0.04544734832 | D26: 0.04 | E26: =var!A26 -> 0.28 | F26: =trust2!A26 -> 1.01 | Y26: -0.95 | Z26: .998 | AB26: 71 | AC26: 0.05 | AD26: 0.95 | AE26: West North Central | AF26: MO | AM26: 4.829076505 | AN26: =FDIST(4.82907650515623,1,1) -> 0.2718705342
A27: B26 | B27: 0.05565 | C27: 0.04846024608 | D27: -0.01 | E27: =var!A27 -> 1.68 | F27: =trust2!A27 -> 0.65 | Y27: -0.87 | Z27: .917 | AB27: 73 | AC27: 1.18 | AD27: 0.46 | AE27: East South Central | AF27: MS | AM27: -0.129186055 | AN27: =FDIST(-0.129186054956691,1,1) -> 
A28: B27 | B28: 0.01107 | C28: 0.05292086206 | D28: 0.04 | E28: =var!A28 -> 0.37 | F28: =trust2!A28 -> 0.91 | Y28: -0.95 | Z28: .989 | AB28: 69 | AC28: 0.23 | AD28: 0.81 | AE28: Mountain | AF28: MT | AM28: 3.782165183 | AN28: =FDIST(3.7821651830906,1,1) -> 0.3023567022
A29: B28 | B29: 0.01087 | C29: 0.05609212452 | D29: 0.05 | E29: =var!A29 -> 0.39 | F29: =trust2!A29 -> 1.10 | Y29: -0.96 | Z29: .994 | AB29: 71 | AC29: 0.19 | AD29: 0.84 | AE29: South Atlantic | AF29: NC | AM29: 4.161653034 | AN29: =FDIST(4.16165303364958,1,1) -> 0.2901529816
A30: B29 | B30: 0.02947 | C30: 0.09700180427 | D30: 0.07 | E30: =var!A30 -> 1.16 | F30: =trust2!A30 -> 1.26 | Y30: -0.96 | Z30: .969 | AB30: 72 | AC30: 0.54 | AD30: 0.65 | AE30: West North Central | AF30: ND | AM30: 2.29133945 | AN30: =FDIST(2.29133944979722,1,1) -> 0.371664057
A31: B30 | B31: 0.01106 | C31: 0.04470784387 | D31: 0.03 | E31: =var!A31 -> 0.46 | F31: =trust2!A31 -> 1.07 | Y31: -0.94 | Z31: .981 | AB31: 75 | AC31: 2.05 | AD31: 0.33 | AE31: West North Central | AF31: NE | AM31: 3.042915071 | AN31: =FDIST(3.04291507063409,1,1) -> 0.3313790937
A32: B31 | B32: 0.00368 | C32: 0.0383276804 | D32: 0.03 | E32: =var!A32 -> 0.13 | F32: =trust2!A32 -> 0.81 | Y32: -0.93 | Z32: .981 | AB32: 72 | AC32: 0.37 | AD32: 0.73 | AE32: New England | AF32: NH | AM32: 9.421714229 | AN32: =FDIST(9.42171422852472,1,1) -> 0.2004998455
A33: B32 | B33: 0.01651 | C33: 0.09952618939 | D33: 0.08 | E33: =var!A33 -> 0.68 | F33: =trust2!A33 -> 1.45 | Y33: -0.97 | Z33: .989 | AB33: 66 | AC33: 1.78 | AD33: 0.36 | AE33: Mid-Atlantic | AF33: NJ | AM33: 5.029995569 | AN33: =FDIST(5.02999556929508,1,1) -> 0.267011649
A34: B33 | B34: 0.00769 | C34: 0.07819135584 | D34: 0.07 | E34: =var!A34 -> 0.32 | F34: =trust2!A34 -> 1.43 | Y34: -0.94 | Z34: .977 | AB34: 67 | AC34: 1.16 | AD34: 0.46 | AE34: Mountain | AF34: NM | AM34: 9.167076818 | AN34: =FDIST(9.16707681792312,1,1) -> 0.2030827331
A35: B34 | B35: 0.01429 | C35: 0.06950811638 | D35: 0.06 | E35: =var!A35 -> 0.50 | F35: =trust2!A35 -> 1.11 | Y35: -0.97 | Z35: .989 | AB35: 67 | AC35: 1.40 | AD35: 0.42 | AE35: Mountain | AF35: NV | AM35: 3.863711144 | AN35: =FDIST(3.86371114419802,1,1) -> 0.2996039615
A36: B35 | B36: 0.01389 | C36: 0.08189547977 | D36: 0.07 | E36: =var!A36 -> 0.52 | F36: =trust2!A36 -> 1.29 | Y36: -0.97 | Z36: .986 | AB36: 65 | AC36: 2.26 | AD36: 0.31 | AE36: Mid-Atlantic | AF36: NY | AM36: 4.89605434 | AN36: =FDIST(4.8960543404213,1,1) -> 0.2702213432
A37: B36 | B37: 0.00303 | C37: 0.03473013763 | D37: 0.03 | E37: =var!A37 -> 0.11 | F37: =trust2!A37 -> 1.01 | Y37: -0.93 | Z37: .993 | AB37: 71 | AC37: 0.16 | AD37: 0.86 | AE37: East North Central | AF37: OH | AM37: 10.47535976 | AN37: =FDIST(10.475359757478,1,1) -> 0.1907727854
A38: B37 | B38: 0.10401 | C38: 0.1266394863 | D38: 0.02 | E38: =var!A38 -> 3.15 | F38: =trust2!A38 -> 0.54 | Y38: -0.96 | Z38: .977 | AB38: 72 | AC38: 0.47 | AD38: 0.68 | AE38: West South Central | AF38: OK | AM38: 0.2175545993 | AN38: =FDIST(0.21755459926416,1,1) -> 0.7221595655
A39: B38 | B39: 0.15588 | C39: 0.1826801805 | D39: 0.03 | E39: =var!A39 -> 4.55 | F39: =trust2!A39 -> 0.39 | Y39: -0.93 | Z39: .989 | AB39: 70 | AC39: 0.11 | AD39: 0.90 | AE39: Pacific | AF39: OR | AM39: 0.17193951 | AN39: =FDIST(0.171939509992538,1,1) -> 0.7497596798
A40: B39 | B40: 0.05149 | C40: 0.07503802055 | D40: 0.02 | E40: =var!A40 -> 1.53 | F40: =trust2!A40 -> 0.56 | Y40: -0.93 | Z40: .988 | AB40: 70 | AC40: 0.19 | AD40: 0.84 | AE40: Mid-Atlantic | AF40: PA | AM40: 0.4573892794 | AN40: =FDIST(0.457389279393509,1,1) -> 0.6214365571
A41: B40 | B41: 0.00151 | C41: 0.03135533052 | D41: 0.03 | E41: =var!A41 -> 0.06 | F41: =trust2!A41 -> 1.10 | Y41: -0.94 | Z41: .981 | AB41: 70 | AC41: 0.24 | AD41: 0.80 | AE41: New England | AF41: RI | AM41: 19.76585898 | AN41: =FDIST(19.7658589819433,1,1) -> 0.140849092
A42: B41 | B42: 0.00255 | C42: 0.03337639109 | D42: 0.03 | E42: =var!A42 -> 0.10 | F42: =trust2!A42 -> 1.22 | Y42: -0.96 | Z42: .980 | AB42: 72 | AC42: 0.31 | AD42: 0.76 | AE42: South Atlantic | AF42: SC | AM42: 12.1105828 | AN42: =FDIST(12.1105828042939,1,1) -> 0.1781358286
A43: B42 | B43: 0.00554 | C43: 0.03658633137 | D43: 0.03 | E43: =var!A43 -> 0.19 | F43: =trust2!A43 -> 0.71 | Y43: -0.91 | Z43: .964 | AB43: 75 | AC43: 1.95 | AD43: 0.34 | AE43: West North Central | AF43: SD | AM43: 5.603417056 | AN43: =FDIST(5.6034170557965,1,1) -> 0.2544615814
A44: B43 | B44: 0.00251 | C44: 0.03125837539 | D44: 0.03 | E44: =var!A44 -> 0.09 | F44: =trust2!A44 -> 0.80 | Y44: -0.96 | Z44: .979 | AB44: 71 | AC44: 0.24 | AD44: 0.81 | AE44: East South Central | AF44: TN | AM44: 11.44010189 | AN44: =FDIST(11.4401018881597,1,1) -> 0.1830063455
A45: B44 | B45: 0.00389 | C45: 0.0575918147 | D45: 0.05 | E45: =var!A45 -> 0.13 | F45: =trust2!A45 -> 0.81 | Y45: -0.96 | Z45: .978 | AB45: 73 | AC45: 0.52 | AD45: 0.66 | AE45: West South Central | AF45: TX | AM45: 13.81272987 | AN45: =FDIST(13.8127298697075,1,1) -> 0.1673303579
A46: B45 | B46: 0.01070 | C46: 0.05416910463 | D46: 0.04 | E46: =var!A46 -> 0.52 | F46: =trust2!A46 -> 1.33 | Y46: -0.95 | Z46: .979 | AB46: 73 | AC46: 0.89 | AD46: 0.53 | AE46: Mountain | AF46: UT | AM46: 4.061295169 | AN46: =FDIST(4.06129516889477,1,1) -> 0.2932353696
A47: B46 | B47: 0.01268 | C47: 0.01345590157 | D47: 0.00 | E47: =var!A47 -> 0.40 | F47: =trust2!A47 -> 0.85 | Y47: -0.95 | Z47: .997 | AB47: 69 | AC47: 0.16 | AD47: 0.86 | AE47: South Atlantic | AF47: VA | AM47: 0.06112015634 | AN47: =FDIST(0.0611201563361732,1,1) -> 0.8457055766
A48: B47 | B48: 0.00906 | C48: 0.01170224599 | D48: 0.00 | E48: =var!A48 -> 0.38 | F48: =trust2!A48 -> 1.11 | Y48: -0.88 | Z48: .934 | AB48: 63 | AC48: 6.73 | AD48: 0.13 | AE48: South Atlantic | AF48: VI | AM48: 0.2916853711 | AN48: =FDIST(0.29168537114879,1,1) -> 0.6847494168
A49: B48 | B49: 0.00979 | C49: 0.03038661525 | D49: 0.02 | E49: =var!A49 -> 0.43 | F49: =trust2!A49 -> 1.08 | Y49: -0.93 | Z49: .967 | AB49: 72 | AC49: 0.56 | AD49: 0.64 | AE49: New England | AF49: VT | AM49: 2.105005057 | AN49: =FDIST(2.10500505676926,1,1) -> 0.3841816368
A50: B49 | B50: 0.00156 | C50: 0.02365267768 | D50: 0.02 | E50: =var!A50 -> 0.06 | F50: =trust2!A50 -> 0.99 | Y50: -0.91 | Z50: .973 | AB50: 69 | AC50: 0.41 | AD50: 0.71 | AE50: Pacific | AF50: WA | AM50: 14.13520274 | AN50: =FDIST(14.1352027396535,1,1) -> 0.1654964412
A51: B50 | B51: 0.02911 | C51: 0.07565531526 | D51: 0.05 | E51: =var!A51 -> 1.25 | F51: =trust2!A51 -> 1.19 | Y51: -0.96 | Z51: .992 | AB51: 74 | AC51: 1.07 | AD51: 0.48 | AE51: East North Central | AF51: WI | AM51: 1.598631029 | AN51: =FDIST(1.59863102887147,1,1) -> 0.4260083185
A52: B51 | B52: 0.00963 | C52: 0.05184927007 | D52: 0.04 | E52: =var!A52 -> 0.33 | F52: =trust2!A52 -> 0.67 | Y52: -0.96 | Z52: .985 | AB52: 69 | AC52: 0.35 | AD52: 0.74 | AE52: South Atlantic | AF52: WV | AM52: 4.38673915 | AN52: =FDIST(4.38673915048308,1,1) -> 0.2835800426
A53: B52 | B53: 0.01860 | C53: 0.08037325107 | D53: 0.06 | E53: =var!A53 -> 0.69 | F53: =trust2!A53 -> 1.17 | Y53: -0.91 | Z53: .981 | AB53: 71 | AC53: 0.30 | AD53: 0.77 | AE53: Mountain | AF53: WY | AM53: 3.322263422 | AN53: =FDIST(3.32226342191766,1,1) -> 0.3194520431
A54: B53 | B54: 0.02085 | C54: 0.01847053051 | D54: -0.00 | E54: =var!A54 -> 0.79 | F54: =trust2!A54 -> 0.89 | Y54: -0.95 | Z54: 1.000 | AB54: 71 | AC54: 0.01 | AD54: 0.99 | AE54: US | AF54: US | AM54: -0.114005126 | AN54: =FDIST(-0.114005126036452,1,1) -> 
A55: B54 | B55: 0.00903 | C55: 0.08312749134 | D55: 0.07 | E55: =var!A55 -> 0.28 | F55: =trust2!A55 -> 0.55 | AM55: 8.203750622 | AN55: =FDIST(8.2037506216151,1,1) -> 0.2138433111
A56: B55 | B56: 0.02064 | C56: 0.05039141856 | D56: 0.03 | E56: =var!A56 -> 0.73 | F56: =trust2!A56 -> 0.77 | AM56: 1.441233039 | AN56: =FDIST(1.44123303913756,1,1) -> 0.4421501391
A57: B56 | B57: 0.03102 | C57: 0.127399625 | D57: 0.10 | E57: =var!A57 -> 1.32 | F57: =trust2!A57 -> 1.49 | AM57: 3.106983464 | AN57: =FDIST(3.10698346372253,1,1) -> 0.328524965
A58: B57 | B58: 0.00073 | C58: 0.02417122683 | D58: 0.02 | E58: =var!A58 -> 0.03 | F58: =trust2!A58 -> 1.05 | AM58: 32.09128516 | AN58: =FDIST(32.0912851641201,1,1) -> 0.1112334252
A59: B58 | B59: 0.03566 | C59: 0.1106937022 | D59: 0.08 | E59: =var!A59 -> 1.33 | F59: =trust2!A59 -> 1.37 | AM59: 2.104436402 | AN59: =FDIST(2.1044364020097,1,1) -> 0.3842218232
A60: B59 | B60: 0.12433 | C60: 0.1330174889 | D60: 0.01 | E60: =var!A60 -> 5.56 | F60: =trust2!A60 -> 1.28 | AM60: 0.06988593911 | AN60: =FDIST(0.0698859391135205,1,1) -> 0.8354674326
A61: B60 | B61: 0.02243 | C61: 0.1498510063 | D61: 0.13 | E61: =var!A61 -> 1.05 | F61: =trust2!A61 -> 1.84 | AM61: 5.679885378 | AN61: =FDIST(5.67988537844268,1,1) -> 0.2529185931
A62: B61 | B62: 0.01839 | C62: 0.08017589051 | D62: 0.06 | E62: =var!A62 -> 0.67 | F62: =trust2!A62 -> 1.36 | AM62: 3.359065439 | AN62: =FDIST(3.35906543911906,1,1) -> 0.3179754696
A63: B62 | B63: 0.17963 | C63: 0.4484783413 | D63: 0.27 | E63: =var!A63 -> 5.19 | F63: =trust2!A63 -> -0.06 | AM63: 1.496638108 | AN63: =FDIST(1.49663810829608,1,1) -> 0.4362557154
A64: B63 | B64: 0.01065 | C64: 0.02289518537 | D64: 0.01 | E64: =var!A64 -> 0.35 | F64: =trust2!A64 -> 0.81 | AM64: 1.150140457 | AN64: =FDIST(1.1501404570297,1,1) -> 0.4777548879
A65: B64 | B65: 0.06987 | C65: 0.2882381793 | D65: 0.22 | E65: =var!A65 -> 4.77 | F65: =trust2!A65 -> 2.21 | AM65: 3.125590903 | AN65: =FDIST(3.1255909034635,1,1) -> 0.3277098591
A66: B65 | B66: 0.00592 | C66: 0.05707411419 | D66: 0.05 | E66: =var!A66 -> 0.23 | F66: =trust2!A66 -> 1.41 | AM66: 8.638667606 | AN66: =FDIST(8.63866760631519,1,1) -> 0.2087778482
A67: B66 | B67: 0.04380 | C67: 0.2695897732 | D67: 0.23 | E67: =var!A67 -> 3.07 | F67: =trust2!A67 -> 2.38 | AM67: 5.155254838 | AN67: =FDIST(5.1552548378937,1,1) -> 0.2641115198
A68: B67 | B68: 0.01200 | C68: 0.06417359705 | D68: 0.05 | E68: =var!A68 -> 0.47 | F68: =trust2!A68 -> 1.22 | AM68: 4.349086354 | AN68: =FDIST(4.34908635402076,1,1) -> 0.284648381
A69: B68 | B69: 0.01685 | C69: 0.06309649968 | D69: 0.05 | E69: =var!A69 -> 0.54 | F69: =trust2!A69 -> 1.02 | AM69: 2.744709975 | AN69: =FDIST(2.74470997512274,1,1) -> 0.3457258794
A70: B69 | B70: 0.00600 | C70: 0.04987185469 | D70: 0.04 | E70: =var!A70 -> 0.21 | F70: =trust2!A70 -> 0.86 | AM70: 7.307171781 | AN70: =FDIST(7.30717178097154,1,1) -> 0.2255688266
A71: B70 | B71: 0.01223 | C71: 0.0829128117 | D71: 0.07 | E71: =var!A71 -> 0.38 | F71: =trust2!A71 -> 0.49 | AM71: 5.7800082 | AN71: =FDIST(5.78000820017619,1,1) -> 0.2509401975
A72: B71 | B72: 0.00900 | C72: 0.02299343682 | D72: 0.01 | E72: =var!A72 -> 0.36 | F72: =trust2!A72 -> 0.95 | AM72: 1.553445649 | AN72: =FDIST(1.55344564915339,1,1) -> 0.4304561031
A73: B72 | B73: 0.00124 | C73: 0.02095150928 | D73: 0.02 | E73: =var!A73 -> 0.05 | F73: =trust2!A73 -> 1.15 | AM73: 15.83615605 | AN73: =FDIST(15.8361560494861,1,1) -> 0.156730925
A74: B73 | B74: 0.01815 | C74: 0.1196450221 | D74: 0.10 | E74: =var!A74 -> 0.82 | F74: =trust2!A74 -> 1.58 | AM74: 5.591803022 | AN74: =FDIST(5.59180302236839,1,1) -> 0.2546984161
A75: B74 | B75: 0.00050 | C75: 0.02774092115 | D75: 0.03 | E75: =var!A75 -> 0.02 | F75: =trust2!A75 -> 1.09 | AM75: 54.41340454 | AN75: =FDIST(54.4134045416575,1,1) -> 0.08578032002
A76: B75 | B76: 0.04713 | C76: 0.1630383338 | D76: 0.12 | E76: =var!A76 -> 2.05 | F76: =trust2!A76 -> 1.57 | AM76: 2.459054583 | AN76: =FDIST(2.45905458298862,1,1) -> 0.3613958635
A77: B76 | B77: 0.01926 | C77: 0.07940130925 | D77: 0.06 | E77: =var!A77 -> 0.71 | F77: =trust2!A77 -> 1.15 | AM77: 3.122847492 | AN77: =FDIST(3.12284749196052,1,1) -> 0.3278296513
A78: B77 | B78: 0.00716 | C78: 0.05435448086 | D78: 0.05 | E78: =var!A78 -> 0.23 | F78: =trust2!A78 -> 0.88 | AM78: 6.594148696 | AN78: =FDIST(6.59414869620565,1,1) -> 0.2364115531
A79: B78 | B79: 0.14300 | C79: 0.2333272531 | D79: 0.09 | E79: =var!A79 -> 4.81 | F79: =trust2!A79 -> 0.56 | AM79: 0.6316739063 | AN79: =FDIST(0.631673906282163,1,1) -> 0.5724783845
A80: B79 | B80: 0.04070 | C80: 0.1234782356 | D80: 0.08 | E80: =var!A80 -> 1.18 | F80: =trust2!A80 -> 0.39 | AM80: 2.033506288 | AN80: =FDIST(2.03350628802776,1,1) -> 0.3893369963
A81: B80 | B81: 0.01269 | C81: 0.07701976751 | D81: 0.06 | E81: =var!A81 -> 0.49 | F81: =trust2!A81 -> 1.27 | AM81: 5.070188079 | AN81: =FDIST(5.0701880794555,1,1) -> 0.2660706545
AM82: 30.59044722 | AN82: =FDIST(30.5904472166956,1,1) -> 0.1138729521
AM83: 152.076317 | AN83: =FDIST(152.076316989576,1,1) -> 0.0515110152
AM84: 369.9772017 | AN84: =FDIST(369.97720172385,1,1) -> 0.03306753474
AM85: 588265.9498 | AN85: =FDIST(588265.949841942,1,1) -> 0.0008300285318
AM86: 416.2432294 | AN86: =FDIST(416.243229418331,1,1) -> 0.03117877904
AM87: 197.7570498 | AN87: =FDIST(197.757049847331,1,1) -> 0.04519430384
AM88: 117.7327534 | AN88: =FDIST(117.732753414949,1,1) -> 0.05850680326
AM89: 401.2769382 | AN89: =FDIST(401.27693819096,1,1) -> 0.03175394228
AM90: 1120.196049 | AN90: =FDIST(1120.19604912778,1,1) -> 0.01901533246
AM91: 14968.26785 | AN91: =FDIST(14968.2678532502,1,1) -> 0.005203369641
AM92: 942.8185887 | AN92: =FDIST(942.818588723291,1,1) -> 0.02072586097
AM93: 143326.9526 | AN93: =FDIST(143326.952575982,1,1) -> 0.001681570886
AM94: 805.710076 | AN94: =FDIST(805.710076040757,1,1) -> 0.02241873733
AM95: 202.0961314 | AN95: =FDIST(202.096131355276,1,1) -> 0.04470811275
AM96: 697.2887392 | AN96: =FDIST(697.288739207502,1,1) -> 0.02409718518
AM97: 18841.48715 | AN97: =FDIST(18841.4871477953,1,1) -> 0.004637830268
AM98: 801.5502063 | AN98: =FDIST(801.550206295007,1,1) -> 0.022476788
AM99: 421.5495127 | AN99: =FDIST(421.54951271655,1,1) -> 0.03098223676
AM100: 992.3771812 | AN100: =FDIST(992.377181155593,1,1) -> 0.02020207249
AM101: 4265.787809 | AN101: =FDIST(4265.78780878459,1,1) -> 0.009746452393
AM102: 353.0405083 | AN102: =FDIST(353.04050829722,1,1) -> 0.03384997123
AM103: 2107.42908 | AN103: =FDIST(2107.42907999388,1,1) -> 0.01386548164
AM104: 310.7307857 | AN104: =FDIST(310.730785674182,1,1) -> 0.03607636272
AM105: 1.670409645e+27 | AN105: =FDIST(1.67040964495807E+27,1,1) -> 1.557645513e-14
AM106: 1.670409645e+27 | AN106: =FDIST(1.67040964495807E+27,1,1) -> 1.557645513e-14
AM107: 1.670409645e+27 | AN107: =FDIST(1.67040964495807E+27,1,1) -> 1.557645513e-14
AM108: 1.670409645e+27 | AN108: =FDIST(1.67040964495807E+27,1,1) -> 1.557645513e-14
AM109: 1.855996628e+24 | AN109: =FDIST(1.8559966281485E+24,1,1) -> 4.672954276e-13
AM110: 6.432682709e+22 | AN110: =FDIST(6.43268270873322E+22,1,1) -> 2.510059739e-12
AM111: 8.116294949e+19 | AN111: =FDIST(81162949485955800000,1,1) -> 7.066448732e-11
AM112: 8.116294949e+19 | AN112: =FDIST(81162949485955800000,1,1) -> 7.066448732e-11
AM113: 8.116294949e+19 | AN113: =FDIST(81162949485955800000,1,1) -> 7.066448732e-11
AM114: 1.042128375e+17 | AN114: =FDIST(104212837544658000,1,1) -> 1.972057222e-09
AM115: 1.042128375e+17 | AN115: =FDIST(104212837544658000,1,1) -> 1.972057222e-09
AM116: 1.263281463e+14 | AN116: =FDIST(126328146300939,1,1) -> 5.664088901e-08
AM117: 1.29782959e+11 | AN117: =FDIST(129782959022.679,1,1) -> 1.767141341e-06
AM118: 1.29782959e+11 | AN118: =FDIST(129782959022.679,1,1) -> 1.767141341e-06
AM119: 3722316967 | AN119: =FDIST(3722316966.86638,1,1) -> 1.043454333e-05
AM120: 95874396.96 | AN120: =FDIST(95874396.9605167,1,1) -> 6.50172803e-05
AM121: 95874396.96 | AN121: =FDIST(95874396.9605167,1,1) -> 6.50172803e-05
AM122: 95874396.96 | AN122: =FDIST(95874396.9605167,1,1) -> 6.50172803e-05
AM123: 51675.98758 | AN123: =FDIST(51675.9875782141,1,1) -> 0.002800482925
AM124: 51675.98758 | AN124: =FDIST(51675.9875782141,1,1) -> 0.002800482925
AM125: 51675.98758 | AN125: =FDIST(51675.9875782141,1,1) -> 0.002800482925
AM126: 51675.98758 | AN126: =FDIST(51675.9875782141,1,1) -> 0.002800482925
AM127: 109282.4313 | AN127: =FDIST(109282.431257555,1,1) -> 0.001925766484
AM128: 9001.472249 | AN128: =FDIST(9001.472248958,1,1) -> 0.006709764352

Sheet data
A1: =STDEV(G2:G81) -> 4.148547162 | B1: b | C1: c | D1: e | E1: f | F1: g | G1: h
A2: 0.17 | B2: 57.74725275 | C2: 70.07692308 | D2: 56.92307692 | E2: 59.80769231 | F2: 58.71794872 | G2: 56.26373626
A3: 0.93 | B3: 64.82142857 | C3: 71 | D3: 64.375 | E3: 63.4375 | F3: 59.16666667 | G3: 57.14285714
A4: 0.26 | B4: 56.42857143 | C4: 65 | D4: 52.25 | E4: 48.5 | F4: 48.33333333 | G4: 56.42857143
A5: 0.45 | B5: 46.63265306 | C5: 64.14285714 | D5: 35 | E5: 51.07142857 | F5: 45.47619048 | G5: 52.44897959
A6: 0.12 | B6: 52 | C6: 65.4 | D6: 45.5 | E6: 49.5 | F6: 50.66666667 | G6: 56.14285714
A7: 0.19 | B7: 51.83673469 | C7: 58.50549451 | D7: 49.91758242 | E7: 49.46428571 | F7: 51.13553114 | G7: 53.34379906
A8: 0.24 | B8: 57.16326531 | C8: 71 | D8: 55.89285714 | E8: 61.03571429 | F8: 55.85714286 | G8: 59.06122449
A9: 0.12 | B9: 49.23469388 | C9: 63.07142857 | D9: 50.40178571 | E9: 51.20535714 | F9: 49.4047619 | G9: 56.2755102
A10: -0.64 | B10: 52.32919255 | C10: 67.2173913 | D10: 46.57608696 | E10: 50.16304348 | F10: 60.07246377 | G10: 58.29192547
A11: 0.91 | B11: 67.71428571 | C11: 67.2 | D11: 64.5 | E11: 61 | F11: 52.11111111 | G11: 55
A12: 0.80 | B12: 56.42857143 | C12: 65 | D12: 50 | E12: 50 | F12: 31.66666667 | G12: 47.85714286
A13: 0.31 | B13: 55.54621849 | C13: 67.64705882 | D13: 53.75 | E13: 55.51470588 | F13: 51.56862745 | G13: 55.16806723
A14: -0.23 | B14: 50 | C14: 70.0625 | D14: 49.765625 | E14: 52.34375 | F14: 54.16666667 | G14: 58.97321429
A15: 0.96 | B15: 62.97252747 | C15: 62.73846154 | D15: 61.01923077 | E15: 62.51923077 | F15: 50.34615385 | G15: 51.12087912
A16: 0.79 | B16: 65.41033435 | C16: 61.87234043 | D16: 63.40425532 | E16: 64.36170213 | F16: 46.5248227 | G16: 46.07902736
A17: 0.82 | B17: 61.18012422 | C17: 59.13043478 | D17: 60.76086957 | E17: 62.7173913 | F17: 41.23188406 | G17: 46.55279503
A18: 0.73 | B18: 70.16806723 | C18: 68.52941176 | D18: 66.10294118 | E18: 64.77941176 | F18: 44.01960784 | G18: 49.24369748
A19: 0.77 | B19: 69.69387755 | C19: 70.64285714 | D19: 70.08928571 | E19: 69.73214286 | F19: 51.38888889 | G19: 49.54081633
A20: 0.83 | B20: 64.07008086 | C20: 58.66037736 | D20: 61.03773585 | E20: 60.68396226 | F20: 46.41509434 | G20: 47.16981132
A21: 0.77 | B21: 66.30252101 | C21: 60.05882353 | D21: 61.98529412 | E21: 62.72058824 | F21: 43.62745098 | G21: 44.62184874
A22: 0.73 | B22: 70.25974026 | C22: 69.5 | D22: 69.03409091 | E22: 70.625 | F22: 47.8030303 | G22: 49.48051948
A23: 0.86 | B23: 65.26373626 | C23: 66.56923077 | D23: 64.94230769 | E23: 65.57692308 | F23: 48.97435897 | G23: 49.50549451
A24: 0.89 | B24: 66.52509653 | C24: 65.18918919 | D24: 64.45945946 | E24: 65.74324324 | F24: 49.60960961 | G24: 53.74517375
A25: 0.78 | B25: 66.62561576 | C25: 66.39655172 | D25: 65.19396552 | E25: 65.90517241 | F25: 47.27011494 | G25: 46.45320197
A26: 0.83 | B26: 63.24912892 | C26: 61.56097561 | D26: 63.17073171 | E26: 64.31402439 | F26: 46.34146341 | G26: 51.04529617
A27: -0.15 | B27: 47.41596639 | C27: 56.97058824 | D27: 50.77205882 | E27: 50.66176471 | F27: 48.87254902 | G27: 59.07563025
A28: 0.79 | B28: 64.375 | C28: 60.75 | D28: 62.34375 | E28: 58.59375 | F28: 42.98611111 | G28: 51.33928571
A29: 0.81 | B29: 65.03726708 | C29: 63.6173913 | D29: 64.86956522 | E29: 65.84782609 | F29: 46.24637681 | G29: 52.27329193
A30: 0.70 | B30: 68.21428571 | C30: 64.625 | D30: 69.53125 | E30: 71.40625 | F30: 47.70833333 | G30: 50.35714286
A31: 0.75 | B31: 66.07142857 | C31: 59.95454545 | D31: 63.97727273 | E31: 65.34090909 | F31: 48.78787879 | G31: 51.36363636
A32: 0.90 | B32: 58.91428571 | C32: 58.88 | D32: 57.95 | E32: 59.6 | F32: 44.66666667 | G32: 50.25714286
A33: 0.83 | B33: 68.31168831 | C33: 71.81818182 | D33: 70.11363636 | E33: 70.11363636 | F33: 53.63636364 | G33: 52.14285714
A34: 0.90 | B34: 66.80194805 | C34: 70.59090909 | D34: 68.57954545 | E34: 69.6875 | F34: 54.39393939 | G34: 54.87012987
A35: 0.79 | B35: 65.94430993 | C35: 65.25423729 | D35: 65.76271186 | E35: 65.82627119 | F35: 45.6779661 | G35: 50.39951574
A36: 0.83 | B36: 68.40336134 | C36: 70.11764706 | D36: 66.32352941 | E36: 67.42647059 | F36: 48.33333333 | G36: 53.27731092
A37: 0.91 | B37: 63.39285714 | C37: 62.75 | D37: 63.125 | E37: 60.78125 | F37: 50 | G37: 49.46428571
A38: 0.18 | B38: 47.42857143 | C38: 65.6 | D38: 38.75 | E38: 43.25 | F38: 52 | G38: 55.14285714
A39: 0.15 | B39: 35.71428571 | C39: 51 | D39: 35 | E39: 55 | F39: 49.44444444 | G39: 58.57142857
A40: 0.31 | B40: 48.66071429 | C40: 60.125 | D40: 43.4375 | E40: 48.59375 | F40: 50.83333333 | G40: 52.67857143
A41: 0.95 | B41: 64.86175115 | C41: 64.22580645 | D41: 62.21774194 | E41: 62.82258065 | F41: 52.52688172 | G41: 51.24423963
A42: 0.92 | B42: 65.06912442 | C42: 64.85483871 | D42: 65.06048387 | E42: 64.51612903 | F42: 55.86021505 | G42: 53.14516129
A43: 0.85 | B43: 58.38235294 | C43: 55.73529412 | D43: 55.01838235 | E43: 55.51470588 | F43: 47.30392157 | G43: 48.29831933
A44: 0.92 | B44: 59.88235294 | C44: 59.42352941 | D44: 56.97058824 | E44: 56.22058824 | F44: 49.31372549 | G44: 47.45378151
A45: 0.93 | B45: 62.85714286 | C45: 62.6 | D45: 55.25 | E45: 58.625 | F45: 45.5 | G45: 45.5
A46: 0.80 | B46: 70.35714286 | C46: 62.6 | D46: 66.125 | E46: 67.25 | F46: 52.83333333 | G46: 58.14285714
A47: 0.06 | B47: 58.57142857 | C47: 60.15384615 | D47: 54.03846154 | E47: 55.19230769 | F47: 51.41025641 | G47: 54.61538462
A48: 0.23 | B48: 61.32653061 | C48: 60.28571429 | D48: 63.92857143 | E48: 61.78571429 | F48: 56.19047619 | G48: 55.20408163
A49: 0.68 | B49: 65.42857143 | C49: 58.85 | D49: 64.25 | E49: 62.9375 | F49: 50.41666667 | G49: 53.64285714
A50: 0.93 | B50: 62.64880952 | C50: 62 | D50: 59.84375 | E50: 61.5625 | F50: 51.73611111 | G50: 50.35714286
A51: 0.62 | B51: 69.28571429 | C51: 59 | D51: 68.75 | E51: 68.75 | F51: 50 | G51: 50
A52: 0.81 | B52: 53.75 | C52: 54.5 | D52: 57.5 | E52: 57.96875 | F52: 46.875 | G52: 44.91071429
A53: 0.77 | B53: 70 | C53: 67 | D53: 62.5 | E53: 67.5 | F53: 50 | G53: 47.14285714
A54: -0.13 | B54: 61.78571429 | C54: 53.75 | D54: 55.625 | E54: 61.25 | F54: 50.41666667 | G54: 54.82142857
A55: 0.89 | B55: 58.57142857 | C55: 54 | D55: 51.25 | E55: 51.25 | F55: 46.11111111 | G55: 41.42857143
A56: 0.59 | B56: 58.03571429 | C56: 53 | D56: 62.1875 | E56: 58.4375 | F56: 42.91666667 | G56: 51.07142857
A57: 0.76 | B57: 73.57142857 | C57: 71 | D57: 72.5 | E57: 68.75 | F57: 53.33333333 | G57: 50
A58: 0.97 | B58: 63.07142857 | C58: 64.1 | D58: 61.8125 | E58: 60.125 | F58: 51.83333333 | G58: 52.03571429
A59: 0.68 | B59: 67.92207792 | C59: 71 | D59: 68.40909091 | E59: 70.11363636 | F59: 58.48484848 | G59: 44.15584416
A60: 0.07 | B60: 60.71428571 | C60: 80 | D60: 65 | E60: 42.5 | F60: 66.66666667 | G60: 58.57142857
A61: 0.85 | B61: 72.5 | C61: 73.18181818 | D61: 72.15909091 | E61: 73.01136364 | F61: 67.27272727 | G61: 53.7012987
A62: 0.77 | B62: 68.57142857 | C62: 70 | D62: 67.5 | E62: 66.25 | F62: 59.44444444 | G62: 47.85714286
A63: 0.60 | B63: 41.42857143 | C63: 41 | D63: 16.25 | E63: 42.5 | F63: 48.33333333 | G63: 43.57142857
A64: 0.53 | B64: 60.40816327 | C64: 59.64285714 | D64: 55.35714286 | E64: 52.41071429 | F64: 50.23809524 | G64: 51.98979592
A65: 0.76 | B65: 77.85714286 | C65: 80 | D65: 80 | E65: 80 | F65: 58.33333333 | G65: 54.28571429
A66: 0.90 | B66: 65.77142857 | C66: 69.32 | D66: 68 | E66: 65.75 | F66: 60.46666667 | G66: 53.85714286
A67: 0.84 | B67: 77.1182266 | C67: 78.03448276 | D67: 76.76724138 | E67: 77.80172414 | F67: 72.87356322 | G67: 54.87684729
A68: 0.81 | B68: 68.21428571 | C68: 64.8125 | D68: 64.296875 | E68: 68.984375 | F68: 49.6875 | G68: 52.14285714
A69: 0.73 | B69: 65.40178571 | C69: 65.75 | D69: 60.078125 | E69: 62.890625 | F69: 53.4375 | G69: 42.5
A70: 0.88 | B70: 61.88311688 | C70: 59.95454545 | D70: 58.35227273 | E70: 62.61363636 | F70: 44.39393939 | G70: 48.44155844
A71: 0.85 | B71: 54.14285714 | C71: 51 | D71: 50.625 | E71: 50.625 | F71: 42.72222222 | G71: 47.28571429
A72: 0.61 | B72: 63.31632653 | C72: 57.5 | D72: 60.44642857 | E72: 60.44642857 | F72: 52.61904762 | G72: 49.23469388
A73: 0.94 | B73: 63.01948052 | C73: 64.54545455 | D73: 63.29545455 | E73: 61.93181818 | F73: 53.76262626 | G73: 55.32467532
A74: 0.85 | B74: 71.2755102 | C74: 73.78571429 | D74: 72.5 | E74: 68.75 | F74: 54.16666667 | G74: 55.05102041
A75: 0.98 | B75: 64.03571429 | C75: 65.9 | D75: 60.5 | E75: 61.4375 | F75: 51.25 | G75: 53.91071429
A76: 0.71 | B76: 73.35714286 | C76: 74.1 | D76: 73 | E76: 72.375 | F76: 55.22222222 | G76: 47.14285714
A77: 0.76 | B77: 67.72727273 | C77: 71 | D77: 64.65909091 | E77: 60.56818182 | F77: 44.54545455 | G77: 54.09090909
A78: 0.87 | B78: 62.38095238 | C78: 61.33333333 | D78: 59.58333333 | E78: 61.66666667 | F78: 42.77777778 | G78: 49.76190476
A79: 0.39 | B79: 33.92857143 | C79: 78.5 | D79: 53.75 | E79: 48.125 | F79: 41.66666667 | G79: 47.85714286
A80: 0.67 | B80: 50.71428571 | C80: 53.5 | D80: 45.625 | E80: 41.25 | F80: 43.05555556 | G80: 51.07142857
A81: 0.84 | B81: 69.01785714 | C81: 70.625 | D81: 66.40625 | E81: 64.53125 | F81: 52.08333333 | G81: 49.73214286

Sheet output
A1: 5.56 | BK1: Z-score | BL1: 難度 | BM1: PCA loading | BN1: 鑑別度 | BO1: PTMEAS
C2: <worse Mean= 50 better>
C3: 6 | D3: 8 | E3: 10 | F3: 12 | G3: 14 | H3: 16 | I3: 18 | J3: 20 | K3: 22 | L3: 24 | M3: 26 | N3: 28 | O3: 30 | P3: 32 | Q3: 34 | R3: 36 | S3: 38 | T3: 40 | U3: 42 | V3: 44 | W3: 46 | X3: 48 | Y3: score=50 | Z3: 52 | AA3: 54 | AB3: 56 | AC3: 58 | AD3: 60 | AE3: 62 | AF3: 64 | AG3: 66 | AH3: 68 | AI3: 70 | AJ3: 72 | AK3: 74 | AL3: 76 | AM3: 78 | AN3: 80 | AO3: 82 | AP3: 84 | AQ3: 86 | AR3: 88 | AS3: 90 | AT3: 92 | AU3: 94 | AV3: 96 | AW3: 98 | AX3: 0 | AY3: Z-score
A4: 1 | C4: Teamwork Climate | AL4: ★ | BC4: 42.41071429 | BD4: 70.31512605 | BE4: 85.29220779 | BF4: 75.89 | BK4: -1.034912946 | BL4: 0.01 | BM4: 0.6259 | BN4: 0.47 | BO4: 0.6259 | FO4: ＋ | HN4: ＋ | HP4: ＋
Y5: ∥ | AM5: Δ
A6: 2 | B6: ＋ | C6: Safety Climate | AX6: ★ | AY6: 2.75 | BB6: 0.8643255024 | BC6: 51.25 | BD6: 73.88043478 | BE6: 87.76537433 | BF6: 100.00 | BK6: 2.752783045 | BL6: 0.17 | BM6: 0.6715 | BN6: 0.52 | BO6: 0.6715 | HH6: ＋
Y7: ∥ | AN7: Δ
A8: 3 | C8: Job Satisfaction | AO8: ★ | BB8: 0.7123179275 | BC8: 20.3125 | BD8: 66.8125 | BE8: 82.92509191 | BF8: 81.25 | BK8: 0.2192189985 | BL8: 0.53 | BM8: 0.6262 | BN8: 0.52 | BO8: 0.6262
Y9: ∥ | AK9: Δ
A10: 4 | B10: － | C10: Stress Recognition | AA10: ★ | AY10: -4.55 | BC10: 51.5625 | BD10: 65.15625 | BE10: 84.10661765 | BF10: 53.13 | BK10: -4.548456435 | BL10: -0.01 | BM10: 0.6721 | BN10: 0.51 | BO10: 0.6721
Y11: ∥ | AL11: Δ
A12: 5 | C12: Perception of Management | AP12: ★ | BC12: 39.58333333 | BD12: 57.53060264 | BE12: 67.70833333 | BF12: 83.33 | BK12: 1.957860706 | BL12: -0.37 | BM12: 0.6895 | BN12: 0.45 | BO12: 0.6895
Y13: ∥ | AF13: Δ
A14: 6 | C14: Working Condition | AK14: ★ | BC14: 51.78571429 | BD14: 59.82142857 | BE14: 68.83673469 | BF14: 73.21 | BK14: 0.3759272846 | BL14: -0.1 | BM14: 0.7296 | BN14: 0.54 | BO14: 0.7296
Y15: ∥ | AF15: Δ
Y16: ∥
AM17: ★ | BB17: Overall Score | BC17: 78 | BG17: 51.79 | BH17: 59.82143021 | BI17: 68.83673096 | BJ17: 73.84453583
Y18: ∥ | AJ18: Δ | AM18: 78 | AY18: Outfit= 5.56
F19: Bottom 20% | AB19: ●
F20: Middle 60% | AB20: ∥ | AD20: Δmean
F21: Top 20% | AD21: ★Case

Sheet temp
B1: 1 | C1: 1 | D1: 1 | E1: 1 | F1: 1 | G1: 1 | H1: 1 | I1: 1 | J1: 1 | K1: 1 | L1: 1 | M1: 1 | N1: 1 | O1: 1 | P1: 1 | Q1: 1 | R1: 1 | S1: 1 | T1: 1 | U1: 1 | V1: 1 | W1: 1 | X1: 1 | Y1: 1 | Z1: 1
A2: 75 | B2: =B1/(1+B1) -> 0.5 | C2: =C1/(1+C1) -> 0.5 | D2: =D1/(1+D1) -> 0.5 | N2: 73.21428571 | O2: 73.21428571 | P2: 73.21428571 | Q2: 85.79714203 | R2: 73.21428571 | S2: 73.21428571 | T2: 73.21428571
A3: 79 | B3: 0.8643255024 | C3: 0.8643255024 | D3: 0.8643255024 | E3: 0.8643255024 | F3: 0.8643255024 | G3: 0.8643255024 | H3: 0.4198555295 | I3: 0.7007350284 | J3: 0.8643255024 | K3: 0.8643255024 | Q3: 51.7857132
A4: 68 | B4: 0.7123179275 | C4: 0.7123179275 | D4: 0.7123179275 | E4: 0.7123179275 | F4: 0.7123179275 | G4: 0.7123179275 | H4: 0 | I4: 0.5035631137 | J4: 0.7123179275 | K4: 0.7123179275 | Q4: 59.82143021
A5: 61 | K5: =CORREL(B3:K3,B1:K1) ->  | Q5: 68.83673096 | U5: -3.492157459 | V5: -3.858023167 | W5: -3.182748556 | X5: 18.31388664 | Y5: 15.88403893 | Z5: 20.96597481
A6: 67 | Q6: 73.84453583
A7: 65 | B7: 1.418710335 | C7: 1.392042088 | D7: 1.418710335
A8: 75 | B8: =B7/(1+B7) -> 0.5865565274 | C8: =C7/(1+C7) -> 0.5819471551 | D8: =D7/(1+D7) -> 0.5865565274
A9: 67 | B9: =B7*0.5 -> 0.7093551674 | C9: =C7*0.5 -> 0.6960210439 | D9: =D7*0.5 -> 0.7093551674
A10: 70 | B10: =B9/0.5 -> 1.418710335 | C10: =C9/0.5 -> 1.392042088 | D10: =D9/0.5 -> 1.418710335
A11: 77 | B11: =B1*0.5 -> 0.5 | C11: =C1*0.5 -> 0.5 | D11: =D1*0.5 -> 0.5
A12: 63 | B12: 1.795686934 | C12: 0.8662948797 | D12: 1.143856057 | E12: 1.442456691 | F12: 1.047721417 | G12: 1.189580971 | H12: 0.6495970661 | I12: 0.9750108142 | J12: 1.139309293 | K12: 1.19326298 | L12: 1.080054918
A13: 71 | B13: =B12*0.5 -> 0.8978434672 | C13: =C12*0.5 -> 0.4331474398 | D13: 0.5719280284 | E13: 0.7212283457 | F13: 0.5238607083 | G13: 0.5947904854 | H13: 0.324798533 | I13: 0.4875054071 | J13: 0.5696546463 | K13: 0.5966314898 | L13: 0.5400274592
A14: 70
A15: 73 | B15: =B1*0.5 -> 0.5 | C15: =C1*0.5 -> 0.5 | D15: 0.5 | E15: 0.5 | F15: 0.5 | G15: 0.5 | H15: 0.5 | I15: 0.5 | J15: 0.5 | K15: 0.5 | L15: 0.5
A16: 72
A17: 69
A18: 76
A19: 79
A20: 70
A21: 71
A22: 78
A23: 75
A24: 76
A25: 75
A26: 73
A27: 65
A28: 71
A29: 75
A30: 77
A31: 74
A32: 69
A33: 80
A34: 80
A35: 75
A36: 78
A37: 73
A38: 63
A39: 59
A40: 63
A41: 75
A42: 77
A43: 67
A44: 69
A45: 69
A46: 79
A47: 70
A48: 75
A49: 74
A50: 73
A51: 76
A52: 66
A53: 76
A54: 70
A55: 63
A56: 68
A57: 81
A58: 74
A59: 79
A60: 78
A61: 86
A62: 79
A63: 49
A64: 69
A65: 90
A66: 80
A67: 91
A68: 77
A69: 73
A70: 70
A71: 62
A72: 72
A73: 75
A74: 82
A75: 74
A76: 82
A77: 76
A78: 70
A79: 63
A80: 59
A81: 78
A82: =AVERAGE(temp!A2:A81) -> 72.6625
A83: 67
A84: 67
A85: 68
A86: 69
A87: 69
A88: 69
A89: 70
A90: 71
A91: 71
A92: 72
A93: 73
A94: 74
A95: 75
A96: 76
A97: 76
A98: 78
A99: 78
A100: 79
A101: 79
A102: 80
A103: 81
A104: 82
A105: 83
A106: 84
A107: 85
A108: 85
A109: 86
A110: 86
A111: 87
A112: 88
A113: 89
A114: 90
A115: 91
A116: 92
A117: 93
A118: 94
A119: 94
A120: 95
A121: 95
A122: 95
A123: 96
A124: 97
A125: 98
A126: 99
A127: =AVERAGE(temp!A2:A126) -> 76.0933
A128: 94
A129: =AVERAGE(temp!A2:A128) -> 76.23429764
A130: 64
A131: 36
A132: 42
A133: 26
A134: 74
A135: 37
A136: 44
A137: 49
A138: 84
A139: 68
A140: 63
A141: 73
A142: 54
A143: 62
A144: 45
A145: 25
A146: 73
A147: 38
A148: 23
A149: 61
A150: 67
A151: 51
A152: 57
A153: 35
A154: 70
A155: 57
A156: 69
A157: 13
A158: 61
A159: 74
A160: 19
A161: 51
A162: 74
A163: 71
A164: 52
A165: 49
A166: 78
A167: 48
A168: 38
A169: 67
A170: 50
A171: 72
A172: 57
A173: 75
A174: 52
A175: 30
A176: 22
A177: 14
A178: 56
A179: 51
A180: 47
A181: 54
A182: 54
A183: 71
A184: 50
A185: 25
A186: 28
A187: 53
A188: 60
A189: 25
A190: 35
A191: 58
A192: 42
A193: 45
A194: 41
A195: 40
A196: 25
A197: 65
A198: 51
A199: 72
A200: 49
... 302 more rows

Sheet var2
A1: var | B1: =SUM(B2:B81) -> 13.75792408 | C1: =SUM(C2:C81) -> 12.39676124 | D1: =SUM(D2:D81) -> 14.74170311 | E1: =SUM(E2:E81) -> 14.33226835 | F1: =SUM(F2:F81) -> 18.06926156 | G1: =SUM(G2:G81) -> 17.80927728 | H1: =SUM(H2:H81) -> 0 | I1: 0 | J1: =SUM(J2:J76) -> 0 | K1: 0 | L1: 0 | M1: 0 | N1: 0 | O1: 0 | P1: 0 | Q1: 0 | R1: 0 | S1: 0 | T1: 0 | U1: 0 | V1: 0 | W1: 0 | X1: 0 | Y1: 0 | Z1: 0
A2: =SUM(B2:G2) -> 1.104173929 | B2: =trust2!B2*(1-trust2!B2) -> 0.1635961031 | C2: =trust2!C2*(1-trust2!C2) -> 0.1456071583 | D2: =trust2!D2*(1-trust2!D2) -> 0.1769494837 | E2: =trust2!E2*(1-trust2!E2) -> 0.1713528996 | F2: =trust2!F2*(1-trust2!F2) -> 0.2253662527 | G2: =trust2!G2*(1-trust2!G2) -> 0.2213020311
A3: =SUM(B3:G3) -> 0.9715690434 | B3: =trust2!B3*(1-trust2!B3) -> 0.1402691135 | C3: =trust2!C3*(1-trust2!C3) -> 0.1232014192 | D3: =trust2!D3*(1-trust2!D3) -> 0.1533696547 | E3: =trust2!E3*(1-trust2!E3) -> 0.1478290872 | F3: =trust2!F3*(1-trust2!F3) -> 0.2058966068 | G3: =trust2!G3*(1-trust2!G3) -> 0.2010031619
A4: 1.271971392 | B4: =trust2!B4*(1-trust2!B4) -> 0.1960065885 | C4: =trust2!C4*(1-trust2!C4) -> 0.1783466344 | D4: =trust2!D4*(1-trust2!D4) -> 0.2082779764 | E4: =trust2!E4*(1-trust2!E4) -> 0.2032286935 | F4: =trust2!F4*(1-trust2!F4) -> 0.2441814468 | G4: =trust2!G4*(1-trust2!G4) -> 0.2419300527
A5: 1.385340907 | B5: =trust2!B5*(1-trust2!B5) -> 0.2213522259 | C5: =trust2!C5*(1-trust2!C5) -> 0.2060683857 | D5: =trust2!D5*(1-trust2!D5) -> 0.2310106742 | E5: =trust2!E5*(1-trust2!E5) -> 0.2271474634 | F5: =trust2!F5*(1-trust2!F5) -> 0.2499979773 | G5: =trust2!G5*(1-trust2!G5) -> 0.2497641807
A6: 1.303923845 | B6: =trust2!B6*(1-trust2!B6) -> 0.2027340518 | C6: =trust2!C6*(1-trust2!C6) -> 0.1854662978 | D6: =trust2!D6*(1-trust2!D6) -> 0.2145055244 | E6: =trust2!E6*(1-trust2!E6) -> 0.2096885329 | F6: =trust2!F6*(1-trust2!F6) -> 0.2466516411 | G6: =trust2!G6*(1-trust2!G6) -> 0.2448777971
A7: 1.32302189 | B7: =trust2!B7*(1-trust2!B7) -> 0.2068811844 | C7: =trust2!C7*(1-trust2!C7) -> 0.1899291901 | D7: =trust2!D7*(1-trust2!D7) -> 0.2182835832 | E7: =trust2!E7*(1-trust2!E7) -> 0.2136358308 | F7: =trust2!F7*(1-trust2!F7) -> 0.2478761471 | G7: =trust2!G7*(1-trust2!G7) -> 0.2464159547
A8: 1.101338916 | B8: =trust2!B8*(1-trust2!B8) -> 0.1630798801 | C8: =trust2!C8*(1-trust2!C8) -> 0.1451023519 | D8: =trust2!D8*(1-trust2!D8) -> 0.1764358803 | E8: =trust2!E8*(1-trust2!E8) -> 0.1708369286 | F8: =trust2!F8*(1-trust2!F8) -> 0.2249853687 | G8: =trust2!G8*(1-trust2!G8) -> 0.2208985064
A9: 1.30240721 | B9: =trust2!B9*(1-trust2!B9) -> 0.2024090705 | C9: =trust2!C9*(1-trust2!C9) -> 0.185119085 | D9: =trust2!D9*(1-trust2!D9) -> 0.2142074071 | E9: =trust2!E9*(1-trust2!E9) -> 0.2093780324 | F9: =trust2!F9*(1-trust2!F9) -> 0.2465457003 | G9: =trust2!G9*(1-trust2!G9) -> 0.2447479145
A10: 1.237124962 | B10: =trust2!B10*(1-trust2!B10) -> 0.1889180942 | C10: =trust2!C10*(1-trust2!C10) -> 0.1709847348 | D10: =trust2!D10*(1-trust2!D10) -> 0.2015994371 | E10: =trust2!E10*(1-trust2!E10) -> 0.1963555193 | F10: =trust2!F10*(1-trust2!F10) -> 0.2409911708 | G10: =trust2!G10*(1-trust2!G10) -> 0.2382760055
A11: 1.054813605 | B11: =trust2!B11*(1-trust2!B11) -> 0.1547248556 | C11: =trust2!C11*(1-trust2!C11) -> 0.1369916799 | D11: =trust2!D11*(1-trust2!D11) -> 0.1680692326 | E11: =trust2!E11*(1-trust2!E11) -> 0.1624556243 | F11: =trust2!F11*(1-trust2!F11) -> 0.2184993254 | G11: =trust2!G11*(1-trust2!G11) -> 0.214072887
A12: 1.367552646 | B12: =trust2!B12*(1-trust2!B12) -> 0.2170367688 | C12: =trust2!C12*(1-trust2!C12) -> 0.2011479645 | D12: =trust2!D12*(1-trust2!D12) -> 0.227300886 | E12: =trust2!E12*(1-trust2!E12) -> 0.2231674069 | F12: =trust2!F12*(1-trust2!F12) -> 0.2497614144 | G12: =trust2!G12*(1-trust2!G12) -> 0.2491382049
A13: 1.215184413 | B13: =trust2!B13*(1-trust2!B13) -> 0.1845670605 | C13: =trust2!C13*(1-trust2!C13) -> 0.1665285501 | D13: =trust2!D13*(1-trust2!D13) -> 0.1974469241 | E13: =trust2!E13*(1-trust2!E13) -> 0.192106416 | F13: =trust2!F13*(1-trust2!F13) -> 0.2387580655 | G13: =trust2!G13*(1-trust2!G13) -> 0.2357773963
A14: 1.233995266 | B14: =trust2!B14*(1-trust2!B14) -> 0.1882924859 | C14: =trust2!C14*(1-trust2!C14) -> 0.1703412166 | D14: =trust2!D14*(1-trust2!D14) -> 0.2010047533 | E14: =trust2!E14*(1-trust2!E14) -> 0.1957459204 | F14: =trust2!F14*(1-trust2!F14) -> 0.2406825574 | G14: =trust2!G14*(1-trust2!G14) -> 0.2379283327
A15: 1.154885789 | B15: =trust2!B15*(1-trust2!B15) -> 0.1729818849 | C15: =trust2!C15*(1-trust2!C15) -> 0.1548660878 | D15: =trust2!D15*(1-trust2!D15) -> 0.1862154248 | E15: =trust2!E15*(1-trust2!E15) -> 0.1806934136 | F15: =trust2!F15*(1-trust2!F15) -> 0.2318739514 | G15: =trust2!G15*(1-trust2!G15) -> 0.2282550259
A16: 1.1715769 | B16: =trust2!B16*(1-trust2!B16) -> 0.1761387994 | C16: =trust2!C16*(1-trust2!C16) -> 0.1580168459 | D16: =trust2!D16*(1-trust2!D16) -> 0.1892996896 | E16: =trust2!E16*(1-trust2!E16) -> 0.1838168457 | F16: =trust2!F16*(1-trust2!F16) -> 0.2338797465 | G16: =trust2!G16*(1-trust2!G16) -> 0.230424973
A17: 1.251388569 | B17: =trust2!B17*(1-trust2!B17) -> 0.1917914919 | C17: =trust2!C17*(1-trust2!C17) -> 0.1739529871 | D17: =trust2!D17*(1-trust2!D17) -> 0.2043201173 | E17: =trust2!E17*(1-trust2!E17) -> 0.1991493062 | F17: =trust2!F17*(1-trust2!F17) -> 0.2423532848 | G17: =trust2!G17*(1-trust2!G17) -> 0.2398213821
A18: 1.084140378 | B18: =trust2!B18*(1-trust2!B18) -> 0.1599661896 | C18: =trust2!C18*(1-trust2!C18) -> 0.1420668003 | D18: =trust2!D18*(1-trust2!D18) -> 0.1733296094 | E18: =trust2!E18*(1-trust2!E18) -> 0.1677200447 | F18: =trust2!F18*(1-trust2!F18) -> 0.2226385332 | G18: =trust2!G18*(1-trust2!G18) -> 0.2184192013
A19: 0.9634960138 | B19: =trust2!B19*(1-trust2!B19) -> 0.1388975883 | C19: =trust2!C19*(1-trust2!C19) -> 0.121907687 | D19: =trust2!D19*(1-trust2!D19) -> 0.1519612514 | E19: =trust2!E19*(1-trust2!E19) -> 0.1464336842 | F19: =trust2!F19*(1-trust2!F19) -> 0.2046127582 | G19: =trust2!G19*(1-trust2!G19) -> 0.1996830447
A20: 1.220871953 | B20: =trust2!B20*(1-trust2!B20) -> 0.1856873337 | C20: =trust2!C20*(1-trust2!C20) -> 0.1676716312 | D20: =trust2!D20*(1-trust2!D20) -> 0.1985197296 | E20: =trust2!E20*(1-trust2!E20) -> 0.1932025171 | F20: =trust2!F20*(1-trust2!F20) -> 0.239352209 | G20: =trust2!G20*(1-trust2!G20) -> 0.2364385323
A21: 1.214581822 | B21: =trust2!B21*(1-trust2!B21) -> 0.1844486702 | C21: =trust2!C21*(1-trust2!C21) -> 0.1664079178 | D21: =trust2!D21*(1-trust2!D21) -> 0.1973334059 | E21: =trust2!E21*(1-trust2!E21) -> 0.1919904983 | F21: =trust2!F21*(1-trust2!F21) -> 0.2386945119 | G21: =trust2!G21*(1-trust2!G21) -> 0.235706818
A22: 0.9940639295 | B22: =trust2!B22*(1-trust2!B22) -> 0.1441179355 | C22: =trust2!C22*(1-trust2!C22) -> 0.1268450163 | D22: =trust2!D22*(1-trust2!D22) -> 0.1573096035 | E22: =trust2!E22*(1-trust2!E22) -> 0.1517380241 | F22: =trust2!F22*(1-trust2!F22) -> 0.2094187611 | G22: =trust2!G22*(1-trust2!G22) -> 0.2046345889
A23: 1.096391796 | B23: =trust2!B23*(1-trust2!B23) -> 0.1621810967 | C23: =trust2!C23*(1-trust2!C23) -> 0.1442244994 | D23: =trust2!D23*(1-trust2!D23) -> 0.1755407077 | E23: =trust2!E23*(1-trust2!E23) -> 0.1699380494 | F23: =trust2!F23*(1-trust2!F23) -> 0.2243166322 | G23: =trust2!G23*(1-trust2!G23) -> 0.220190811
A24: 1.069069257 | B24: =trust2!B24*(1-trust2!B24) -> 0.1572622253 | C24: =trust2!C24*(1-trust2!C24) -> 0.1394432757 | D24: =trust2!D24*(1-trust2!D24) -> 0.1706206685 | E24: =trust2!E24*(1-trust2!E24) -> 0.1650068908 | F24: =trust2!F24*(1-trust2!F24) -> 0.2205324325 | G24: =trust2!G24*(1-trust2!G24) -> 0.216203764
A25: 1.114209454 | B25: =trust2!B25*(1-trust2!B25) -> 0.1654303824 | C25: =trust2!C25*(1-trust2!C25) -> 0.1474044921 | D25: =trust2!D25*(1-trust2!D25) -> 0.1787711968 | E25: =trust2!E25*(1-trust2!E25) -> 0.1731844499 | F25: =trust2!F25*(1-trust2!F25) -> 0.2267005725 | G25: =trust2!G25*(1-trust2!G25) -> 0.2227183598
A26: 1.160576453 | B26: =trust2!B26*(1-trust2!B26) -> 0.1740541948 | C26: =trust2!C26*(1-trust2!C26) -> 0.1559341419 | D26: =trust2!D26*(1-trust2!D26) -> 0.1872649605 | E26: =trust2!E26*(1-trust2!E26) -> 0.1817554262 | F26: =trust2!F26*(1-trust2!F26) -> 0.2325658562 | G26: =trust2!G26*(1-trust2!G26) -> 0.2290018736
A27: 1.324621917 | B27: =trust2!B27*(1-trust2!B27) -> 0.2072335365 | C27: =trust2!C27*(1-trust2!C27) -> 0.1903112316 | D27: =trust2!D27*(1-trust2!D27) -> 0.2186022433 | E27: =trust2!E27*(1-trust2!E27) -> 0.2139698661 | F27: =trust2!F27*(1-trust2!F27) -> 0.2479689364 | G27: =trust2!G27*(1-trust2!G27) -> 0.2465361031
A28: 1.209251234 | B28: =trust2!B28*(1-trust2!B28) -> 0.1834038502 | C28: =trust2!C28*(1-trust2!C28) -> 0.165344687 | D28: =trust2!D28*(1-trust2!D28) -> 0.1963304006 | E28: =trust2!E28*(1-trust2!E28) -> 0.1909668277 | F28: =trust2!F28*(1-trust2!F28) -> 0.2381273514 | G28: =trust2!G28*(1-trust2!G28) -> 0.2350781173
A29: 1.113932097 | B29: =trust2!B29*(1-trust2!B29) -> 0.1653795406 | C29: =trust2!C29*(1-trust2!C29) -> 0.1473545975 | D29: =trust2!D29*(1-trust2!D29) -> 0.1787207724 | E29: =trust2!E29*(1-trust2!E29) -> 0.1731337227 | F29: =trust2!F29*(1-trust2!F29) -> 0.2266639912 | G29: =trust2!G29*(1-trust2!G29) -> 0.2226794725
A30: 1.026777672 | B30: =trust2!B30*(1-trust2!B30) -> 0.1497896439 | C30: =trust2!C30*(1-trust2!C30) -> 0.1322507514 | D30: =trust2!D30*(1-trust2!D30) -> 0.1630814119 | E30: =trust2!E30*(1-trust2!E30) -> 0.1574792327 | F30: =trust2!F30*(1-trust2!F30) -> 0.2143898944 | G30: =trust2!G30*(1-trust2!G30) -> 0.2097867376
A31: 1.127899334 | B31: =trust2!B31*(1-trust2!B31) -> 0.167950473 | C31: =trust2!C31*(1-trust2!C31) -> 0.1498832361 | D31: =trust2!D31*(1-trust2!D31) -> 0.181265585 | E31: =trust2!E31*(1-trust2!E31) -> 0.175696039 | F31: =trust2!F31*(1-trust2!F31) -> 0.2284847855 | G31: =trust2!G31*(1-trust2!G31) -> 0.2246192149
A32: 1.257296956 | B32: =trust2!B32*(1-trust2!B32) -> 0.1929928365 | C32: =trust2!C32*(1-trust2!C32) -> 0.1752003133 | D32: =trust2!D32*(1-trust2!D32) -> 0.2054522692 | E32: =trust2!E32*(1-trust2!E32) -> 0.200314323 | F32: =trust2!F32*(1-trust2!F32) -> 0.2428952982 | G32: =trust2!G32*(1-trust2!G32) -> 0.2404419154
A33: 0.9270697079 | B33: =trust2!B33*(1-trust2!B33) -> 0.1327705487 | C33: =trust2!C33*(1-trust2!C33) -> 0.1161570305 | D33: =trust2!D33*(1-trust2!D33) -> 0.145641982 | E33: =trust2!E33*(1-trust2!E33) -> 0.1401846772 | F33: =trust2!F33*(1-trust2!F33) -> 0.1986949572 | G33: =trust2!G33*(1-trust2!G33) -> 0.1936205124
A34: 0.9359385399 | B34: =trust2!B34*(1-trust2!B34) -> 0.1342532568 | C34: =trust2!C34*(1-trust2!C34) -> 0.1175444107 | D34: =trust2!D34*(1-trust2!D34) -> 0.1471752686 | E34: =trust2!E34*(1-trust2!E34) -> 0.1416991589 | F34: =trust2!F34*(1-trust2!F34) -> 0.2001542351 | G34: =trust2!G34*(1-trust2!G34) -> 0.1951122097
A35: 1.108174875 | B35: =trust2!B35*(1-trust2!B35) -> 0.1643260874 | C35: =trust2!C35*(1-trust2!C35) -> 0.1463217589 | D35: =trust2!D35*(1-trust2!D35) -> 0.1776750789 | E35: =trust2!E35*(1-trust2!E35) -> 0.1720821423 | F35: =trust2!F35*(1-trust2!F35) -> 0.2259008421 | G35: =trust2!G35*(1-trust2!G35) -> 0.2218689656
A36: 1.013198943 | B36: =trust2!B36*(1-trust2!B36) -> 0.1474244235 | C36: =trust2!C36*(1-trust2!C36) -> 0.1299910393 | D36: =trust2!D36*(1-trust2!D36) -> 0.1606794949 | E36: =trust2!E36*(1-trust2!E36) -> 0.1550878499 | F36: =trust2!F36*(1-trust2!F36) -> 0.2123488302 | G36: =trust2!G36*(1-trust2!G36) -> 0.2076673047
A37: 1.161496392 | B37: =trust2!B37*(1-trust2!B37) -> 0.1742279266 | C37: =trust2!C37*(1-trust2!C37) -> 0.1561073918 | D37: =trust2!D37*(1-trust2!D37) -> 0.1874348197 | E37: =trust2!E37*(1-trust2!E37) -> 0.1819273863 | F37: =trust2!F37*(1-trust2!F37) -> 0.232676935 | G37: =trust2!G37*(1-trust2!G37) -> 0.2291219329
A38: 1.363820326 | B38: =trust2!B38*(1-trust2!B38) -> 0.2161534374 | C38: =trust2!C38*(1-trust2!C38) -> 0.20015335 | D38: =trust2!D38*(1-trust2!D38) -> 0.2265316078 | E38: =trust2!E38*(1-trust2!E38) -> 0.2223470084 | F38: =trust2!F38*(1-trust2!F38) -> 0.2496675833 | G38: =trust2!G38*(1-trust2!G38) -> 0.2489673387
A39: 1.410211478 | B39: =trust2!B39*(1-trust2!B39) -> 0.2277714392 | C39: =trust2!C39*(1-trust2!C39) -> 0.213611514 | D39: =trust2!D39*(1-trust2!D39) -> 0.2363535603 | E39: =trust2!E39*(1-trust2!E39) -> 0.2329664621 | F39: =trust2!F39*(1-trust2!F39) -> 0.249558647 | G39: =trust2!G39*(1-trust2!G39) -> 0.2499498554
A40: 1.3570342 | B40: =trust2!B40*(1-trust2!B40) -> 0.2145645152 | C40: =trust2!C40*(1-trust2!C40) -> 0.198374078 | D40: =trust2!D40*(1-trust2!D40) -> 0.2251400296 | E40: =trust2!E40*(1-trust2!E40) -> 0.2208667886 | F40: =trust2!F40*(1-trust2!F40) -> 0.2494627266 | G40: =trust2!G40*(1-trust2!G40) -> 0.2486260615
A41: 1.113889195 | B41: =trust2!B41*(1-trust2!B41) -> 0.1653716772 | C41: =trust2!C41*(1-trust2!C41) -> 0.147346881 | D41: =trust2!D41*(1-trust2!D41) -> 0.1787129732 | E41: =trust2!E41*(1-trust2!E41) -> 0.1731258768 | F41: =trust2!F41*(1-trust2!F41) -> 0.2266583312 | G41: =trust2!G41*(1-trust2!G41) -> 0.2226734561
A42: 1.048529518 | B42: =trust2!B42*(1-trust2!B42) -> 0.1536124295 | C42: =trust2!C42*(1-trust2!C42) -> 0.1359199241 | D42: =trust2!D42*(1-trust2!D42) -> 0.1669478277 | E42: =trust2!E42*(1-trust2!E42) -> 0.161335529 | F42: =trust2!F42*(1-trust2!F42) -> 0.2175908164 | G42: =trust2!G42*(1-trust2!G42) -> 0.2131229918
A43: 1.299785621 | B43: =trust2!B43*(1-trust2!B43) -> 0.2018487424 | C43: =trust2!C43*(1-trust2!C43) -> 0.1845212466 | D43: =trust2!D43*(1-trust2!D43) -> 0.2136927225 | E43: =trust2!E43*(1-trust2!E43) -> 0.2088422854 | F43: =trust2!F43*(1-trust2!F43) -> 0.2463597386 | G43: =trust2!G43*(1-trust2!G43) -> 0.2445208852
A44: 1.261780888 | B44: =trust2!B44*(1-trust2!B44) -> 0.1939090889 | C44: =trust2!C44*(1-trust2!C44) -> 0.1761542268 | D44: =trust2!D44*(1-trust2!D44) -> 0.2063135683 | E44: =trust2!E44*(1-trust2!E44) -> 0.2012016255 | F44: =trust2!F44*(1-trust2!F44) -> 0.2432975571 | G44: =trust2!G44*(1-trust2!G44) -> 0.2409048218
A45: 1.257009065 | B45: =trust2!B45*(1-trust2!B45) -> 0.1929341438 | C45: =trust2!C45*(1-trust2!C45) -> 0.1751392852 | D45: =trust2!D45*(1-trust2!D45) -> 0.205397032 | E45: =trust2!E45*(1-trust2!E45) -> 0.2002574478 | F45: =trust2!F45*(1-trust2!F45) -> 0.2428692007 | G45: =trust2!G45*(1-trust2!G45) -> 0.2404119555
A46: 0.9898996312 | B46: =trust2!B46*(1-trust2!B46) -> 0.1434023653 | C46: =trust2!C46*(1-trust2!C46) -> 0.1261661203 | D46: =trust2!D46*(1-trust2!D46) -> 0.1565784866 | E46: =trust2!E46*(1-trust2!E46) -> 0.1510120558 | F46: =trust2!F46*(1-trust2!F46) -> 0.2087729625 | G46: =trust2!G46*(1-trust2!G46) -> 0.2039676408
A47: 1.240264304 | B47: =trust2!B47*(1-trust2!B47) -> 0.1895473573 | C47: =trust2!C47*(1-trust2!C47) -> 0.1716329873 | D47: =trust2!D47*(1-trust2!D47) -> 0.2021967665 | E47: =trust2!E47*(1-trust2!E47) -> 0.196968208 | F47: =trust2!F47*(1-trust2!F47) -> 0.2412972804 | G47: =trust2!G47*(1-trust2!G47) -> 0.2386217049
A48: 1.109029258 | B48: =trust2!B48*(1-trust2!B48) -> 0.1644821947 | C48: =trust2!C48*(1-trust2!C48) -> 0.1464746927 | D48: =trust2!D48*(1-trust2!D48) -> 0.177830143 | E48: =trust2!E48*(1-trust2!E48) -> 0.1722380321 | F48: =trust2!F48*(1-trust2!F48) -> 0.2260145522 | G48: =trust2!G48*(1-trust2!G48) -> 0.2219896428
A49: 1.127726701 | B49: =trust2!B49*(1-trust2!B49) -> 0.1679185626 | C49: =trust2!C49*(1-trust2!C49) -> 0.1498517798 | D49: =trust2!D49*(1-trust2!D49) -> 0.1812340621 | E49: =trust2!E49*(1-trust2!E49) -> 0.1756642712 | F49: =trust2!F49*(1-trust2!F49) -> 0.2284625507 | G49: =trust2!G49*(1-trust2!G49) -> 0.2245954743
A50: 1.168908151 | B50: =trust2!B50*(1-trust2!B50) -> 0.1756316192 | C50: =trust2!C50*(1-trust2!C50) -> 0.1575093432 | D50: =trust2!D50*(1-trust2!D50) -> 0.1888053326 | E50: =trust2!E50*(1-trust2!E50) -> 0.1833156958 | F50: =trust2!F50*(1-trust2!F50) -> 0.2335638982 | G50: =trust2!G50*(1-trust2!G50) -> 0.2300822623
A51: 1.065841177 | B51: =trust2!B51*(1-trust2!B51) -> 0.156685957 | C51: =trust2!C51*(1-trust2!C51) -> 0.1388856244 | D51: =trust2!D51*(1-trust2!D51) -> 0.1700419957 | E51: =trust2!E51*(1-trust2!E51) -> 0.1644279096 | F51: =trust2!F51*(1-trust2!F51) -> 0.2200754872 | G51: =trust2!G51*(1-trust2!G51) -> 0.2157242031
A52: 1.318178685 | B52: =trust2!B52*(1-trust2!B52) -> 0.205819444 | C52: =trust2!C52*(1-trust2!C52) -> 0.1887807733 | D52: =trust2!D52*(1-trust2!D52) -> 0.217321099 | E52: =trust2!E52*(1-trust2!E52) -> 0.2126279839 | F52: =trust2!F52*(1-trust2!F52) -> 0.2475856675 | G52: =trust2!G52*(1-trust2!G52) -> 0.246043717
A53: 1.076112435 | B53: =trust2!B53*(1-trust2!B53) -> 0.1585230737 | C53: =trust2!C53*(1-trust2!C53) -> 0.1406651864 | D53: =trust2!D53*(1-trust2!D53) -> 0.1718851386 | E53: =trust2!E53*(1-trust2!E53) -> 0.1662727549 | F53: =trust2!F53*(1-trust2!F53) -> 0.2215223133 | G53: =trust2!G53*(1-trust2!G53) -> 0.2172439679
A54: 1.222764373 | B54: =trust2!B54*(1-trust2!B54) -> 0.1860612395 | C54: =trust2!C54*(1-trust2!C54) -> 0.1680537966 | D54: =trust2!D54*(1-trust2!D54) -> 0.198877238 | E54: =trust2!E54*(1-trust2!E54) -> 0.1935680402 | F54: =trust2!F54*(1-trust2!F54) -> 0.2395475826 | G54: =trust2!G54*(1-trust2!G54) -> 0.2366564757
A55: 1.362456069 | B55: =trust2!B55*(1-trust2!B55) -> 0.215832269 | C55: =trust2!C55*(1-trust2!C55) -> 0.199792703 | D55: =trust2!D55*(1-trust2!D55) -> 0.2262511271 | E55: =trust2!E55*(1-trust2!E55) -> 0.2220482718 | F55: =trust2!F55*(1-trust2!F55) -> 0.2496298691 | G55: =trust2!G55*(1-trust2!G55) -> 0.2489018294
A56: 1.277517988 | B56: =trust2!B56*(1-trust2!B56) -> 0.1971574522 | C56: =trust2!C56*(1-trust2!C56) -> 0.1795548694 | D56: =trust2!D56*(1-trust2!D56) -> 0.2093513876 | E56: =trust2!E56*(1-trust2!E56) -> 0.2043383857 | F56: =trust2!F56*(1-trust2!F56) -> 0.2446441184 | G56: =trust2!G56*(1-trust2!G56) -> 0.2424717746
A57: 0.9046563973 | B57: =trust2!B57*(1-trust2!B57) -> 0.1290485699 | C57: =trust2!C57*(1-trust2!C57) -> 0.1126859444 | D57: =trust2!D57*(1-trust2!D57) -> 0.141781876 | E57: =trust2!E57*(1-trust2!E57) -> 0.1363767383 | F57: =trust2!F57*(1-trust2!F57) -> 0.1949558515 | G57: =trust2!G57*(1-trust2!G57) -> 0.1898074172
A58: 1.142260661 | B58: =trust2!B58*(1-trust2!B58) -> 0.1706172046 | C58: =trust2!C58*(1-trust2!C58) -> 0.152518454 | D58: =trust2!D58*(1-trust2!D58) -> 0.1838942039 | E58: =trust2!E58*(1-trust2!E58) -> 0.1783476209 | F58: =trust2!F58*(1-trust2!F58) -> 0.2303101546 | G58: =trust2!G58*(1-trust2!G58) -> 0.2265730225
A59: 0.9705707105 | B59: =trust2!B59*(1-trust2!B59) -> 0.1400992321 | C59: =trust2!C59*(1-trust2!C59) -> 0.1230410423 | D59: =trust2!D59*(1-trust2!D59) -> 0.1531953298 | E59: =trust2!E59*(1-trust2!E59) -> 0.1476563174 | F59: =trust2!F59*(1-trust2!F59) -> 0.2057384012 | G59: =trust2!G59*(1-trust2!G59) -> 0.2008403876
A60: 1.016074962 | B60: =trust2!B60*(1-trust2!B60) -> 0.1479240585 | C60: =trust2!C60*(1-trust2!C60) -> 0.1304677334 | D60: =trust2!D60*(1-trust2!D60) -> 0.1611874897 | E60: =trust2!E60*(1-trust2!E60) -> 0.1555933514 | F60: =trust2!F60*(1-trust2!F60) -> 0.2127838211 | G60: =trust2!G60*(1-trust2!G60) -> 0.2081185078
A61: 0.7209800141 | B61: =trust2!B61*(1-trust2!B61) -> 0.09976431226 | C61: =trust2!C61*(1-trust2!C61) -> 0.08590290595 | D61: =trust2!D61*(1-trust2!D61) -> 0.1108920794 | E61: =trust2!E61*(1-trust2!E61) -> 0.1061292343 | F61: =trust2!F61*(1-trust2!F61) -> 0.1618200262 | G61: =trust2!G61*(1-trust2!G61) -> 0.1564714559
A62: 0.9738173113 | B62: =trust2!B62*(1-trust2!B62) -> 0.1406519762 | C62: =trust2!C62*(1-trust2!C62) -> 0.1235629983 | D62: =trust2!D62*(1-trust2!D62) -> 0.1537624024 | E62: =trust2!E62*(1-trust2!E62) -> 0.1482183871 | F62: =trust2!F62*(1-trust2!F62) -> 0.2062523083 | G62: =trust2!G62*(1-trust2!G62) -> 0.201369239
A63: 1.459508779 | B63: =trust2!B63*(1-trust2!B63) -> 0.248233421 | C63: =trust2!C63*(1-trust2!C63) -> 0.2421949897 | D63: =trust2!D63*(1-trust2!D63) -> 0.2499454996 | E63: =trust2!E63*(1-trust2!E63) -> 0.2495178898 | F63: =trust2!F63*(1-trust2!F63) -> 0.2331969572 | G63: =trust2!G63*(1-trust2!G63) -> 0.2364200215
A64: 1.258290221 | B64: =trust2!B64*(1-trust2!B64) -> 0.1931954595 | C64: =trust2!C64*(1-trust2!C64) -> 0.1754110698 | D64: =trust2!D64*(1-trust2!D64) -> 0.2056429035 | E64: =trust2!E64*(1-trust2!E64) -> 0.2005106373 | F64: =trust2!F64*(1-trust2!F64) -> 0.2429850896 | G64: =trust2!G64*(1-trust2!G64) -> 0.2405450617
A65: 0.5493062037 | B65: =trust2!B65*(1-trust2!B65) -> 0.07406310718 | C65: =trust2!C65*(1-trust2!C65) -> 0.06306663983 | D65: =trust2!D65*(1-trust2!D65) -> 0.08309852341 | E65: =trust2!E65*(1-trust2!E65) -> 0.07920743305 | F65: =trust2!F65*(1-trust2!F65) -> 0.1273984258 | G65: =trust2!G65*(1-trust2!G65) -> 0.1224720745
A66: 0.9486678206 | B66: =trust2!B66*(1-trust2!B66) -> 0.1363914657 | C66: =trust2!C66*(1-trust2!C66) -> 0.119549884 | D66: =trust2!D66*(1-trust2!D66) -> 0.1493818791 | E66: =trust2!E66*(1-trust2!E66) -> 0.1438806654 | F66: =trust2!F66*(1-trust2!F66) -> 0.2022281325 | G66: =trust2!G66*(1-trust2!G66) -> 0.1972357938
A67: =SUM(B67:G67) -> 0.4800435563 | B67: =trust2!B67*(1-trust2!B67) -> 0.06408455581 | C67: =trust2!C67*(1-trust2!C67) -> 0.05434716769 | D67: =trust2!D67*(1-trust2!D67) -> 0.07215183043 | E67: =trust2!E67*(1-trust2!E67) -> 0.06867010487 | F67: =trust2!F67*(1-trust2!F67) -> 0.1126944795 | G67: =trust2!G67*(1-trust2!G67) -> 0.108095418
A68: 1.050890887 | B68: =trust2!B68*(1-trust2!B68) -> 0.1540300153 | C68: =trust2!C68*(1-trust2!C68) -> 0.1363220266 | D68: =trust2!D68*(1-trust2!D68) -> 0.167368983 | E68: =trust2!E68*(1-trust2!E68) -> 0.1617561052 | F68: =trust2!F68*(1-trust2!F68) -> 0.2179330756 | G68: =trust2!G68*(1-trust2!G68) -> 0.213480681
A69: 1.158512851 | B69: =trust2!B69*(1-trust2!B69) -> 0.1736648719 | C69: =trust2!C69*(1-trust2!C69) -> 0.1555461098 | D69: =trust2!D69*(1-trust2!D69) -> 0.1868841302 | E69: =trust2!E69*(1-trust2!E69) -> 0.1813699685 | F69: =trust2!F69*(1-trust2!F69) -> 0.2323158992 | G69: =trust2!G69*(1-trust2!G69) -> 0.2287318717
A70: 1.232438893 | B70: =trust2!B70*(1-trust2!B70) -> 0.187982007 | C70: =trust2!C70*(1-trust2!C70) -> 0.1700222048 | D70: =trust2!D70*(1-trust2!D70) -> 0.2007093194 | E70: =trust2!E70*(1-trust2!E70) -> 0.1954432147 | F70: =trust2!F70*(1-trust2!F70) -> 0.2405278225 | G70: =trust2!G70*(1-trust2!G70) -> 0.2377543241
A71: 1.380836853 | B71: =trust2!B71*(1-trust2!B71) -> 0.2202415602 | C71: =trust2!C71*(1-trust2!C71) -> 0.2047917451 | D71: =trust2!D71*(1-trust2!D71) -> 0.2300639875 | E71: =trust2!E71*(1-trust2!E71) -> 0.2261277916 | F71: =trust2!F71*(1-trust2!F71) -> 0.249973973 | G71: =trust2!G71*(1-trust2!G71) -> 0.2496377959
A72: 1.193113671 | B72: =trust2!B72*(1-trust2!B72) -> 0.1802670733 | C72: =trust2!C72*(1-trust2!C72) -> 0.1621671289 | D72: =trust2!D72*(1-trust2!D72) -> 0.1933066654 | E72: =trust2!E72*(1-trust2!E72) -> 0.187886456 | F72: =trust2!F72*(1-trust2!F72) -> 0.2363577284 | G72: =trust2!G72*(1-trust2!G72) -> 0.2331286195
A73: 1.090036561 | B73: =trust2!B73*(1-trust2!B73) -> 0.1610302277 | C73: =trust2!C73*(1-trust2!C73) -> 0.1431023649 | D73: =trust2!D73*(1-trust2!D73) -> 0.1743927151 | E73: =trust2!E73*(1-trust2!E73) -> 0.1687860753 | F73: =trust2!F73*(1-trust2!F73) -> 0.2234500154 | G73: =trust2!G73*(1-trust2!G73) -> 0.2192751623
A74: 0.8557573115 | B74: =trust2!B74*(1-trust2!B74) -> 0.1210479285 | C74: =trust2!C74*(1-trust2!C74) -> 0.10527867 | D74: =trust2!D74*(1-trust2!D74) -> 0.1334318262 | E74: =trust2!E74*(1-trust2!E74) -> 0.1281622106 | F74: =trust2!F74*(1-trust2!F74) -> 0.1865539589 | G74: =trust2!G74*(1-trust2!G74) -> 0.1812827173
A75: 1.118966027 | B75: =trust2!B75*(1-trust2!B75) -> 0.1663036199 | C75: =trust2!C75*(1-trust2!C75) -> 0.1482621545 | D75: =trust2!D75*(1-trust2!D75) -> 0.1796366448 | E75: =trust2!E75*(1-trust2!E75) -> 0.1740553707 | F75: =trust2!F75*(1-trust2!F75) -> 0.2273252764 | G75: =trust2!G75*(1-trust2!G75) -> 0.2233829608
A76: 0.8583544741 | B76: =trust2!B76*(1-trust2!B76) -> 0.1214688868 | C76: =trust2!C76*(1-trust2!C76) -> 0.1056666262 | D76: =trust2!D76*(1-trust2!D76) -> 0.1338729122 | E76: =trust2!E76*(1-trust2!E76) -> 0.1285953879 | F76: =trust2!F76*(1-trust2!F76) -> 0.1870083439 | G76: =trust2!G76*(1-trust2!G76) -> 0.1817423171
A77: 1.085688287 | B77: =trust2!B77*(1-trust2!B77) -> 0.160245187 | C77: =trust2!C77*(1-trust2!C77) -> 0.142338156 | D77: =trust2!D77*(1-trust2!D77) -> 0.1736085218 | E77: =trust2!E77*(1-trust2!E77) -> 0.1679996542 | F77: =trust2!F77*(1-trust2!F77) -> 0.2228522582 | G77: =trust2!G77*(1-trust2!G77) -> 0.2186445096
A78: 1.223468413 | B78: =trust2!B78*(1-trust2!B78) -> 0.1862004936 | C78: =trust2!C78*(1-trust2!C78) -> 0.1681962103 | D78: =trust2!D78*(1-trust2!D78) -> 0.1990103137 | E78: =trust2!E78*(1-trust2!E78) -> 0.1937041317 | F78: =trust2!F78*(1-trust2!F78) -> 0.2396199688 | G78: =trust2!G78*(1-trust2!G78) -> 0.2367372946
A79: 1.358632219 | B79: =trust2!B79*(1-trust2!B79) -> 0.214936764 | C79: =trust2!C79*(1-trust2!C79) -> 0.1987898176 | D79: =trust2!D79*(1-trust2!D79) -> 0.2254669246 | E79: =trust2!E79*(1-trust2!E79) -> 0.2212140773 | F79: =trust2!F79*(1-trust2!F79) -> 0.2495147918 | G79: =trust2!G79*(1-trust2!G79) -> 0.2487098436
A80: 1.409122393 | B80: =trust2!B80*(1-trust2!B80) -> 0.2274779256 | C80: =trust2!C80*(1-trust2!C80) -> 0.2132596934 | D80: =trust2!D80*(1-trust2!D80) -> 0.2361146321 | E80: =trust2!E80*(1-trust2!E80) -> 0.2327034997 | F80: =trust2!F80*(1-trust2!F80) -> 0.249602689 | G80: =trust2!G80*(1-trust2!G80) -> 0.2499639529
A81: 1.023113079 | B81: =trust2!B81*(1-trust2!B81) -> 0.1491497507 | C81: =trust2!C81*(1-trust2!C81) -> 0.1316386258 | D81: =trust2!D81*(1-trust2!D81) -> 0.1624323131 | E81: =trust2!E81*(1-trust2!E81) -> 0.1568326654 | F81: =trust2!F81*(1-trust2!F81) -> 0.2138422443 | G81: =trust2!G81*(1-trust2!G81) -> 0.2092174798

Sheet discriminate
B1: =SUM(B2:B81) -> 0 | C1: =SUM(C2:C81) -> 0 | D1: =SUM(D2:D81) -> 0 | E1: =SUM(E2:E81) -> 0 | F1: =SUM(F2:F81) -> 0 | G1: =SUM(G2:G81) -> 0 | H1: =SUM(H2:H81) -> 0 | I1: 0 | J1: =SUM(J2:J76) -> 0 | K1: 0 | L1: 0 | M1: 0 | N1: 0 | O1: 0 | P1: 0 | Q1: 0 | R1: 0 | S1: 0 | T1: 0 | U1: 0 | V1: 0 | W1: 0 | X1: 0 | Y1: 0 | Z1: 0

Sheet discriminate2
B1: =SUM(B2:B81) -> 0 | C1: =SUM(C2:C81) -> 0 | D1: =SUM(D2:D81) -> 0 | E1: =SUM(E2:E81) -> 0 | F1: =SUM(F2:F81) -> 0 | G1: =SUM(G2:G81) -> 0 | H1: =SUM(H2:H81) -> 0 | I1: 0 | J1: =SUM(J2:J76) -> 0 | K1: 0 | L1: 0 | M1: 0 | N1: 0 | O1: 0 | P1: 0 | Q1: 0 | R1: 0 | S1: 0 | T1: 0 | U1: 0 | V1: 0 | W1: 0 | X1: 0 | Y1: 0 | Z1: 0

Sheet residual
A1: =AVERAGE(A2:A81) -> 1 | B1: 0.9972689075 | C1: 0.9983019248 | D1: 1.001697401 | E1: 0.9944283033 | F1: 0.9977592713 | G1: 1.010544192 | H1: 0.9925644353 | I1: 1.001619727 | J1: 0.9800649282 | K1: 1.008549928 | L1: 1.140436455 | M1: 1.005394354 | N1: 0.9512032454 | O1: 1.065919479 | P1: 1.044163897 | Q1: 0.9862724911 | R1: 0.9042649898 | S1: 1.001196138 | T1: 1.047692229 | U1: 0.9208778702 | V1: 0.9745474857 | W1: 1.084185691 | X1: 1.007824846 | Y1: 0.9666588993 | Z1: 1.011592673
A2: 0.9932705334 | B2: -0.07210473847 | C2: 0.05286272742 | D2: -0.05874012861 | E2: -0.03284474967 | F2: 0.07702294201 | G2: 0.0338919545
A3: 0.9787082539 | B3: -0.02098866955 | C3: 0.03141211654 | D3: -0.006166718664 | E3: -0.02667310086 | F3: 0.02957525449 | G3: -0.007066579801
A4: 1.000343827 | B4: -0.02700768133 | C4: 0.04481853714 | D4: -0.05113469643 | E4: -0.1100167484 | F4: 0.027887225 | G4: 0.1155242574
A5: 1.033554774 | B5: -0.08634837006 | C5: 0.09218701613 | D5: -0.2003017625 | E5: -0.0127776976 | F5: 0.06703016291 | G5: 0.1402558363
A6: 1.015601157 | B6: -0.06740733246 | C6: 0.06346515551 | D6: -0.1196497761 | E6: -0.08202715781 | F6: 0.07546832768 | G6: 0.1302161476
A7: 0.9997226211 | B7: -0.05969152203 | C7: -0.01377479035 | D7: -0.05412125502 | E7: -0.07239034343 | F7: 0.09310886032 | G7: 0.1069305916
A8: 0.9957476005 | B8: -0.08028136723 | C8: 0.06362093604 | D8: -0.07256634875 | E8: -0.01841289936 | F8: 0.04005414128 | G8: 0.06767370713
A9: 1.005902796 | B9: -0.1027197806 | C9: 0.03367553351 | D9: -0.05916698308 | E9: -0.06148195693 | F9: 0.05878623345 | G9: 0.1309726038
A10: 1.040907778 | B10: -0.09303263166 | C10: 0.05912085052 | D10: -0.1378001925 | E10: -0.1045747384 | F10: 0.1559909448 | G10: 0.1203716722
A11: 0.9789674928 | B11: 0.0377618508 | C11: 0.003832898614 | D11: 0.0200144896 | E11: -0.03337898826 | F11: -0.02609540519 | G11: -0.002044488302
A12: 0.9975608107 | B12: 0.02379935253 | C12: 0.09147503418 | D12: -0.02566225135 | E12: -0.0388065722 | F12: -0.1196128816 | G12: 0.06885793856
A13: 0.9910669195 | B13: -0.0614708997 | C13: 0.0566739749 | D13: -0.05736957654 | E13: -0.04667703234 | F13: 0.03857985396 | G13: 0.07034228197
A14: 1.026336347 | B14: -0.1234099718 | C14: 0.09354237359 | D14: -0.09927838695 | E14: -0.07862817654 | F14: 0.08055643267 | G14: 0.127294039
A15: 0.9765676758 | B15: 0.009635215741 | C15: -0.02420708866 | D15: 0.01018430141 | E15: 0.01822894351 | F15: -0.005306091547 | G15: -0.008450782496
A16: 0.9870471699 | B16: 0.04585500723 | C16: -0.02988299145 | D16: 0.04617886173 | E16: 0.04726040843 | F16: -0.04540527672 | G16: -0.06392294034
A17: 0.9858719505 | B17: 0.02348715813 | C17: -0.03663579396 | D17: 0.04578234393 | E17: 0.0584664072 | F17: -0.07204694768 | G17: -0.01897919898
A18: 1.00025147 | B18: 0.07704449491 | C18: 0.02808576169 | D18: 0.049392578 | E18: 0.02289781913 | F18: -0.1151679209 | G18: -0.06216365373
A19: 1.000996305 | B19: 0.03785318537 | C19: 0.02513584978 | D19: 0.06300467169 | E19: 0.0498345771 | F19: -0.0706817057 | G19: -0.1050542076
A20: 0.9821308785 | B20: 0.04727658984 | C20: -0.05367448825 | D20: 0.03607905735 | E20: 0.02022730334 | F20: -0.02299945484 | G20: -0.02683107328
A21: 0.9905164075 | B21: 0.07275157331 | C21: -0.03838765937 | D21: 0.04532414151 | E21: 0.04315573529 | F21: -0.06098413143 | G21: -0.06178098751
A22: 1.006765076 | B22: 0.05285150969 | C22: 0.01781555648 | D22: 0.05847516091 | E22: 0.06934483671 | F22: -0.1039099777 | G22: -0.09448508161
A23: 0.9832695359 | B23: 0.01945415952 | C23: 0.006883927587 | D23: 0.03890654575 | E23: 0.03675933302 | F23: -0.0480808254 | G23: -0.05383469697
A24: 0.9805057938 | B24: 0.02703493176 | C24: -0.01763584844 | D24: 0.02399986451 | E24: 0.03025476364 | F24: -0.05154107953 | G24: -0.01202285414
A25: 0.9910419476 | B25: 0.04201163865 | C25: 0.00965156119 | D25: 0.04803732087 | E25: 0.04665847161 | F25: -0.06176506302 | G25: -0.08450652325
A26: 0.982234062 | B26: 0.01503144662 | C26: -0.03718938307 | D26: 0.03916450844 | E26: 0.04268868073 | F26: -0.05277012516 | G26: -0.006841100583
A27: 1.01752765 | B27: -0.1141009605 | C27: -0.03218049642 | D27: -0.04254338608 | E27: -0.05654399404 | F27: 0.06583953962 | G27: 0.179590498
A28: 0.9846675021 | B28: 0.04662520175 | C28: -0.03158086096 | D28: 0.04762987385 | E28: -0.01054555556 | F28: -0.07163529537 | G28: 0.01958591329
A29: 0.9852717472 | B29: 0.0220698788 | C29: -0.0251658206 | D29: 0.0438878663 | E29: 0.04585014387 | F29: -0.07468157041 | G29: -0.01187307471
A30: 1.004219365 | B30: 0.03611837799 | C30: -0.03533360382 | D30: 0.07432103927 | E30: 0.08840585917 | F30: -0.09235223389 | G30: -0.07106816152
A31: 0.9853204879 | B31: 0.03944997106 | C31: -0.06698051387 | D31: 0.03754341822 | E31: 0.04417383456 | F31: -0.03683216989 | G31: -0.0172680262
A32: 0.9784412037 | B32: -0.002333158147 | C32: -0.03749531386 | D32: 0.01331166642 | E32: 0.02209715783 | F32: -0.02595605978 | G32: 0.03044882867
A33: 0.9933197455 | B33: 0.01150823709 | C33: 0.03188171857 | D33: 0.05337553819 | E33: 0.04503650376 | F33: -0.0560516196 | G33: -0.08565793712
A34: 0.983733177 | B34: -0.005191379675 | C34: 0.01844187708 | D34: 0.03658136218 | E34: 0.04200281862 | F34: -0.04333740876 | G34: -0.04840481061
A35: 0.98841227 | B35: 0.03160281055 | C35: -0.0063130914 | D35: 0.05310096782 | E35: 0.04369068597 | F35: -0.08426445854 | G35: -0.03772914163
A36: 0.989225074 | B36: 0.03476779603 | C36: 0.03004749329 | D36: 0.0301787549 | E36: 0.03475272646 | F36: -0.0898724268 | G36: -0.03978272103
A37: 0.9781218262 | B37: 0.01714343795 | C37: -0.0220440075 | D37: 0.03893217327 | E37: -0.001141664438 | F37: -0.006617114978 | G37: -0.02618887501
A38: 1.051780833 | B38: -0.09111721029 | C38: 0.0967363666 | D38: -0.1688189693 | E38: -0.1256668869 | F38: 0.1317677016 | G38: 0.1571506668
A39: 1.086051692 | B39: -0.2026638859 | C39: -0.05325766302 | D39: -0.1793179768 | E39: 0.05698740342 | F39: 0.1390639589 | G39: 0.239224145
A40: 1.013457683 | B40: -0.0799842249 | C40: 0.02434911566 | D40: -0.1147016986 | E40: -0.06326266261 | F40: 0.1122375071 | G40: 0.1214154671
A41: 0.9768717011 | B41: 0.01986241409 | C41: -0.01757267374 | D41: 0.01072546934 | E41: 0.008020426521 | F41: 0.003806216691 | G41: -0.024754427
A42: 0.9779440718 | B42: 0.002900578393 | C42: -0.02707193783 | D42: 0.02506831041 | E42: 0.008685813924 | F42: 0.01822717986 | G42: -0.02771935641
A43: 0.9797787763 | B43: 0.0103454636 | C43: -0.05919698934 | D43: -0.002814906985 | E43: -0.008939818459 | F43: 0.03096444077 | G43: 0.02970794855
A44: 0.9775075388 | B44: 0.0116942136 | C44: -0.02895167026 | D44: 0.003119358875 | E44: -0.01814618833 | F44: 0.03455312007 | G44: -0.002196374582
A45: 0.9786091909 | B45: 0.04682967725 | C45: 0.008893138258 | D45: -0.02056914772 | E45: 0.009782116059 | F45: -0.0156940602 | G45: -0.02916856059
A46: 0.9863279593 | B46: 0.05297135361 | C46: -0.06940038328 | D46: 0.02091316918 | E46: 0.026001504 | F46: -0.04262775581 | G46: 0.01223418399
A47: 0.9857404484 | B47: -0.01372833422 | C47: -0.02801801106 | D47: -0.04315873655 | E47: -0.0403824799 | F47: 0.04933983732 | G47: 0.07602321613
A48: 0.9836851497 | B48: -0.02585264246 | C48: -0.06818205978 | D48: 0.03046266217 | E48: -0.006536900811 | F48: 0.04750859267 | G48: 0.02268807003
A49: 0.9841940689 | B49: 0.03135856099 | C49: -0.08083703589 | D49: 0.0408923973 | E49: 0.01407295628 | F49: -0.01654809511 | G49: 0.01114774211
A50: 0.976853078 | B50: 0.01040445204 | C50: -0.02912276604 | D50: 0.0006713156025 | E50: 0.01129820761 | F50: 0.01849802761 | G50: -0.01166592963
A51: 1.00283121 | B51: 0.06059795503 | C51: -0.0958382301 | D51: 0.07660653596 | E51: 0.06684792358 | F51: -0.04798703061 | G51: -0.06013723802
A52: 0.9828181486 | B52: -0.03831671241 | C52: -0.06617519411 | D52: 0.03797693497 | E52: 0.03129094326 | F52: 0.03680164243 | G52: -0.001515062058
A53: 0.9927960956 | B53: 0.07254847278 | C53: 0.006841847863 | D53: 0.001759639966 | E53: 0.05439339454 | F53: -0.04375333099 | G53: -0.09170056165
A54: 0.9925653929 | B54: 0.01946027996 | C54: -0.114387473 | D54: -0.03079093205 | E54: 0.02807088025 | F54: 0.02797126844 | G54: 0.06975368353
A55: 0.9821452808 | B55: 0.04729770292 | C55: -0.04906984852 | D55: -0.01348169335 | E55: -0.02656270336 | F55: 0.05715010149 | G55: -0.01528151451
A56: 0.9916738678 | B56: -0.0044286415 | C56: -0.1029150158 | D56: 0.0757287396 | E56: 0.016782966 | F56: -0.03672555532 | G56: 0.0516275102
A57: 1.009805669 | B57: 0.07186213586 | C57: 0.01694088787 | D57: 0.07728476779 | E57: 0.02229450267 | F57: -0.06794822741 | G57: -0.1203417673
A58: 0.9761556082 | B58: 0.006643331113 | C58: -0.01097034847 | D58: 0.01554577549 | E58: -0.0161171202 | F58: 0.007596157153 | G58: -0.002612310217
A59: 1.012253923 | B59: 0.01751312674 | C59: 0.03118699479 | D59: 0.0439791474 | E59: 0.05650846265 | F59: 0.02067619893 | G59: -0.1697716188
A60: 1.097877842 | B60: -0.06056468593 | C60: 0.1542656126 | D60: 0.01448572132 | E60: -0.2760066495 | F60: 0.1404183809 | G60: 0.0274931755
A61: 1.006630968 | B61: 0.01864751324 | C61: 0.009683732051 | D61: 0.02901689404 | E61: 0.03333904555 | F61: 0.04395796059 | G61: -0.1345581342
A62: 0.9944035707 | B62: 0.02646472997 | C62: 0.01942018947 | D62: 0.03352814773 | E62: 0.009092693017 | F62: 0.03389606686 | G62: -0.1223095475
A63: 1.098593781 | B63: -0.02417354889 | C63: -0.07584596937 | D63: -0.3042574388 | E63: 0.00929299258 | F63: 0.2337932178 | G63: 0.1611760219
A64: 0.9839785964 | B64: 0.01676500943 | C64: -0.02757402596 | D64: -0.01864695913 | E64: -0.06732811919 | F64: 0.0442211288 | G64: 0.052635942
A65: 1.102705516 | B65: 0.05376596611 | C65: 0.06764209251 | D65: 0.09146422851 | E65: 0.08672942646 | F65: -0.1209784093 | G65: -0.1785390943
A66: 0.9817579123 | B66: -0.01491579396 | C66: 0.005321213242 | D66: 0.03279640467 | E66: -0.003884626962 | F66: 0.0372655693 | G66: -0.05649032064
A67: 1.066754343 | B67: 0.03279870015 | C67: 0.03310442177 | D67: 0.03787002975 | E67: 0.04669307084 | F67: 0.04037194478 | G67: -0.1907416546
A68: 0.9869322751 | B68: 0.04288834455 | C68: -0.02700539283 | D68: 0.01625482428 | E68: 0.06524594787 | F68: -0.05797864974 | G68: -0.03931457089
A69: 0.9900602177 | B69: 0.04123419634 | C69: 0.01454148381 | D69: -0.0002521575243 | E69: 0.02415947139 | F69: 0.03498716921 | G69: -0.1145859635
A70: 0.9803873496 | B70: 0.02450484094 | C70: -0.03337163868 | D70: 0.007388363211 | E70: 0.04909651492 | F70: -0.04240086998 | G70: -0.005140701613
A71: 0.9843723722 | B71: 0.004279367244 | C71: -0.07512232917 | D71: -0.008382445118 | E71: -0.02169383782 | F71: 0.02892611293 | G71: 0.07203976794
A72: 0.9830635054 | B72: 0.02738415394 | C72: -0.07761610986 | D72: 0.01747673556 | E72: 0.006354467561 | F72: 0.04093795988 | G72: -0.01445620485
A73: 0.9766577843 | B73: -0.01053450533 | C73: -0.02013385616 | D73: 0.01622539294 | E73: -0.01083284176 | F73: 0.009091168116 | G73: 0.01627342314
A74: 0.9967260961 | B74: 0.03184490578 | C74: 0.04189886089 | D74: 0.06482918374 | E74: 0.01032229706 | F74: -0.07480164255 | G74: -0.07400205998
A75: 0.9759635317 | B75: 0.01114316186 | C75: 0.004786294411 | D75: -0.009010919059 | E75: -0.007611781451 | F75: -0.009956285745 | G75: 0.01073663562
A76: 1.030427933 | B76: 0.05845192442 | C76: 0.0463376761 | D76: 0.07172575244 | E76: 0.05625585382 | F76: -0.06070360827 | G76: -0.1719759991
A77: 0.9932549797 | B77: 0.04699983283 | C77: 0.05938135681 | D77: 0.03184855299 | E77: -0.02925475233 | F77: -0.107947536 | G77: -0.0009384520837
A78: 0.9813662415 | B78: 0.02717626309 | C78: -0.01934695129 | D78: 0.01898270695 | E78: 0.03356582959 | F78: -0.06716021586 | G78: 0.006859989606
A79: 1.080768098 | B79: -0.2631446556 | C79: 0.2549533309 | D79: 0.01524462169 | E79: -0.06810164686 | F79: -0.001194108924 | G79: 0.06229553821
A80: 1.004402763 | B80: -0.01614499174 | C80: -0.02292761111 | D80: -0.0475236909 | E80: -0.1158911599 | F80: 0.05812710721 | G80: 0.1443967828
A81: 0.9879177016 | B81: 0.04515393155 | C81: 0.03877562084 | D81: 0.03415974627 | E81: 0.001407378803 | F81: -0.03911026136 | G81: -0.08029503935

Sheet trust2
A1: =STDEV(var!B2:'var'!G81) -> 1 | B1: -0.2289213281 | C1: -0.4175327638 | D1: -0.08993277212 | E1: -0.1482854229 | F1: 0.4702141792 | G1: 0.4144581077 | H1: 0.3612319015 | I1: 0.3179039981
A2: 1.119952169 | B2: =EXP(1*(trust2!$A2-trust2!B$1))/(1+EXP(1*(trust2!$A2-trust2!B$1))) -> 0.7939453978 | C2: =EXP(1*(trust2!$A2-trust2!C$1))/(1+EXP(1*(trust2!$A2-trust2!C$1))) -> 0.823098811 | D2: =EXP(1*(trust2!$A2-trust2!D$1))/(1+EXP(1*(trust2!$A2-trust2!D$1))) -> 0.7702785902 | E2: =EXP(1*(trust2!$A2-trust2!E$1))/(1+EXP(1*(trust2!$A2-trust2!E$1))) -> 0.7804409035 | F2: =EXP(1*(trust2!$A2-trust2!F$1))/(1+EXP(1*(trust2!$A2-trust2!F$1))) -> 0.656951417 | G2: =EXP(1*(trust2!$A2-trust2!G$1))/(1+EXP(1*(trust2!$A2-trust2!G$1))) -> 0.6694047488
A3: 1.365637463 | B3: =EXP(1*(trust2!$A3-trust2!B$1))/(1+EXP(1*(trust2!$A3-trust2!B$1))) -> 0.8312565267 | C3: =EXP(1*(trust2!$A3-trust2!C$1))/(1+EXP(1*(trust2!$A3-trust2!C$1))) -> 0.8560878835 | D3: =EXP(1*(trust2!$A3-trust2!D$1))/(1+EXP(1*(trust2!$A3-trust2!D$1))) -> 0.8108542187 | E3: =EXP(1*(trust2!$A3-trust2!E$1))/(1+EXP(1*(trust2!$A3-trust2!E$1))) -> 0.8196418509 | F3: =EXP(1*(trust2!$A3-trust2!F$1))/(1+EXP(1*(trust2!$A3-trust2!F$1))) -> 0.7100080788 | G3: =EXP(1*(trust2!$A3-trust2!G$1))/(1+EXP(1*(trust2!$A3-trust2!G$1))) -> 0.7213522941
A4: 0.7777326866 | B4: =EXP(1*(trust2!$A4-trust2!B$1))/(1+EXP(1*(trust2!$A4-trust2!B$1))) -> 0.7323648242 | C4: =EXP(1*(trust2!$A4-trust2!C$1))/(1+EXP(1*(trust2!$A4-trust2!C$1))) -> 0.7676814629 | D4: =EXP(1*(trust2!$A4-trust2!D$1))/(1+EXP(1*(trust2!$A4-trust2!D$1))) -> 0.7042596964 | E4: =EXP(1*(trust2!$A4-trust2!E$1))/(1+EXP(1*(trust2!$A4-trust2!E$1))) -> 0.7162667484 | F4: =EXP(1*(trust2!$A4-trust2!F$1))/(1+EXP(1*(trust2!$A4-trust2!F$1))) -> 0.5762794417 | G4: =EXP(1*(trust2!$A4-trust2!G$1))/(1+EXP(1*(trust2!$A4-trust2!G$1))) -> 0.5898328855
A5: 0.4759030667 | B5: =EXP(1*(trust2!$A5-trust2!B$1))/(1+EXP(1*(trust2!$A5-trust2!B$1))) -> 0.6692565333 | C5: =EXP(1*(trust2!$A5-trust2!C$1))/(1+EXP(1*(trust2!$A5-trust2!C$1))) -> 0.7095986982 | D5: =EXP(1*(trust2!$A5-trust2!D$1))/(1+EXP(1*(trust2!$A5-trust2!D$1))) -> 0.6378017625 | E5: =EXP(1*(trust2!$A5-trust2!E$1))/(1+EXP(1*(trust2!$A5-trust2!E$1))) -> 0.6511705547 | F5: =EXP(1*(trust2!$A5-trust2!F$1))/(1+EXP(1*(trust2!$A5-trust2!F$1))) -> 0.501422218 | G5: =EXP(1*(trust2!$A5-trust2!G$1))/(1+EXP(1*(trust2!$A5-trust2!G$1))) -> 0.5153564086
A6: 0.7027159344 | B6: =EXP(1*(trust2!$A6-trust2!B$1))/(1+EXP(1*(trust2!$A6-trust2!B$1))) -> 0.7174073325 | C6: =EXP(1*(trust2!$A6-trust2!C$1))/(1+EXP(1*(trust2!$A6-trust2!C$1))) -> 0.7540348445 | D6: =EXP(1*(trust2!$A6-trust2!D$1))/(1+EXP(1*(trust2!$A6-trust2!D$1))) -> 0.6883997761 | E6: =EXP(1*(trust2!$A6-trust2!E$1))/(1+EXP(1*(trust2!$A6-trust2!E$1))) -> 0.7007771578 | F6: =EXP(1*(trust2!$A6-trust2!F$1))/(1+EXP(1*(trust2!$A6-trust2!F$1))) -> 0.5578650056 | G6: =EXP(1*(trust2!$A6-trust2!G$1))/(1+EXP(1*(trust2!$A6-trust2!G$1))) -> 0.5715695667
A7: 0.6550799896 | B7: =EXP(1*(trust2!$A7-trust2!B$1))/(1+EXP(1*(trust2!$A7-trust2!B$1))) -> 0.7076507057 | C7: =EXP(1*(trust2!$A7-trust2!C$1))/(1+EXP(1*(trust2!$A7-trust2!C$1))) -> 0.7450934717 | D7: =EXP(1*(trust2!$A7-trust2!D$1))/(1+EXP(1*(trust2!$A7-trust2!D$1))) -> 0.6780910352 | E7: =EXP(1*(trust2!$A7-trust2!E$1))/(1+EXP(1*(trust2!$A7-trust2!E$1))) -> 0.6906939149 | F7: =EXP(1*(trust2!$A7-trust2!F$1))/(1+EXP(1*(trust2!$A7-trust2!F$1))) -> 0.5460852789 | G7: =EXP(1*(trust2!$A7-trust2!G$1))/(1+EXP(1*(trust2!$A7-trust2!G$1))) -> 0.5598668966
A8: 1.125320093 | B8: =EXP(1*(trust2!$A8-trust2!B$1))/(1+EXP(1*(trust2!$A8-trust2!B$1))) -> 0.7948221836 | C8: =EXP(1*(trust2!$A8-trust2!C$1))/(1+EXP(1*(trust2!$A8-trust2!C$1))) -> 0.823879064 | D8: =EXP(1*(trust2!$A8-trust2!D$1))/(1+EXP(1*(trust2!$A8-trust2!D$1))) -> 0.771227063 | E8: =EXP(1*(trust2!$A8-trust2!E$1))/(1+EXP(1*(trust2!$A8-trust2!E$1))) -> 0.7813593279 | F8: =EXP(1*(trust2!$A8-trust2!F$1))/(1+EXP(1*(trust2!$A8-trust2!F$1))) -> 0.6581601444 | G8: =EXP(1*(trust2!$A8-trust2!G$1))/(1+EXP(1*(trust2!$A8-trust2!G$1))) -> 0.670591599
A9: 0.706399183 | B9: =EXP(1*(trust2!$A9-trust2!B$1))/(1+EXP(1*(trust2!$A9-trust2!B$1))) -> 0.7181534541 | C9: =EXP(1*(trust2!$A9-trust2!C$1))/(1+EXP(1*(trust2!$A9-trust2!C$1))) -> 0.7547173236 | D9: =EXP(1*(trust2!$A9-trust2!D$1))/(1+EXP(1*(trust2!$A9-trust2!D$1))) -> 0.6891893045 | E9: =EXP(1*(trust2!$A9-trust2!E$1))/(1+EXP(1*(trust2!$A9-trust2!E$1))) -> 0.7015489212 | F9: =EXP(1*(trust2!$A9-trust2!F$1))/(1+EXP(1*(trust2!$A9-trust2!F$1))) -> 0.5587732904 | G9: =EXP(1*(trust2!$A9-trust2!G$1))/(1+EXP(1*(trust2!$A9-trust2!G$1))) -> 0.5724712738
A10: 0.854535183 | B10: =EXP(1*(trust2!$A10-trust2!B$1))/(1+EXP(1*(trust2!$A10-trust2!B$1))) -> 0.7471475385 | C10: =EXP(1*(trust2!$A10-trust2!C$1))/(1+EXP(1*(trust2!$A10-trust2!C$1))) -> 0.7810965408 | D10: =EXP(1*(trust2!$A10-trust2!D$1))/(1+EXP(1*(trust2!$A10-trust2!D$1))) -> 0.7200012794 | E10: =EXP(1*(trust2!$A10-trust2!E$1))/(1+EXP(1*(trust2!$A10-trust2!E$1))) -> 0.7316127819 | F10: =EXP(1*(trust2!$A10-trust2!F$1))/(1+EXP(1*(trust2!$A10-trust2!F$1))) -> 0.5949148524 | G10: =EXP(1*(trust2!$A10-trust2!G$1))/(1+EXP(1*(trust2!$A10-trust2!G$1))) -> 0.6082773961
A11: 1.212448714 | B11: =EXP(1*(trust2!$A11-trust2!B$1))/(1+EXP(1*(trust2!$A11-trust2!B$1))) -> 0.8086667206 | C11: =EXP(1*(trust2!$A11-trust2!C$1))/(1+EXP(1*(trust2!$A11-trust2!C$1))) -> 0.8361671014 | D11: =EXP(1*(trust2!$A11-trust2!D$1))/(1+EXP(1*(trust2!$A11-trust2!D$1))) -> 0.7862355104 | E11: =EXP(1*(trust2!$A11-trust2!E$1))/(1+EXP(1*(trust2!$A11-trust2!E$1))) -> 0.7958789883 | F11: =EXP(1*(trust2!$A11-trust2!F$1))/(1+EXP(1*(trust2!$A11-trust2!F$1))) -> 0.6774842941 | G11: =EXP(1*(trust2!$A11-trust2!G$1))/(1+EXP(1*(trust2!$A11-trust2!G$1))) -> 0.6895444883
A12: 0.5320187049 | B12: =EXP(1*(trust2!$A12-trust2!B$1))/(1+EXP(1*(trust2!$A12-trust2!B$1))) -> 0.6815577903 | C12: =EXP(1*(trust2!$A12-trust2!C$1))/(1+EXP(1*(trust2!$A12-trust2!C$1))) -> 0.7210249658 | D12: =EXP(1*(trust2!$A12-trust2!D$1))/(1+EXP(1*(trust2!$A12-trust2!D$1))) -> 0.6506622513 | E12: =EXP(1*(trust2!$A12-trust2!E$1))/(1+EXP(1*(trust2!$A12-trust2!E$1))) -> 0.6638065722 | F12: =EXP(1*(trust2!$A12-trust2!F$1))/(1+EXP(1*(trust2!$A12-trust2!F$1))) -> 0.515446215 | G12: =EXP(1*(trust2!$A12-trust2!G$1))/(1+EXP(1*(trust2!$A12-trust2!G$1))) -> 0.5293563472
A13: 0.9008604826 | B13: =EXP(1*(trust2!$A13-trust2!B$1))/(1+EXP(1*(trust2!$A13-trust2!B$1))) -> 0.7557986308 | C13: =EXP(1*(trust2!$A13-trust2!C$1))/(1+EXP(1*(trust2!$A13-trust2!C$1))) -> 0.7889142604 | D13: =EXP(1*(trust2!$A13-trust2!D$1))/(1+EXP(1*(trust2!$A13-trust2!D$1))) -> 0.7292445765 | E13: =EXP(1*(trust2!$A13-trust2!E$1))/(1+EXP(1*(trust2!$A13-trust2!E$1))) -> 0.7406108559 | F13: =EXP(1*(trust2!$A13-trust2!F$1))/(1+EXP(1*(trust2!$A13-trust2!F$1))) -> 0.6060279892 | G13: =EXP(1*(trust2!$A13-trust2!G$1))/(1+EXP(1*(trust2!$A13-trust2!G$1))) -> 0.6192585584
A14: 0.8612287 | B14: =EXP(1*(trust2!$A14-trust2!B$1))/(1+EXP(1*(trust2!$A14-trust2!B$1))) -> 0.7484099718 | C14: =EXP(1*(trust2!$A14-trust2!C$1))/(1+EXP(1*(trust2!$A14-trust2!C$1))) -> 0.7822388764 | D14: =EXP(1*(trust2!$A14-trust2!D$1))/(1+EXP(1*(trust2!$A14-trust2!D$1))) -> 0.7213486994 | E14: =EXP(1*(trust2!$A14-trust2!E$1))/(1+EXP(1*(trust2!$A14-trust2!E$1))) -> 0.7329250515 | F14: =EXP(1*(trust2!$A14-trust2!F$1))/(1+EXP(1*(trust2!$A14-trust2!F$1))) -> 0.5965269007 | G14: =EXP(1*(trust2!$A14-trust2!G$1))/(1+EXP(1*(trust2!$A14-trust2!G$1))) -> 0.6098711396
A15: 1.022358793 | B15: =EXP(1*(trust2!$A15-trust2!B$1))/(1+EXP(1*(trust2!$A15-trust2!B$1))) -> 0.7775213777 | C15: =EXP(1*(trust2!$A15-trust2!C$1))/(1+EXP(1*(trust2!$A15-trust2!C$1))) -> 0.8084378579 | D15: =EXP(1*(trust2!$A15-trust2!D$1))/(1+EXP(1*(trust2!$A15-trust2!D$1))) -> 0.7525560832 | E15: =EXP(1*(trust2!$A15-trust2!E$1))/(1+EXP(1*(trust2!$A15-trust2!E$1))) -> 0.7632614411 | F15: =EXP(1*(trust2!$A15-trust2!F$1))/(1+EXP(1*(trust2!$A15-trust2!F$1))) -> 0.6346330146 | G15: =EXP(1*(trust2!$A15-trust2!G$1))/(1+EXP(1*(trust2!$A15-trust2!G$1))) -> 0.6474617715
A16: 0.989435044 | B16: =EXP(1*(trust2!$A16-trust2!B$1))/(1+EXP(1*(trust2!$A16-trust2!B$1))) -> 0.7717741721 | C16: =EXP(1*(trust2!$A16-trust2!C$1))/(1+EXP(1*(trust2!$A16-trust2!C$1))) -> 0.8032872468 | D16: =EXP(1*(trust2!$A16-trust2!D$1))/(1+EXP(1*(trust2!$A16-trust2!D$1))) -> 0.7463743298 | E16: =EXP(1*(trust2!$A16-trust2!E$1))/(1+EXP(1*(trust2!$A16-trust2!E$1))) -> 0.7572608682 | F16: =EXP(1*(trust2!$A16-trust2!F$1))/(1+EXP(1*(trust2!$A16-trust2!F$1))) -> 0.6269655604 | G16: =EXP(1*(trust2!$A16-trust2!G$1))/(1+EXP(1*(trust2!$A16-trust2!G$1))) -> 0.6399107823
A17: 0.82362933 | B17: =EXP(1*(trust2!$A17-trust2!B$1))/(1+EXP(1*(trust2!$A17-trust2!B$1))) -> 0.7412643947 | C17: =EXP(1*(trust2!$A17-trust2!C$1))/(1+EXP(1*(trust2!$A17-trust2!C$1))) -> 0.7757662287 | D17: =EXP(1*(trust2!$A17-trust2!D$1))/(1+EXP(1*(trust2!$A17-trust2!D$1))) -> 0.7137285256 | E17: =EXP(1*(trust2!$A17-trust2!E$1))/(1+EXP(1*(trust2!$A17-trust2!E$1))) -> 0.7255009841 | F17: =EXP(1*(trust2!$A17-trust2!F$1))/(1+EXP(1*(trust2!$A17-trust2!F$1))) -> 0.5874454984 | G17: =EXP(1*(trust2!$A17-trust2!G$1))/(1+EXP(1*(trust2!$A17-trust2!G$1))) -> 0.6008891369
A18: 1.157725229 | B18: =EXP(1*(trust2!$A18-trust2!B$1))/(1+EXP(1*(trust2!$A18-trust2!B$1))) -> 0.8000563454 | C18: =EXP(1*(trust2!$A18-trust2!C$1))/(1+EXP(1*(trust2!$A18-trust2!C$1))) -> 0.8285318854 | D18: =EXP(1*(trust2!$A18-trust2!D$1))/(1+EXP(1*(trust2!$A18-trust2!D$1))) -> 0.7768941867 | E18: =EXP(1*(trust2!$A18-trust2!E$1))/(1+EXP(1*(trust2!$A18-trust2!E$1))) -> 0.7868448279 | F18: =EXP(1*(trust2!$A18-trust2!F$1))/(1+EXP(1*(trust2!$A18-trust2!F$1))) -> 0.6654130189 | G18: =EXP(1*(trust2!$A18-trust2!G$1))/(1+EXP(1*(trust2!$A18-trust2!G$1))) -> 0.6777098722
A19: 1.380422632 | B19: =EXP(1*(trust2!$A19-trust2!B$1))/(1+EXP(1*(trust2!$A19-trust2!B$1))) -> 0.833320284 | C19: =EXP(1*(trust2!$A19-trust2!C$1))/(1+EXP(1*(trust2!$A19-trust2!C$1))) -> 0.8578998645 | D19: =EXP(1*(trust2!$A19-trust2!D$1))/(1+EXP(1*(trust2!$A19-trust2!D$1))) -> 0.8131113997 | E19: =EXP(1*(trust2!$A19-trust2!E$1))/(1+EXP(1*(trust2!$A19-trust2!E$1))) -> 0.8218172086 | F19: =EXP(1*(trust2!$A19-trust2!F$1))/(1+EXP(1*(trust2!$A19-trust2!F$1))) -> 0.7130428168 | G19: =EXP(1*(trust2!$A19-trust2!G$1))/(1+EXP(1*(trust2!$A19-trust2!G$1))) -> 0.7243144116
A20: 0.888981045 | B20: =EXP(1*(trust2!$A20-trust2!B$1))/(1+EXP(1*(trust2!$A20-trust2!B$1))) -> 0.7535994209 | C20: =EXP(1*(trust2!$A20-trust2!C$1))/(1+EXP(1*(trust2!$A20-trust2!C$1))) -> 0.7869292052 | D20: =EXP(1*(trust2!$A20-trust2!D$1))/(1+EXP(1*(trust2!$A20-trust2!D$1))) -> 0.7268926408 | E20: =EXP(1*(trust2!$A20-trust2!E$1))/(1+EXP(1*(trust2!$A20-trust2!E$1))) -> 0.738322225 | F20: =EXP(1*(trust2!$A20-trust2!F$1))/(1+EXP(1*(trust2!$A20-trust2!F$1))) -> 0.6031881341 | G20: =EXP(1*(trust2!$A20-trust2!G$1))/(1+EXP(1*(trust2!$A20-trust2!G$1))) -> 0.6164537148
A21: 0.9021141338 | B21: =EXP(1*(trust2!$A21-trust2!B$1))/(1+EXP(1*(trust2!$A21-trust2!B$1))) -> 0.7560299393 | C21: =EXP(1*(trust2!$A21-trust2!C$1))/(1+EXP(1*(trust2!$A21-trust2!C$1))) -> 0.7891229535 | D21: =EXP(1*(trust2!$A21-trust2!D$1))/(1+EXP(1*(trust2!$A21-trust2!D$1))) -> 0.729492035 | E21: =EXP(1*(trust2!$A21-trust2!E$1))/(1+EXP(1*(trust2!$A21-trust2!E$1))) -> 0.7408516177 | F21: =EXP(1*(trust2!$A21-trust2!F$1))/(1+EXP(1*(trust2!$A21-trust2!F$1))) -> 0.6063272687 | G21: =EXP(1*(trust2!$A21-trust2!G$1))/(1+EXP(1*(trust2!$A21-trust2!G$1))) -> 0.6195540968
A22: 1.324416142 | B22: =EXP(1*(trust2!$A22-trust2!B$1))/(1+EXP(1*(trust2!$A22-trust2!B$1))) -> 0.8253952436 | C22: =EXP(1*(trust2!$A22-trust2!C$1))/(1+EXP(1*(trust2!$A22-trust2!C$1))) -> 0.8509344435 | D22: =EXP(1*(trust2!$A22-trust2!D$1))/(1+EXP(1*(trust2!$A22-trust2!D$1))) -> 0.8044509755 | E22: =EXP(1*(trust2!$A22-trust2!E$1))/(1+EXP(1*(trust2!$A22-trust2!E$1))) -> 0.8134676633 | F22: =EXP(1*(trust2!$A22-trust2!F$1))/(1+EXP(1*(trust2!$A22-trust2!F$1))) -> 0.7014478565 | G22: =EXP(1*(trust2!$A22-trust2!G$1))/(1+EXP(1*(trust2!$A22-trust2!G$1))) -> 0.7129915751
A23: 1.13466865 | B23: =EXP(1*(trust2!$A23-trust2!B$1))/(1+EXP(1*(trust2!$A23-trust2!B$1))) -> 0.7963425438 | C23: =EXP(1*(trust2!$A23-trust2!C$1))/(1+EXP(1*(trust2!$A23-trust2!C$1))) -> 0.825231457 | D23: =EXP(1*(trust2!$A23-trust2!D$1))/(1+EXP(1*(trust2!$A23-trust2!D$1))) -> 0.7728723004 | E23: =EXP(1*(trust2!$A23-trust2!E$1))/(1+EXP(1*(trust2!$A23-trust2!E$1))) -> 0.7829522054 | F23: =EXP(1*(trust2!$A23-trust2!F$1))/(1+EXP(1*(trust2!$A23-trust2!F$1))) -> 0.6602603126 | G23: =EXP(1*(trust2!$A23-trust2!G$1))/(1+EXP(1*(trust2!$A23-trust2!G$1))) -> 0.6726533783
A24: 1.185922222 | B24: =EXP(1*(trust2!$A24-trust2!B$1))/(1+EXP(1*(trust2!$A24-trust2!B$1))) -> 0.8045287748 | C24: =EXP(1*(trust2!$A24-trust2!C$1))/(1+EXP(1*(trust2!$A24-trust2!C$1))) -> 0.8325007133 | D24: =EXP(1*(trust2!$A24-trust2!D$1))/(1+EXP(1*(trust2!$A24-trust2!D$1))) -> 0.7817433787 | E24: =EXP(1*(trust2!$A24-trust2!E$1))/(1+EXP(1*(trust2!$A24-trust2!E$1))) -> 0.7915357769 | F24: =EXP(1*(trust2!$A24-trust2!F$1))/(1+EXP(1*(trust2!$A24-trust2!F$1))) -> 0.6716611996 | G24: =EXP(1*(trust2!$A24-trust2!G$1))/(1+EXP(1*(trust2!$A24-trust2!G$1))) -> 0.683837526
A25: 1.100884764 | B25: =EXP(1*(trust2!$A25-trust2!B$1))/(1+EXP(1*(trust2!$A25-trust2!B$1))) -> 0.7908085584 | C25: =EXP(1*(trust2!$A25-trust2!C$1))/(1+EXP(1*(trust2!$A25-trust2!C$1))) -> 0.8203053354 | D25: =EXP(1*(trust2!$A25-trust2!D$1))/(1+EXP(1*(trust2!$A25-trust2!D$1))) -> 0.7668872481 | E25: =EXP(1*(trust2!$A25-trust2!E$1))/(1+EXP(1*(trust2!$A25-trust2!E$1))) -> 0.7771561836 | F25: =EXP(1*(trust2!$A25-trust2!F$1))/(1+EXP(1*(trust2!$A25-trust2!F$1))) -> 0.6526414998 | G25: =EXP(1*(trust2!$A25-trust2!G$1))/(1+EXP(1*(trust2!$A25-trust2!G$1))) -> 0.6651715479
A26: 1.011185823 | B26: =EXP(1*(trust2!$A26-trust2!B$1))/(1+EXP(1*(trust2!$A26-trust2!B$1))) -> 0.7755826649 | C26: =EXP(1*(trust2!$A26-trust2!C$1))/(1+EXP(1*(trust2!$A26-trust2!C$1))) -> 0.8067015782 | D26: =EXP(1*(trust2!$A26-trust2!D$1))/(1+EXP(1*(trust2!$A26-trust2!D$1))) -> 0.7504696379 | E26: =EXP(1*(trust2!$A26-trust2!E$1))/(1+EXP(1*(trust2!$A26-trust2!E$1))) -> 0.7612366241 | F26: =EXP(1*(trust2!$A26-trust2!F$1))/(1+EXP(1*(trust2!$A26-trust2!F$1))) -> 0.6320384178 | G26: =EXP(1*(trust2!$A26-trust2!G$1))/(1+EXP(1*(trust2!$A26-trust2!G$1))) -> 0.6449073027
A27: 0.6509740497 | B27: =EXP(1*(trust2!$A27-trust2!B$1))/(1+EXP(1*(trust2!$A27-trust2!B$1))) -> 0.7068005403 | C27: =EXP(1*(trust2!$A27-trust2!C$1))/(1+EXP(1*(trust2!$A27-trust2!C$1))) -> 0.7443128494 | D27: =EXP(1*(trust2!$A27-trust2!D$1))/(1+EXP(1*(trust2!$A27-trust2!D$1))) -> 0.6771941214 | E27: =EXP(1*(trust2!$A27-trust2!E$1))/(1+EXP(1*(trust2!$A27-trust2!E$1))) -> 0.6898160529 | F27: =EXP(1*(trust2!$A27-trust2!F$1))/(1+EXP(1*(trust2!$A27-trust2!F$1))) -> 0.5450673231 | G27: =EXP(1*(trust2!$A27-trust2!G$1))/(1+EXP(1*(trust2!$A27-trust2!G$1))) -> 0.5588548802
A28: 0.9131639796 | B28: =EXP(1*(trust2!$A28-trust2!B$1))/(1+EXP(1*(trust2!$A28-trust2!B$1))) -> 0.7580622982 | C28: =EXP(1*(trust2!$A28-trust2!C$1))/(1+EXP(1*(trust2!$A28-trust2!C$1))) -> 0.790955861 | D28: =EXP(1*(trust2!$A28-trust2!D$1))/(1+EXP(1*(trust2!$A28-trust2!D$1))) -> 0.7316670011 | E28: =EXP(1*(trust2!$A28-trust2!E$1))/(1+EXP(1*(trust2!$A28-trust2!E$1))) -> 0.7429674306 | F28: =EXP(1*(trust2!$A28-trust2!F$1))/(1+EXP(1*(trust2!$A28-trust2!F$1))) -> 0.6089616843 | G28: =EXP(1*(trust2!$A28-trust2!G$1))/(1+EXP(1*(trust2!$A28-trust2!G$1))) -> 0.6221551581
A29: 1.101413172 | B29: =EXP(1*(trust2!$A29-trust2!B$1))/(1+EXP(1*(trust2!$A29-trust2!B$1))) -> 0.7908959597 | C29: =EXP(1*(trust2!$A29-trust2!C$1))/(1+EXP(1*(trust2!$A29-trust2!C$1))) -> 0.8203832119 | D29: =EXP(1*(trust2!$A29-trust2!D$1))/(1+EXP(1*(trust2!$A29-trust2!D$1))) -> 0.7669816989 | E29: =EXP(1*(trust2!$A29-trust2!E$1))/(1+EXP(1*(trust2!$A29-trust2!E$1))) -> 0.7772476822 | F29: =EXP(1*(trust2!$A29-trust2!F$1))/(1+EXP(1*(trust2!$A29-trust2!F$1))) -> 0.6527612806 | G29: =EXP(1*(trust2!$A29-trust2!G$1))/(1+EXP(1*(trust2!$A29-trust2!G$1))) -> 0.6652892238
A30: 1.264292719 | B30: =EXP(1*(trust2!$A30-trust2!B$1))/(1+EXP(1*(trust2!$A30-trust2!B$1))) -> 0.8165601934 | C30: =EXP(1*(trust2!$A30-trust2!C$1))/(1+EXP(1*(trust2!$A30-trust2!C$1))) -> 0.8431461038 | D30: =EXP(1*(trust2!$A30-trust2!D$1))/(1+EXP(1*(trust2!$A30-trust2!D$1))) -> 0.7948195857 | E30: =EXP(1*(trust2!$A30-trust2!E$1))/(1+EXP(1*(trust2!$A30-trust2!E$1))) -> 0.8041722658 | F30: =EXP(1*(trust2!$A30-trust2!F$1))/(1+EXP(1*(trust2!$A30-trust2!F$1))) -> 0.6887064006 | G30: =EXP(1*(trust2!$A30-trust2!G$1))/(1+EXP(1*(trust2!$A30-trust2!G$1))) -> 0.7005324472
A31: 1.074694465 | B31: =EXP(1*(trust2!$A31-trust2!B$1))/(1+EXP(1*(trust2!$A31-trust2!B$1))) -> 0.7864428861 | C31: =EXP(1*(trust2!$A31-trust2!C$1))/(1+EXP(1*(trust2!$A31-trust2!C$1))) -> 0.8164123321 | D31: =EXP(1*(trust2!$A31-trust2!D$1))/(1+EXP(1*(trust2!$A31-trust2!D$1))) -> 0.7621724909 | E31: =EXP(1*(trust2!$A31-trust2!E$1))/(1+EXP(1*(trust2!$A31-trust2!E$1))) -> 0.7725875291 | F31: =EXP(1*(trust2!$A31-trust2!F$1))/(1+EXP(1*(trust2!$A31-trust2!F$1))) -> 0.6466806547 | G31: =EXP(1*(trust2!$A31-trust2!G$1))/(1+EXP(1*(trust2!$A31-trust2!G$1))) -> 0.6593134807
A32: 0.8106212137 | B32: =EXP(1*(trust2!$A32-trust2!B$1))/(1+EXP(1*(trust2!$A32-trust2!B$1))) -> 0.7387617296 | C32: =EXP(1*(trust2!$A32-trust2!C$1))/(1+EXP(1*(trust2!$A32-trust2!C$1))) -> 0.7734953139 | D32: =EXP(1*(trust2!$A32-trust2!D$1))/(1+EXP(1*(trust2!$A32-trust2!D$1))) -> 0.7110633336 | E32: =EXP(1*(trust2!$A32-trust2!E$1))/(1+EXP(1*(trust2!$A32-trust2!E$1))) -> 0.7229028422 | F32: =EXP(1*(trust2!$A32-trust2!F$1))/(1+EXP(1*(trust2!$A32-trust2!F$1))) -> 0.5842893931 | G32: =EXP(1*(trust2!$A32-trust2!G$1))/(1+EXP(1*(trust2!$A32-trust2!G$1))) -> 0.597765457
A33: 1.447182068 | B33: =EXP(1*(trust2!$A33-trust2!B$1))/(1+EXP(1*(trust2!$A33-trust2!B$1))) -> 0.8423878668 | C33: =EXP(1*(trust2!$A33-trust2!C$1))/(1+EXP(1*(trust2!$A33-trust2!C$1))) -> 0.8658455542 | D33: =EXP(1*(trust2!$A33-trust2!D$1))/(1+EXP(1*(trust2!$A33-trust2!D$1))) -> 0.8230449164 | E33: =EXP(1*(trust2!$A33-trust2!E$1))/(1+EXP(1*(trust2!$A33-trust2!E$1))) -> 0.8313839508 | F33: =EXP(1*(trust2!$A33-trust2!F$1))/(1+EXP(1*(trust2!$A33-trust2!F$1))) -> 0.7265061651 | G33: =EXP(1*(trust2!$A33-trust2!G$1))/(1+EXP(1*(trust2!$A33-trust2!G$1))) -> 0.7374436514
A34: 1.430912762 | B34: =EXP(1*(trust2!$A34-trust2!B$1))/(1+EXP(1*(trust2!$A34-trust2!B$1))) -> 0.8402157303 | C34: =EXP(1*(trust2!$A34-trust2!C$1))/(1+EXP(1*(trust2!$A34-trust2!C$1))) -> 0.8639444866 | D34: =EXP(1*(trust2!$A34-trust2!D$1))/(1+EXP(1*(trust2!$A34-trust2!D$1))) -> 0.820662956 | E34: =EXP(1*(trust2!$A34-trust2!E$1))/(1+EXP(1*(trust2!$A34-trust2!E$1))) -> 0.8290909314 | F34: =EXP(1*(trust2!$A34-trust2!F$1))/(1+EXP(1*(trust2!$A34-trust2!F$1))) -> 0.7232616512 | G34: =EXP(1*(trust2!$A34-trust2!G$1))/(1+EXP(1*(trust2!$A34-trust2!G$1))) -> 0.734281434
A35: 1.112362964 | B35: =EXP(1*(trust2!$A35-trust2!B$1))/(1+EXP(1*(trust2!$A35-trust2!B$1))) -> 0.7927010635 | C35: =EXP(1*(trust2!$A35-trust2!C$1))/(1+EXP(1*(trust2!$A35-trust2!C$1))) -> 0.8219910575 | D35: =EXP(1*(trust2!$A35-trust2!D$1))/(1+EXP(1*(trust2!$A35-trust2!D$1))) -> 0.7689329305 | E35: =EXP(1*(trust2!$A35-trust2!E$1))/(1+EXP(1*(trust2!$A35-trust2!E$1))) -> 0.7791377039 | F35: =EXP(1*(trust2!$A35-trust2!F$1))/(1+EXP(1*(trust2!$A35-trust2!F$1))) -> 0.6552390348 | G35: =EXP(1*(trust2!$A35-trust2!G$1))/(1+EXP(1*(trust2!$A35-trust2!G$1))) -> 0.6677230884
A36: 1.289285131 | B36: =EXP(1*(trust2!$A36-trust2!B$1))/(1+EXP(1*(trust2!$A36-trust2!B$1))) -> 0.8202742208 | C36: =EXP(1*(trust2!$A36-trust2!C$1))/(1+EXP(1*(trust2!$A36-trust2!C$1))) -> 0.8464230949 | D36: =EXP(1*(trust2!$A36-trust2!D$1))/(1+EXP(1*(trust2!$A36-trust2!D$1))) -> 0.7988653627 | E36: =EXP(1*(trust2!$A36-trust2!E$1))/(1+EXP(1*(trust2!$A36-trust2!E$1))) -> 0.8080781559 | F36: =EXP(1*(trust2!$A36-trust2!F$1))/(1+EXP(1*(trust2!$A36-trust2!F$1))) -> 0.6940390935 | G36: =EXP(1*(trust2!$A36-trust2!G$1))/(1+EXP(1*(trust2!$A36-trust2!G$1))) -> 0.7057491076
A37: 1.009374713 | B37: =EXP(1*(trust2!$A37-trust2!B$1))/(1+EXP(1*(trust2!$A37-trust2!B$1))) -> 0.7752672763 | C37: =EXP(1*(trust2!$A37-trust2!C$1))/(1+EXP(1*(trust2!$A37-trust2!C$1))) -> 0.8064190075 | D37: =EXP(1*(trust2!$A37-trust2!D$1))/(1+EXP(1*(trust2!$A37-trust2!D$1))) -> 0.7501303267 | E37: =EXP(1*(trust2!$A37-trust2!E$1))/(1+EXP(1*(trust2!$A37-trust2!E$1))) -> 0.7609072894 | F37: =EXP(1*(trust2!$A37-trust2!F$1))/(1+EXP(1*(trust2!$A37-trust2!F$1))) -> 0.631617115 | G37: =EXP(1*(trust2!$A37-trust2!G$1))/(1+EXP(1*(trust2!$A37-trust2!G$1))) -> 0.6444924464
A38: 0.5431757222 | B38: =EXP(1*(trust2!$A38-trust2!B$1))/(1+EXP(1*(trust2!$A38-trust2!B$1))) -> 0.6839743531 | C38: =EXP(1*(trust2!$A38-trust2!C$1))/(1+EXP(1*(trust2!$A38-trust2!C$1))) -> 0.7232636334 | D38: =EXP(1*(trust2!$A38-trust2!D$1))/(1+EXP(1*(trust2!$A38-trust2!D$1))) -> 0.6531939693 | E38: =EXP(1*(trust2!$A38-trust2!E$1))/(1+EXP(1*(trust2!$A38-trust2!E$1))) -> 0.6662918869 | F38: =EXP(1*(trust2!$A38-trust2!F$1))/(1+EXP(1*(trust2!$A38-trust2!F$1))) -> 0.5182322984 | G38: =EXP(1*(trust2!$A38-trust2!G$1))/(1+EXP(1*(trust2!$A38-trust2!G$1))) -> 0.5321350475
A39: 0.3861310621 | B39: =EXP(1*(trust2!$A39-trust2!B$1))/(1+EXP(1*(trust2!$A39-trust2!B$1))) -> 0.6490924573 | C39: =EXP(1*(trust2!$A39-trust2!C$1))/(1+EXP(1*(trust2!$A39-trust2!C$1))) -> 0.690757663 | D39: =EXP(1*(trust2!$A39-trust2!D$1))/(1+EXP(1*(trust2!$A39-trust2!D$1))) -> 0.6168179768 | E39: =EXP(1*(trust2!$A39-trust2!E$1))/(1+EXP(1*(trust2!$A39-trust2!E$1))) -> 0.6305125966 | F39: =EXP(1*(trust2!$A39-trust2!F$1))/(1+EXP(1*(trust2!$A39-trust2!F$1))) -> 0.4789915967 | G39: =EXP(1*(trust2!$A39-trust2!G$1))/(1+EXP(1*(trust2!$A39-trust2!G$1))) -> 0.4929187121
A40: 0.5629973223 | B40: =EXP(1*(trust2!$A40-trust2!B$1))/(1+EXP(1*(trust2!$A40-trust2!B$1))) -> 0.6882431535 | C40: =EXP(1*(trust2!$A40-trust2!C$1))/(1+EXP(1*(trust2!$A40-trust2!C$1))) -> 0.7272133843 | D40: =EXP(1*(trust2!$A40-trust2!D$1))/(1+EXP(1*(trust2!$A40-trust2!D$1))) -> 0.6576704486 | E40: =EXP(1*(trust2!$A40-trust2!E$1))/(1+EXP(1*(trust2!$A40-trust2!E$1))) -> 0.6706845376 | F40: =EXP(1*(trust2!$A40-trust2!F$1))/(1+EXP(1*(trust2!$A40-trust2!F$1))) -> 0.5231791596 | G40: =EXP(1*(trust2!$A40-trust2!G$1))/(1+EXP(1*(trust2!$A40-trust2!G$1))) -> 0.5370666757
A41: 1.101494899 | B41: =EXP(1*(trust2!$A41-trust2!B$1))/(1+EXP(1*(trust2!$A41-trust2!B$1))) -> 0.7909094753 | C41: =EXP(1*(trust2!$A41-trust2!C$1))/(1+EXP(1*(trust2!$A41-trust2!C$1))) -> 0.8203952544 | D41: =EXP(1*(trust2!$A41-trust2!D$1))/(1+EXP(1*(trust2!$A41-trust2!D$1))) -> 0.7669963048 | E41: =EXP(1*(trust2!$A41-trust2!E$1))/(1+EXP(1*(trust2!$A41-trust2!E$1))) -> 0.7772618315 | F41: =EXP(1*(trust2!$A41-trust2!F$1))/(1+EXP(1*(trust2!$A41-trust2!F$1))) -> 0.6527798048 | G41: =EXP(1*(trust2!$A41-trust2!G$1))/(1+EXP(1*(trust2!$A41-trust2!G$1))) -> 0.6653074224
A42: 1.22410321 | B42: =EXP(1*(trust2!$A42-trust2!B$1))/(1+EXP(1*(trust2!$A42-trust2!B$1))) -> 0.8104634769 | C42: =EXP(1*(trust2!$A42-trust2!C$1))/(1+EXP(1*(trust2!$A42-trust2!C$1))) -> 0.8377574217 | D42: =EXP(1*(trust2!$A42-trust2!D$1))/(1+EXP(1*(trust2!$A42-trust2!D$1))) -> 0.788187738 | E42: =EXP(1*(trust2!$A42-trust2!E$1))/(1+EXP(1*(trust2!$A42-trust2!E$1))) -> 0.797765799 | F42: =EXP(1*(trust2!$A42-trust2!F$1))/(1+EXP(1*(trust2!$A42-trust2!F$1))) -> 0.6800255083 | G42: =EXP(1*(trust2!$A42-trust2!G$1))/(1+EXP(1*(trust2!$A42-trust2!G$1))) -> 0.6920338725
A43: 0.7127342155 | B43: =EXP(1*(trust2!$A43-trust2!B$1))/(1+EXP(1*(trust2!$A43-trust2!B$1))) -> 0.7194339482 | C43: =EXP(1*(trust2!$A43-trust2!C$1))/(1+EXP(1*(trust2!$A43-trust2!C$1))) -> 0.7558881658 | D43: =EXP(1*(trust2!$A43-trust2!D$1))/(1+EXP(1*(trust2!$A43-trust2!D$1))) -> 0.6905446864 | E43: =EXP(1*(trust2!$A43-trust2!E$1))/(1+EXP(1*(trust2!$A43-trust2!E$1))) -> 0.702873642 | F43: =EXP(1*(trust2!$A43-trust2!F$1))/(1+EXP(1*(trust2!$A43-trust2!F$1))) -> 0.5603345788 | G43: =EXP(1*(trust2!$A43-trust2!G$1))/(1+EXP(1*(trust2!$A43-trust2!G$1))) -> 0.574021043
A44: 0.8006624685 | B44: =EXP(1*(trust2!$A44-trust2!B$1))/(1+EXP(1*(trust2!$A44-trust2!B$1))) -> 0.7368351982 | C44: =EXP(1*(trust2!$A44-trust2!C$1))/(1+EXP(1*(trust2!$A44-trust2!C$1))) -> 0.7717457879 | D44: =EXP(1*(trust2!$A44-trust2!D$1))/(1+EXP(1*(trust2!$A44-trust2!D$1))) -> 0.7090129941 | E44: =EXP(1*(trust2!$A44-trust2!E$1))/(1+EXP(1*(trust2!$A44-trust2!E$1))) -> 0.7209035413 | F44: =EXP(1*(trust2!$A44-trust2!F$1))/(1+EXP(1*(trust2!$A44-trust2!F$1))) -> 0.5818684486 | G44: =EXP(1*(trust2!$A44-trust2!G$1))/(1+EXP(1*(trust2!$A44-trust2!G$1))) -> 0.5953686435
A45: 0.8112580124 | B45: =EXP(1*(trust2!$A45-trust2!B$1))/(1+EXP(1*(trust2!$A45-trust2!B$1))) -> 0.7388846085 | C45: =EXP(1*(trust2!$A45-trust2!C$1))/(1+EXP(1*(trust2!$A45-trust2!C$1))) -> 0.7736068617 | D45: =EXP(1*(trust2!$A45-trust2!D$1))/(1+EXP(1*(trust2!$A45-trust2!D$1))) -> 0.7111941477 | E45: =EXP(1*(trust2!$A45-trust2!E$1))/(1+EXP(1*(trust2!$A45-trust2!E$1))) -> 0.7230303839 | F45: =EXP(1*(trust2!$A45-trust2!F$1))/(1+EXP(1*(trust2!$A45-trust2!F$1))) -> 0.5844440602 | G45: =EXP(1*(trust2!$A45-trust2!G$1))/(1+EXP(1*(trust2!$A45-trust2!G$1))) -> 0.5979185606
A46: 1.332051702 | B46: =EXP(1*(trust2!$A46-trust2!B$1))/(1+EXP(1*(trust2!$A46-trust2!B$1))) -> 0.8264929321 | C46: =EXP(1*(trust2!$A46-trust2!C$1))/(1+EXP(1*(trust2!$A46-trust2!C$1))) -> 0.8519003833 | D46: =EXP(1*(trust2!$A46-trust2!D$1))/(1+EXP(1*(trust2!$A46-trust2!D$1))) -> 0.8056493308 | E46: =EXP(1*(trust2!$A46-trust2!E$1))/(1+EXP(1*(trust2!$A46-trust2!E$1))) -> 0.814623496 | F46: =EXP(1*(trust2!$A46-trust2!F$1))/(1+EXP(1*(trust2!$A46-trust2!F$1))) -> 0.7030444225 | G46: =EXP(1*(trust2!$A46-trust2!G$1))/(1+EXP(1*(trust2!$A46-trust2!G$1))) -> 0.7145515303
A47: 0.8477903324 | B47: =EXP(1*(trust2!$A47-trust2!B$1))/(1+EXP(1*(trust2!$A47-trust2!B$1))) -> 0.7458711914 | C47: =EXP(1*(trust2!$A47-trust2!C$1))/(1+EXP(1*(trust2!$A47-trust2!C$1))) -> 0.779941088 | D47: =EXP(1*(trust2!$A47-trust2!D$1))/(1+EXP(1*(trust2!$A47-trust2!D$1))) -> 0.7186395058 | E47: =EXP(1*(trust2!$A47-trust2!E$1))/(1+EXP(1*(trust2!$A47-trust2!E$1))) -> 0.7302863261 | F47: =EXP(1*(trust2!$A47-trust2!F$1))/(1+EXP(1*(trust2!$A47-trust2!F$1))) -> 0.5932883678 | G47: =EXP(1*(trust2!$A47-trust2!G$1))/(1+EXP(1*(trust2!$A47-trust2!G$1))) -> 0.6066690916
A48: 1.110740205 | B48: =EXP(1*(trust2!$A48-trust2!B$1))/(1+EXP(1*(trust2!$A48-trust2!B$1))) -> 0.7924342751 | C48: =EXP(1*(trust2!$A48-trust2!C$1))/(1+EXP(1*(trust2!$A48-trust2!C$1))) -> 0.8217534884 | D48: =EXP(1*(trust2!$A48-trust2!D$1))/(1+EXP(1*(trust2!$A48-trust2!D$1))) -> 0.7686444807 | E48: =EXP(1*(trust2!$A48-trust2!E$1))/(1+EXP(1*(trust2!$A48-trust2!E$1))) -> 0.7788583294 | F48: =EXP(1*(trust2!$A48-trust2!F$1))/(1+EXP(1*(trust2!$A48-trust2!F$1))) -> 0.6548723597 | G48: =EXP(1*(trust2!$A48-trust2!G$1))/(1+EXP(1*(trust2!$A48-trust2!G$1))) -> 0.6673629504
A49: 1.075026116 | B49: =EXP(1*(trust2!$A49-trust2!B$1))/(1+EXP(1*(trust2!$A49-trust2!B$1))) -> 0.7864985819 | C49: =EXP(1*(trust2!$A49-trust2!C$1))/(1+EXP(1*(trust2!$A49-trust2!C$1))) -> 0.8164620359 | D49: =EXP(1*(trust2!$A49-trust2!D$1))/(1+EXP(1*(trust2!$A49-trust2!D$1))) -> 0.7622326027 | E49: =EXP(1*(trust2!$A49-trust2!E$1))/(1+EXP(1*(trust2!$A49-trust2!E$1))) -> 0.7726457937 | F49: =EXP(1*(trust2!$A49-trust2!F$1))/(1+EXP(1*(trust2!$A49-trust2!F$1))) -> 0.6467564284 | G49: =EXP(1*(trust2!$A49-trust2!G$1))/(1+EXP(1*(trust2!$A49-trust2!G$1))) -> 0.6593879722
A50: 0.9947310822 | B50: =EXP(1*(trust2!$A50-trust2!B$1))/(1+EXP(1*(trust2!$A50-trust2!B$1))) -> 0.772705667 | C50: =EXP(1*(trust2!$A50-trust2!C$1))/(1+EXP(1*(trust2!$A50-trust2!C$1))) -> 0.804122766 | D50: =EXP(1*(trust2!$A50-trust2!D$1))/(1+EXP(1*(trust2!$A50-trust2!D$1))) -> 0.7473755594 | E50: =EXP(1*(trust2!$A50-trust2!E$1))/(1+EXP(1*(trust2!$A50-trust2!E$1))) -> 0.7582330424 | F50: =EXP(1*(trust2!$A50-trust2!F$1))/(1+EXP(1*(trust2!$A50-trust2!F$1))) -> 0.6282033613 | G50: =EXP(1*(trust2!$A50-trust2!G$1))/(1+EXP(1*(trust2!$A50-trust2!G$1))) -> 0.6411302153
A51: 1.191940406 | B51: =EXP(1*(trust2!$A51-trust2!B$1))/(1+EXP(1*(trust2!$A51-trust2!B$1))) -> 0.8054734735 | C51: =EXP(1*(trust2!$A51-trust2!C$1))/(1+EXP(1*(trust2!$A51-trust2!C$1))) -> 0.8333382301 | D51: =EXP(1*(trust2!$A51-trust2!D$1))/(1+EXP(1*(trust2!$A51-trust2!D$1))) -> 0.782768464 | E51: =EXP(1*(trust2!$A51-trust2!E$1))/(1+EXP(1*(trust2!$A51-trust2!E$1))) -> 0.7925270764 | F51: =EXP(1*(trust2!$A51-trust2!F$1))/(1+EXP(1*(trust2!$A51-trust2!F$1))) -> 0.6729870306 | G51: =EXP(1*(trust2!$A51-trust2!G$1))/(1+EXP(1*(trust2!$A51-trust2!G$1))) -> 0.685137238
A52: 0.6673939959 | B52: =EXP(1*(trust2!$A52-trust2!B$1))/(1+EXP(1*(trust2!$A52-trust2!B$1))) -> 0.7101917124 | C52: =EXP(1*(trust2!$A52-trust2!C$1))/(1+EXP(1*(trust2!$A52-trust2!C$1))) -> 0.7474251941 | D52: =EXP(1*(trust2!$A52-trust2!D$1))/(1+EXP(1*(trust2!$A52-trust2!D$1))) -> 0.680773065 | E52: =EXP(1*(trust2!$A52-trust2!E$1))/(1+EXP(1*(trust2!$A52-trust2!E$1))) -> 0.6933184317 | F52: =EXP(1*(trust2!$A52-trust2!F$1))/(1+EXP(1*(trust2!$A52-trust2!F$1))) -> 0.5491358576 | G52: =EXP(1*(trust2!$A52-trust2!G$1))/(1+EXP(1*(trust2!$A52-trust2!G$1))) -> 0.5628989906
A53: 1.172766137 | B53: =EXP(1*(trust2!$A53-trust2!B$1))/(1+EXP(1*(trust2!$A53-trust2!B$1))) -> 0.8024515272 | C53: =EXP(1*(trust2!$A53-trust2!C$1))/(1+EXP(1*(trust2!$A53-trust2!C$1))) -> 0.8306581521 | D53: =EXP(1*(trust2!$A53-trust2!D$1))/(1+EXP(1*(trust2!$A53-trust2!D$1))) -> 0.77949036 | E53: =EXP(1*(trust2!$A53-trust2!E$1))/(1+EXP(1*(trust2!$A53-trust2!E$1))) -> 0.7893566055 | F53: =EXP(1*(trust2!$A53-trust2!F$1))/(1+EXP(1*(trust2!$A53-trust2!F$1))) -> 0.668753331 | G53: =EXP(1*(trust2!$A53-trust2!G$1))/(1+EXP(1*(trust2!$A53-trust2!G$1))) -> 0.6809862759
A54: 0.8850091551 | B54: =EXP(1*(trust2!$A54-trust2!B$1))/(1+EXP(1*(trust2!$A54-trust2!B$1))) -> 0.7528611486 | C54: =EXP(1*(trust2!$A54-trust2!C$1))/(1+EXP(1*(trust2!$A54-trust2!C$1))) -> 0.786262473 | D54: =EXP(1*(trust2!$A54-trust2!D$1))/(1+EXP(1*(trust2!$A54-trust2!D$1))) -> 0.726103432 | E54: =EXP(1*(trust2!$A54-trust2!E$1))/(1+EXP(1*(trust2!$A54-trust2!E$1))) -> 0.7375541197 | F54: =EXP(1*(trust2!$A54-trust2!F$1))/(1+EXP(1*(trust2!$A54-trust2!F$1))) -> 0.6022370649 | G54: =EXP(1*(trust2!$A54-trust2!G$1))/(1+EXP(1*(trust2!$A54-trust2!G$1))) -> 0.6155141736
A55: 0.5472073405 | B55: =EXP(1*(trust2!$A55-trust2!B$1))/(1+EXP(1*(trust2!$A55-trust2!B$1))) -> 0.6848451542 | C55: =EXP(1*(trust2!$A55-trust2!C$1))/(1+EXP(1*(trust2!$A55-trust2!C$1))) -> 0.7240698485 | D55: =EXP(1*(trust2!$A55-trust2!D$1))/(1+EXP(1*(trust2!$A55-trust2!D$1))) -> 0.6541066933 | E55: =EXP(1*(trust2!$A55-trust2!E$1))/(1+EXP(1*(trust2!$A55-trust2!E$1))) -> 0.6671877034 | F55: =EXP(1*(trust2!$A55-trust2!F$1))/(1+EXP(1*(trust2!$A55-trust2!F$1))) -> 0.5192387874 | G55: =EXP(1*(trust2!$A55-trust2!G$1))/(1+EXP(1*(trust2!$A55-trust2!G$1))) -> 0.5331386574
A56: 0.7650674991 | B56: =EXP(1*(trust2!$A56-trust2!B$1))/(1+EXP(1*(trust2!$A56-trust2!B$1))) -> 0.7298750701 | C56: =EXP(1*(trust2!$A56-trust2!C$1))/(1+EXP(1*(trust2!$A56-trust2!C$1))) -> 0.7654150158 | D56: =EXP(1*(trust2!$A56-trust2!D$1))/(1+EXP(1*(trust2!$A56-trust2!D$1))) -> 0.7016150104 | E56: =EXP(1*(trust2!$A56-trust2!E$1))/(1+EXP(1*(trust2!$A56-trust2!E$1))) -> 0.713685784 | F56: =EXP(1*(trust2!$A56-trust2!F$1))/(1+EXP(1*(trust2!$A56-trust2!F$1))) -> 0.5731838887 | G56: =EXP(1*(trust2!$A56-trust2!G$1))/(1+EXP(1*(trust2!$A56-trust2!G$1))) -> 0.5867653469
A57: 1.488378586 | B57: =EXP(1*(trust2!$A57-trust2!B$1))/(1+EXP(1*(trust2!$A57-trust2!B$1))) -> 0.8477807213 | C57: =EXP(1*(trust2!$A57-trust2!C$1))/(1+EXP(1*(trust2!$A57-trust2!C$1))) -> 0.8705591121 | D57: =EXP(1*(trust2!$A57-trust2!D$1))/(1+EXP(1*(trust2!$A57-trust2!D$1))) -> 0.8289652322 | E57: =EXP(1*(trust2!$A57-trust2!E$1))/(1+EXP(1*(trust2!$A57-trust2!E$1))) -> 0.8370804973 | F57: =EXP(1*(trust2!$A57-trust2!F$1))/(1+EXP(1*(trust2!$A57-trust2!F$1))) -> 0.7346148941 | G57: =EXP(1*(trust2!$A57-trust2!G$1))/(1+EXP(1*(trust2!$A57-trust2!G$1))) -> 0.7453417673
A58: 1.046969696 | B58: =EXP(1*(trust2!$A58-trust2!B$1))/(1+EXP(1*(trust2!$A58-trust2!B$1))) -> 0.781749526 | C58: =EXP(1*(trust2!$A58-trust2!C$1))/(1+EXP(1*(trust2!$A58-trust2!C$1))) -> 0.8122203485 | D58: =EXP(1*(trust2!$A58-trust2!D$1))/(1+EXP(1*(trust2!$A58-trust2!D$1))) -> 0.7571104745 | E58: =EXP(1*(trust2!$A58-trust2!E$1))/(1+EXP(1*(trust2!$A58-trust2!E$1))) -> 0.7676796202 | F58: =EXP(1*(trust2!$A58-trust2!F$1))/(1+EXP(1*(trust2!$A58-trust2!F$1))) -> 0.6403205095 | G58: =EXP(1*(trust2!$A58-trust2!G$1))/(1+EXP(1*(trust2!$A58-trust2!G$1))) -> 0.6530587388
A59: 1.367465919 | B59: =EXP(1*(trust2!$A59-trust2!B$1))/(1+EXP(1*(trust2!$A59-trust2!B$1))) -> 0.8315128473 | C59: =EXP(1*(trust2!$A59-trust2!C$1))/(1+EXP(1*(trust2!$A59-trust2!C$1))) -> 0.8563130052 | D59: =EXP(1*(trust2!$A59-trust2!D$1))/(1+EXP(1*(trust2!$A59-trust2!D$1))) -> 0.811134489 | E59: =EXP(1*(trust2!$A59-trust2!E$1))/(1+EXP(1*(trust2!$A59-trust2!E$1))) -> 0.8199119919 | F59: =EXP(1*(trust2!$A59-trust2!F$1))/(1+EXP(1*(trust2!$A59-trust2!F$1))) -> 0.7103844071 | G59: =EXP(1*(trust2!$A59-trust2!G$1))/(1+EXP(1*(trust2!$A59-trust2!G$1))) -> 0.7217196708
A60: 1.28399671 | B60: =EXP(1*(trust2!$A60-trust2!B$1))/(1+EXP(1*(trust2!$A60-trust2!B$1))) -> 0.8194932574 | C60: =EXP(1*(trust2!$A60-trust2!C$1))/(1+EXP(1*(trust2!$A60-trust2!C$1))) -> 0.8457343874 | D60: =EXP(1*(trust2!$A60-trust2!D$1))/(1+EXP(1*(trust2!$A60-trust2!D$1))) -> 0.7980142787 | E60: =EXP(1*(trust2!$A60-trust2!E$1))/(1+EXP(1*(trust2!$A60-trust2!E$1))) -> 0.8072566495 | F60: =EXP(1*(trust2!$A60-trust2!F$1))/(1+EXP(1*(trust2!$A60-trust2!F$1))) -> 0.6929149524 | G60: =EXP(1*(trust2!$A60-trust2!G$1))/(1+EXP(1*(trust2!$A60-trust2!G$1))) -> 0.7046496816
A61: 1.837560852 | B61: =EXP(1*(trust2!$A61-trust2!B$1))/(1+EXP(1*(trust2!$A61-trust2!B$1))) -> 0.8876024868 | C61: =EXP(1*(trust2!$A61-trust2!C$1))/(1+EXP(1*(trust2!$A61-trust2!C$1))) -> 0.9050889952 | D61: =EXP(1*(trust2!$A61-trust2!D$1))/(1+EXP(1*(trust2!$A61-trust2!D$1))) -> 0.8729717423 | E61: =EXP(1*(trust2!$A61-trust2!E$1))/(1+EXP(1*(trust2!$A61-trust2!E$1))) -> 0.8793029999 | F61: =EXP(1*(trust2!$A61-trust2!F$1))/(1+EXP(1*(trust2!$A61-trust2!F$1))) -> 0.7969511303 | G61: =EXP(1*(trust2!$A61-trust2!G$1))/(1+EXP(1*(trust2!$A61-trust2!G$1))) -> 0.805824368
A62: 1.361519583 | B62: =EXP(1*(trust2!$A62-trust2!B$1))/(1+EXP(1*(trust2!$A62-trust2!B$1))) -> 0.8306781272 | C62: =EXP(1*(trust2!$A62-trust2!C$1))/(1+EXP(1*(trust2!$A62-trust2!C$1))) -> 0.8555798105 | D62: =EXP(1*(trust2!$A62-trust2!D$1))/(1+EXP(1*(trust2!$A62-trust2!D$1))) -> 0.8102218523 | E62: =EXP(1*(trust2!$A62-trust2!E$1))/(1+EXP(1*(trust2!$A62-trust2!E$1))) -> 0.819032307 | F62: =EXP(1*(trust2!$A62-trust2!F$1))/(1+EXP(1*(trust2!$A62-trust2!F$1))) -> 0.7091594887 | G62: =EXP(1*(trust2!$A62-trust2!G$1))/(1+EXP(1*(trust2!$A62-trust2!G$1))) -> 0.7205238332
A63: -0.06040087073 | B63: =EXP(1*(trust2!$A63-trust2!B$1))/(1+EXP(1*(trust2!$A63-trust2!B$1))) -> 0.5420306917 | C63: =EXP(1*(trust2!$A63-trust2!C$1))/(1+EXP(1*(trust2!$A63-trust2!C$1))) -> 0.5883459694 | D63: =EXP(1*(trust2!$A63-trust2!D$1))/(1+EXP(1*(trust2!$A63-trust2!D$1))) -> 0.5073824388 | E63: =EXP(1*(trust2!$A63-trust2!E$1))/(1+EXP(1*(trust2!$A63-trust2!E$1))) -> 0.5219570074 | F63: =EXP(1*(trust2!$A63-trust2!F$1))/(1+EXP(1*(trust2!$A63-trust2!F$1))) -> 0.3703734488 | G63: =EXP(1*(trust2!$A63-trust2!G$1))/(1+EXP(1*(trust2!$A63-trust2!G$1))) -> 0.3834668353
A64: 0.808421778 | B64: =EXP(1*(trust2!$A64-trust2!B$1))/(1+EXP(1*(trust2!$A64-trust2!B$1))) -> 0.7383370314 | C64: =EXP(1*(trust2!$A64-trust2!C$1))/(1+EXP(1*(trust2!$A64-trust2!C$1))) -> 0.7731097402 | D64: =EXP(1*(trust2!$A64-trust2!D$1))/(1+EXP(1*(trust2!$A64-trust2!D$1))) -> 0.7106112448 | E64: =EXP(1*(trust2!$A64-trust2!E$1))/(1+EXP(1*(trust2!$A64-trust2!E$1))) -> 0.7224620478 | F64: =EXP(1*(trust2!$A64-trust2!F$1))/(1+EXP(1*(trust2!$A64-trust2!F$1))) -> 0.5837550617 | G64: =EXP(1*(trust2!$A64-trust2!G$1))/(1+EXP(1*(trust2!$A64-trust2!G$1))) -> 0.597236507
A65: 2.205953539 | B65: =EXP(1*(trust2!$A65-trust2!B$1))/(1+EXP(1*(trust2!$A65-trust2!B$1))) -> 0.9194483196 | C65: =EXP(1*(trust2!$A65-trust2!C$1))/(1+EXP(1*(trust2!$A65-trust2!C$1))) -> 0.9323579075 | D65: =EXP(1*(trust2!$A65-trust2!D$1))/(1+EXP(1*(trust2!$A65-trust2!D$1))) -> 0.9085357715 | E65: =EXP(1*(trust2!$A65-trust2!E$1))/(1+EXP(1*(trust2!$A65-trust2!E$1))) -> 0.9132705735 | F65: =EXP(1*(trust2!$A65-trust2!F$1))/(1+EXP(1*(trust2!$A65-trust2!F$1))) -> 0.850145076 | G65: =EXP(1*(trust2!$A65-trust2!G$1))/(1+EXP(1*(trust2!$A65-trust2!G$1))) -> 0.8571105229
A66: 1.4075825 | B66: =EXP(1*(trust2!$A66-trust2!B$1))/(1+EXP(1*(trust2!$A66-trust2!B$1))) -> 0.8370586511 | C66: =EXP(1*(trust2!$A66-trust2!C$1))/(1+EXP(1*(trust2!$A66-trust2!C$1))) -> 0.8611787868 | D66: =EXP(1*(trust2!$A66-trust2!D$1))/(1+EXP(1*(trust2!$A66-trust2!D$1))) -> 0.8172035953 | E66: =EXP(1*(trust2!$A66-trust2!E$1))/(1+EXP(1*(trust2!$A66-trust2!E$1))) -> 0.825759627 | F66: =EXP(1*(trust2!$A66-trust2!F$1))/(1+EXP(1*(trust2!$A66-trust2!F$1))) -> 0.718567764 | G66: =EXP(1*(trust2!$A66-trust2!G$1))/(1+EXP(1*(trust2!$A66-trust2!G$1))) -> 0.7297046064
A67: 2.376023332 | B67: =EXP(1*(trust2!$A67-trust2!B$1))/(1+EXP(1*(trust2!$A67-trust2!B$1))) -> 0.9311791324 | C67: =EXP(1*(trust2!$A67-trust2!C$1))/(1+EXP(1*(trust2!$A67-trust2!C$1))) -> 0.9423266127 | D67: =EXP(1*(trust2!$A67-trust2!D$1))/(1+EXP(1*(trust2!$A67-trust2!D$1))) -> 0.9217204875 | E67: =EXP(1*(trust2!$A67-trust2!E$1))/(1+EXP(1*(trust2!$A67-trust2!E$1))) -> 0.9258284809 | F67: =EXP(1*(trust2!$A67-trust2!F$1))/(1+EXP(1*(trust2!$A67-trust2!F$1))) -> 0.8705475954 | G67: =EXP(1*(trust2!$A67-trust2!G$1))/(1+EXP(1*(trust2!$A67-trust2!G$1))) -> 0.8767022458
A68: 1.219726375 | B68: =EXP(1*(trust2!$A68-trust2!B$1))/(1+EXP(1*(trust2!$A68-trust2!B$1))) -> 0.8097902269 | C68: =EXP(1*(trust2!$A68-trust2!C$1))/(1+EXP(1*(trust2!$A68-trust2!C$1))) -> 0.8371616428 | D68: =EXP(1*(trust2!$A68-trust2!D$1))/(1+EXP(1*(trust2!$A68-trust2!D$1))) -> 0.7874561132 | E68: =EXP(1*(trust2!$A68-trust2!E$1))/(1+EXP(1*(trust2!$A68-trust2!E$1))) -> 0.7970587396 | F68: =EXP(1*(trust2!$A68-trust2!F$1))/(1+EXP(1*(trust2!$A68-trust2!F$1))) -> 0.6790723997 | G68: =EXP(1*(trust2!$A68-trust2!G$1))/(1+EXP(1*(trust2!$A68-trust2!G$1))) -> 0.6911002852
A69: 1.015243467 | B69: =EXP(1*(trust2!$A69-trust2!B$1))/(1+EXP(1*(trust2!$A69-trust2!B$1))) -> 0.7762881251 | C69: =EXP(1*(trust2!$A69-trust2!C$1))/(1+EXP(1*(trust2!$A69-trust2!C$1))) -> 0.8073335162 | D69: =EXP(1*(trust2!$A69-trust2!D$1))/(1+EXP(1*(trust2!$A69-trust2!D$1))) -> 0.75122872 | E69: =EXP(1*(trust2!$A69-trust2!E$1))/(1+EXP(1*(trust2!$A69-trust2!E$1))) -> 0.7619733411 | F69: =EXP(1*(trust2!$A69-trust2!F$1))/(1+EXP(1*(trust2!$A69-trust2!F$1))) -> 0.6329815808 | G69: =EXP(1*(trust2!$A69-trust2!G$1))/(1+EXP(1*(trust2!$A69-trust2!G$1))) -> 0.6458359635
A70: 0.8645462154 | B70: =EXP(1*(trust2!$A70-trust2!B$1))/(1+EXP(1*(trust2!$A70-trust2!B$1))) -> 0.7490341201 | C70: =EXP(1*(trust2!$A70-trust2!C$1))/(1+EXP(1*(trust2!$A70-trust2!C$1))) -> 0.7828034569 | D70: =EXP(1*(trust2!$A70-trust2!D$1))/(1+EXP(1*(trust2!$A70-trust2!D$1))) -> 0.7220150459 | E70: =EXP(1*(trust2!$A70-trust2!E$1))/(1+EXP(1*(trust2!$A70-trust2!E$1))) -> 0.7335739396 | F70: =EXP(1*(trust2!$A70-trust2!F$1))/(1+EXP(1*(trust2!$A70-trust2!F$1))) -> 0.5973251124 | G70: =EXP(1*(trust2!$A70-trust2!G$1))/(1+EXP(1*(trust2!$A70-trust2!G$1))) -> 0.6106601821
A71: 0.4906215467 | B71: =EXP(1*(trust2!$A71-trust2!B$1))/(1+EXP(1*(trust2!$A71-trust2!B$1))) -> 0.672506347 | C71: =EXP(1*(trust2!$A71-trust2!C$1))/(1+EXP(1*(trust2!$A71-trust2!C$1))) -> 0.7126223292 | D71: =EXP(1*(trust2!$A71-trust2!D$1))/(1+EXP(1*(trust2!$A71-trust2!D$1))) -> 0.6411949451 | E71: =EXP(1*(trust2!$A71-trust2!E$1))/(1+EXP(1*(trust2!$A71-trust2!E$1))) -> 0.6545063378 | F71: =EXP(1*(trust2!$A71-trust2!F$1))/(1+EXP(1*(trust2!$A71-trust2!F$1))) -> 0.5051016648 | G71: =EXP(1*(trust2!$A71-trust2!G$1))/(1+EXP(1*(trust2!$A71-trust2!G$1))) -> 0.5190316606
A72: 0.946202528 | B72: =EXP(1*(trust2!$A72-trust2!B$1))/(1+EXP(1*(trust2!$A72-trust2!B$1))) -> 0.7640699277 | C72: =EXP(1*(trust2!$A72-trust2!C$1))/(1+EXP(1*(trust2!$A72-trust2!C$1))) -> 0.7963661099 | D72: =EXP(1*(trust2!$A72-trust2!D$1))/(1+EXP(1*(trust2!$A72-trust2!D$1))) -> 0.7381036216 | E72: =EXP(1*(trust2!$A72-trust2!E$1))/(1+EXP(1*(trust2!$A72-trust2!E$1))) -> 0.7492258896 | F72: =EXP(1*(trust2!$A72-trust2!F$1))/(1+EXP(1*(trust2!$A72-trust2!F$1))) -> 0.6168001354 | G72: =EXP(1*(trust2!$A72-trust2!G$1))/(1+EXP(1*(trust2!$A72-trust2!G$1))) -> 0.6298898783
A73: 1.146645141 | B73: =EXP(1*(trust2!$A73-trust2!B$1))/(1+EXP(1*(trust2!$A73-trust2!B$1))) -> 0.7982780118 | C73: =EXP(1*(trust2!$A73-trust2!C$1))/(1+EXP(1*(trust2!$A73-trust2!C$1))) -> 0.826952038 | D73: =EXP(1*(trust2!$A73-trust2!D$1))/(1+EXP(1*(trust2!$A73-trust2!D$1))) -> 0.7749677889 | E73: =EXP(1*(trust2!$A73-trust2!E$1))/(1+EXP(1*(trust2!$A73-trust2!E$1))) -> 0.784980569 | F73: =EXP(1*(trust2!$A73-trust2!F$1))/(1+EXP(1*(trust2!$A73-trust2!F$1))) -> 0.6629416602 | G73: =EXP(1*(trust2!$A73-trust2!G$1))/(1+EXP(1*(trust2!$A73-trust2!G$1))) -> 0.6752850184
A74: 1.578905088 | B74: =EXP(1*(trust2!$A74-trust2!B$1))/(1+EXP(1*(trust2!$A74-trust2!B$1))) -> 0.8590989718 | C74: =EXP(1*(trust2!$A74-trust2!C$1))/(1+EXP(1*(trust2!$A74-trust2!C$1))) -> 0.8804225677 | D74: =EXP(1*(trust2!$A74-trust2!D$1))/(1+EXP(1*(trust2!$A74-trust2!D$1))) -> 0.8414208163 | E74: =EXP(1*(trust2!$A74-trust2!E$1))/(1+EXP(1*(trust2!$A74-trust2!E$1))) -> 0.8490527029 | F74: =EXP(1*(trust2!$A74-trust2!F$1))/(1+EXP(1*(trust2!$A74-trust2!F$1))) -> 0.7518849759 | G74: =EXP(1*(trust2!$A74-trust2!G$1))/(1+EXP(1*(trust2!$A74-trust2!G$1))) -> 0.7621398151
A75: 1.091809471 | B75: =EXP(1*(trust2!$A75-trust2!B$1))/(1+EXP(1*(trust2!$A75-trust2!B$1))) -> 0.7893032667 | C75: =EXP(1*(trust2!$A75-trust2!C$1))/(1+EXP(1*(trust2!$A75-trust2!C$1))) -> 0.8189637056 | D75: =EXP(1*(trust2!$A75-trust2!D$1))/(1+EXP(1*(trust2!$A75-trust2!D$1))) -> 0.7652609191 | E75: =EXP(1*(trust2!$A75-trust2!E$1))/(1+EXP(1*(trust2!$A75-trust2!E$1))) -> 0.7755805315 | F75: =EXP(1*(trust2!$A75-trust2!F$1))/(1+EXP(1*(trust2!$A75-trust2!F$1))) -> 0.6505812857 | G75: =EXP(1*(trust2!$A75-trust2!G$1))/(1+EXP(1*(trust2!$A75-trust2!G$1))) -> 0.6631472929
A76: 1.574067397 | B76: =EXP(1*(trust2!$A76-trust2!B$1))/(1+EXP(1*(trust2!$A76-trust2!B$1))) -> 0.8585123613 | C76: =EXP(1*(trust2!$A76-trust2!C$1))/(1+EXP(1*(trust2!$A76-trust2!C$1))) -> 0.8799123239 | D76: =EXP(1*(trust2!$A76-trust2!D$1))/(1+EXP(1*(trust2!$A76-trust2!D$1))) -> 0.8407742476 | E76: =EXP(1*(trust2!$A76-trust2!E$1))/(1+EXP(1*(trust2!$A76-trust2!E$1))) -> 0.8484316462 | F76: =EXP(1*(trust2!$A76-trust2!F$1))/(1+EXP(1*(trust2!$A76-trust2!F$1))) -> 0.7509813861 | G76: =EXP(1*(trust2!$A76-trust2!G$1))/(1+EXP(1*(trust2!$A76-trust2!G$1))) -> 0.7612617133
A77: 1.154819216 | B77: =EXP(1*(trust2!$A77-trust2!B$1))/(1+EXP(1*(trust2!$A77-trust2!B$1))) -> 0.7995910763 | C77: =EXP(1*(trust2!$A77-trust2!C$1))/(1+EXP(1*(trust2!$A77-trust2!C$1))) -> 0.8281186432 | D77: =EXP(1*(trust2!$A77-trust2!D$1))/(1+EXP(1*(trust2!$A77-trust2!D$1))) -> 0.7763900834 | E77: =EXP(1*(trust2!$A77-trust2!E$1))/(1+EXP(1*(trust2!$A77-trust2!E$1))) -> 0.7863570251 | F77: =EXP(1*(trust2!$A77-trust2!F$1))/(1+EXP(1*(trust2!$A77-trust2!F$1))) -> 0.6647657178 | G77: =EXP(1*(trust2!$A77-trust2!G$1))/(1+EXP(1*(trust2!$A77-trust2!G$1))) -> 0.6770748157
A78: 0.8835289764 | B78: =EXP(1*(trust2!$A78-trust2!B$1))/(1+EXP(1*(trust2!$A78-trust2!B$1))) -> 0.7525856417 | C78: =EXP(1*(trust2!$A78-trust2!C$1))/(1+EXP(1*(trust2!$A78-trust2!C$1))) -> 0.786013618 | D78: =EXP(1*(trust2!$A78-trust2!D$1))/(1+EXP(1*(trust2!$A78-trust2!D$1))) -> 0.7258089597 | E78: =EXP(1*(trust2!$A78-trust2!E$1))/(1+EXP(1*(trust2!$A78-trust2!E$1))) -> 0.7372675037 | F78: =EXP(1*(trust2!$A78-trust2!F$1))/(1+EXP(1*(trust2!$A78-trust2!F$1))) -> 0.6018824381 | G78: =EXP(1*(trust2!$A78-trust2!G$1))/(1+EXP(1*(trust2!$A78-trust2!G$1))) -> 0.6151638199
A79: 0.5583810168 | B79: =EXP(1*(trust2!$A79-trust2!B$1))/(1+EXP(1*(trust2!$A79-trust2!B$1))) -> 0.6872517984 | C79: =EXP(1*(trust2!$A79-trust2!C$1))/(1+EXP(1*(trust2!$A79-trust2!C$1))) -> 0.7262966691 | D79: =EXP(1*(trust2!$A79-trust2!D$1))/(1+EXP(1*(trust2!$A79-trust2!D$1))) -> 0.6566303783 | E79: =EXP(1*(trust2!$A79-trust2!E$1))/(1+EXP(1*(trust2!$A79-trust2!E$1))) -> 0.6696641469 | F79: =EXP(1*(trust2!$A79-trust2!F$1))/(1+EXP(1*(trust2!$A79-trust2!F$1))) -> 0.5220274423 | G79: =EXP(1*(trust2!$A79-trust2!G$1))/(1+EXP(1*(trust2!$A79-trust2!G$1))) -> 0.5359187475
A80: 0.3904412506 | B80: =EXP(1*(trust2!$A80-trust2!B$1))/(1+EXP(1*(trust2!$A80-trust2!B$1))) -> 0.6500735632 | C80: =EXP(1*(trust2!$A80-trust2!C$1))/(1+EXP(1*(trust2!$A80-trust2!C$1))) -> 0.6916776111 | D80: =EXP(1*(trust2!$A80-trust2!D$1))/(1+EXP(1*(trust2!$A80-trust2!D$1))) -> 0.6178361909 | E80: =EXP(1*(trust2!$A80-trust2!E$1))/(1+EXP(1*(trust2!$A80-trust2!E$1))) -> 0.6315161599 | F80: =EXP(1*(trust2!$A80-trust2!F$1))/(1+EXP(1*(trust2!$A80-trust2!F$1))) -> 0.4800673372 | G80: =EXP(1*(trust2!$A80-trust2!G$1))/(1+EXP(1*(trust2!$A80-trust2!G$1))) -> 0.4939960743
A81: 1.271043851 | B81: =EXP(1*(trust2!$A81-trust2!B$1))/(1+EXP(1*(trust2!$A81-trust2!B$1))) -> 0.8175692827 | C81: =EXP(1*(trust2!$A81-trust2!C$1))/(1+EXP(1*(trust2!$A81-trust2!C$1))) -> 0.8440368792 | D81: =EXP(1*(trust2!$A81-trust2!D$1))/(1+EXP(1*(trust2!$A81-trust2!D$1))) -> 0.7959183787 | E81: =EXP(1*(trust2!$A81-trust2!E$1))/(1+EXP(1*(trust2!$A81-trust2!E$1))) -> 0.8052332462 | F81: =EXP(1*(trust2!$A81-trust2!F$1))/(1+EXP(1*(trust2!$A81-trust2!F$1))) -> 0.690151928 | G81: =EXP(1*(trust2!$A81-trust2!G$1))/(1+EXP(1*(trust2!$A81-trust2!G$1))) -> 0.7019468251

Sheet var
A1: =AVERAGE(trust2!B1:'trust2'!G1) -> 0 | B1: =SUMSQ(B2:B81)/80 -> 0.8107957185 | C1: =SUMSQ(C2:C81)/80 -> 0.8834670938 | D1: =SUMSQ(D2:D81)/80 -> 0.9765016779 | E1: =SUMSQ(E2:E81)/80 -> 0.809727371 | F1: =SUMSQ(F2:F81)/80 -> 0.919053204 | G1: =SUMSQ(G2:G81)/80 -> 1.587954935 | H1: =SUMSQ(H2:H81)/80 -> 0 | I1: 0 | J1: =SUMSQ(J2:J76)/75 -> 0 | K1: 0 | L1: 0 | M1: 0 | N1: 0 | O1: 0 | P1: 0 | Q1: 0 | R1: 0 | S1: 0 | T1: 0 | U1: 0 | V1: 0 | W1: 0 | X1: 0 | Y1: 0 | Z1: 0
A2: =SUMSQ(B2:G2)/6 -> 0.7586785374 | B2: -1.17 | C2: 0.88 | D2: -0.92 | E2: -0.53 | F2: 1.04 | G2: 0.45
A3: =SUMSQ(B3:G3)/6 -> 0.1451791874 | B3: -0.38 | C3: 0.57 | D3: -0.12 | E3: -0.46 | F3: 0.41 | G3: -0.12
A4: 1.018576802 | B4: -0.41 | C4: 0.67 | D4: -0.74 | E4: -1.60 | F4: 0.35 | G4: 1.51
A5: 2.422001792 | B5: -1.20 | C5: 1.30 | D5: -2.71 | E5: -0.19 | F5: 0.85 | G5: 1.80
A6: 1.647444617 | B6: -0.98 | C6: 0.94 | D6: -1.69 | E6: -1.18 | F6: 0.97 | G6: 1.69
A7: 0.9637240492 | B7: -0.86 | C7: -0.22 | D7: -0.77 | E7: -1.03 | F7: 1.20 | G7: 1.38
A8: 0.8903101377 | B8: -1.30 | C8: 1.07 | D8: -1.13 | E8: -0.30 | F8: 0.53 | G8: 0.92
A9: 1.237975902 | B9: -1.49 | C9: 0.49 | D9: -0.84 | E9: -0.89 | F9: 0.75 | G9: 1.70
A10: 2.64627627 | B10: -1.40 | C10: 0.91 | D10: -2.00 | E10: -1.54 | F10: 2.04 | G10: 1.58
A11: 0.1516840061 | B11: 0.61 | C11: 0.05 | D11: 0.30 | E11: -0.55 | F11: -0.38 | G11: -0.04
A12: 0.910516246 | B12: 0.32 | C12: 1.31 | D12: -0.36 | E12: -0.55 | F12: -1.57 | G12: 0.88
A13: 0.6654156662 | B13: -0.94 | C13: 0.89 | D13: -0.85 | E13: -0.70 | F13: 0.50 | G13: 0.92
A14: 2.156001583 | B14: -1.86 | C14: 1.45 | D14: -1.45 | E14: -1.17 | F14: 1.05 | G14: 1.68
A15: 0.05026765136 | B15: 0.14 | C15: -0.41 | D15: 0.14 | E15: 0.26 | F15: -0.09 | G15: -0.13
A16: 0.4721772942 | B16: 0.69 | C16: -0.50 | D16: 0.67 | E16: 0.70 | F16: -0.62 | G16: -0.88
A17: 0.426198145 | B17: 0.33 | C17: -0.58 | D17: 0.64 | E17: 0.83 | F17: -0.96 | G17: -0.27
A18: 0.9577278654 | B18: 1.23 | C18: 0.47 | D18: 0.75 | E18: 0.35 | F18: -1.60 | G18: -0.88
A19: 0.9654019878 | B19: 0.64 | C19: 0.45 | D19: 1.03 | E19: 0.83 | F19: -1.03 | G19: -1.54
A20: 0.3020346959 | B20: 0.70 | C20: -0.86 | D20: 0.51 | E20: 0.28 | F20: -0.32 | G20: -0.37
A21: 0.6252900823 | B21: 1.08 | C21: -0.62 | D21: 0.65 | E21: 0.62 | F21: -0.82 | G21: -0.84
A22: 1.190777497 | B22: 0.89 | C22: 0.31 | D22: 0.94 | E22: 1.14 | F22: -1.49 | G22: -1.37
A23: 0.2980239427 | B23: 0.30 | C23: 0.10 | D23: 0.59 | E23: 0.56 | F23: -0.67 | G23: -0.76
A24: 0.199186074 | B24: 0.43 | C24: -0.32 | D24: 0.36 | E24: 0.47 | F24: -0.73 | G24: -0.18
A25: 0.5982734908 | B25: 0.65 | C25: 0.15 | D25: 0.72 | E25: 0.71 | F25: -0.86 | G25: -1.17
A26: 0.2837740891 | B26: 0.22 | C26: -0.62 | D26: 0.57 | E26: 0.63 | F26: -0.72 | G26: -0.11
A27: 1.67952712 | B27: -1.64 | C27: -0.49 | D27: -0.60 | E27: -0.81 | F27: 0.84 | G27: 2.33
A28: 0.3722509205 | B28: 0.69 | C28: -0.52 | D28: 0.68 | E28: -0.17 | F28: -0.97 | G28: 0.25
A29: 0.3872364399 | B29: 0.34 | C29: -0.44 | D29: 0.66 | E29: 0.70 | F29: -1.03 | G29: -0.18
A30: 1.156821336 | B30: 0.59 | C30: -0.64 | D30: 1.18 | E30: 1.43 | F30: -1.31 | G30: -1.02
A31: 0.457366193 | B31: 0.61 | C31: -1.14 | D31: 0.56 | E31: 0.67 | F31: -0.51 | G31: -0.25
A32: 0.1262556847 | B32: -0.05 | C32: -0.60 | D32: 0.18 | E32: 0.31 | F32: -0.36 | G32: 0.39
A33: 0.680324105 | B33: 0.19 | C33: 0.59 | D33: 0.89 | E33: 0.76 | F33: -0.83 | G33: -1.28
A34: 0.3210396524 | B34: -0.11 | C34: 0.33 | D34: 0.60 | E34: 0.71 | F34: -0.64 | G34: -0.72
A35: 0.4970467802 | B35: 0.49 | C35: -0.12 | D35: 0.80 | E35: 0.67 | F35: -1.16 | G35: -0.53
A36: 0.5181018287 | B36: 0.57 | C36: 0.53 | D36: 0.47 | E36: 0.56 | F36: -1.28 | G36: -0.58
A37: 0.1125685664 | B37: 0.25 | C37: -0.38 | D37: 0.57 | E37: -0.03 | F37: -0.10 | G37: -0.37
A38: 3.154935395 | B38: -1.28 | C38: 1.39 | D38: -2.31 | E38: -1.74 | F38: 1.69 | G38: 2.03
A39: 4.549914903 | B39: -2.77 | C39: -0.76 | D39: -2.40 | E39: 0.75 | F39: 1.79 | G39: 3.09
A40: 1.534549906 | B40: -1.13 | C40: 0.34 | D40: -1.58 | E40: -0.89 | F40: 1.44 | G40: 1.56
A41: 0.05827640072 | B41: 0.30 | C41: -0.31 | D41: 0.15 | E41: 0.11 | F41: 0.04 | G41: -0.35
A42: 0.1039767897 | B42: 0.03 | C42: -0.49 | D42: 0.38 | E42: 0.13 | F42: 0.24 | G42: -0.40
A43: 0.1928058424 | B43: 0.13 | C43: -0.91 | D43: -0.05 | E43: -0.14 | F43: 0.39 | G43: 0.37
A44: 0.08503237011 | B44: 0.16 | C44: -0.46 | D44: 0.03 | E44: -0.28 | F44: 0.44 | G44: -0.04
A45: 0.1321187695 | B45: 0.68 | C45: 0.12 | D45: -0.31 | E45: 0.13 | F45: -0.22 | G45: -0.40
A46: 0.5212373832 | B46: 0.89 | C46: -1.28 | D46: 0.33 | E46: 0.42 | F46: -0.62 | G46: 0.16
A47: 0.4025959688 | B47: -0.22 | C47: -0.45 | D47: -0.64 | E47: -0.60 | F47: 0.64 | G47: 0.99
A48: 0.3762621401 | B48: -0.43 | C48: -1.17 | D48: 0.45 | E48: -0.12 | F48: 0.63 | G48: 0.30
A49: 0.431477044 | B49: 0.48 | C49: -1.37 | D49: 0.61 | E49: 0.20 | F49: -0.24 | G49: 0.14
A50: 0.06169395891 | B50: 0.15 | C50: -0.49 | D50: -0.00 | E50: 0.16 | F50: 0.23 | G50: -0.17
A51: 1.24870562 | B51: 0.98 | C51: -1.68 | D51: 1.19 | E51: 1.05 | F51: -0.68 | G51: -0.85
A52: 0.3299733908 | B52: -0.56 | C52: -1.00 | D52: 0.51 | E52: 0.43 | F52: 0.46 | G52: -0.03
A53: 0.6893145161 | B53: 1.17 | C53: 0.10 | D53: 0.01 | E53: 0.85 | F53: -0.62 | G53: -1.29
A54: 0.7890514247 | B54: 0.28 | C54: -1.82 | D54: -0.46 | E54: 0.40 | F54: 0.36 | G54: 0.91
A55: 0.2833294076 | B55: 0.65 | C55: -0.73 | D55: -0.20 | E55: -0.38 | F55: 0.73 | G55: -0.21
A56: 0.7311199172 | B56: -0.08 | C56: -1.59 | D56: 1.06 | E56: 0.23 | F56: -0.50 | G56: 0.66
A57: 1.315255926 | B57: 1.28 | C57: 0.31 | D57: 1.32 | E57: 0.38 | F57: -1.01 | G57: -1.80
A58: 0.02900813645 | B58: 0.09 | C58: -0.20 | D58: 0.22 | E58: -0.26 | F58: 0.09 | G58: -0.05
A59: 1.327315697 | B59: 0.29 | C59: 0.56 | D59: 0.71 | E59: 0.94 | F59: 0.28 | G59: -2.47
A60: 5.559985346 | B60: -1.03 | C60: 2.75 | D60: 0.22 | E60: -4.55 | F60: 1.96 | G60: 0.38
A61: 1.050324778 | B61: 0.37 | C61: 0.20 | D61: 0.55 | E61: 0.65 | F61: 0.69 | G61: -2.22
A62: 0.6691311564 | B62: 0.44 | C62: 0.34 | D62: 0.54 | E62: 0.14 | F62: 0.47 | G62: -1.78
A63: 5.185284137 | B63: -0.33 | C63: -1.01 | D63: -3.96 | E63: 0.11 | F63: 3.12 | G63: 2.13
A64: 0.3483587278 | B64: 0.23 | C64: -0.44 | D64: -0.28 | E64: -0.99 | F64: 0.57 | G64: 0.68
A65: 4.767462049 | B65: 1.27 | C65: 1.73 | D65: 2.04 | E65: 1.98 | F65: -2.21 | G65: -3.32
A66: 0.2255036201 | B66: -0.28 | C66: 0.09 | D66: 0.54 | E66: -0.08 | F66: 0.52 | G66: -0.84
A67: =SUMSQ(B67:G67)/6 -> 3.072310557 | B67: 0.82 | C67: 0.91 | D67: 0.90 | E67: 1.14 | F67: 0.76 | G67: -3.77
A68: 0.4741040071 | B68: 0.69 | C68: -0.49 | D68: 0.24 | E68: 1.04 | F68: -0.82 | G68: -0.57
A69: 0.5385185884 | B69: 0.63 | C69: 0.22 | D69: -0.02 | E69: 0.35 | F69: 0.46 | G69: -1.57
A70: 0.2094926331 | B70: 0.35 | C70: -0.54 | D70: 0.09 | E70: 0.71 | F70: -0.57 | G70: -0.08
A71: 0.3797793475 | B71: 0.04 | C71: -1.09 | D71: -0.13 | E71: -0.31 | F71: 0.36 | G71: 0.92
A72: 0.3583321444 | B72: 0.40 | C72: -1.26 | D72: 0.24 | E72: 0.08 | F72: 0.53 | G72: -0.21
A73: 0.05173371209 | B73: -0.18 | C73: -0.36 | D73: 0.24 | E73: -0.19 | F73: 0.11 | G73: 0.21
A74: 0.8204839262 | B74: 0.58 | C74: 0.82 | D74: 1.14 | E74: 0.17 | F74: -1.14 | G74: -1.14
A75: 0.01860706926 | B75: 0.16 | C75: 0.07 | D75: -0.15 | E75: -0.13 | F75: -0.15 | G75: 0.13
A76: 2.053198195 | B76: 1.07 | C76: 0.91 | D76: 1.26 | E76: 1.00 | F76: -0.92 | G76: -2.63
A77: 0.7109232346 | B77: 0.75 | C77: 1.01 | D77: 0.48 | E77: -0.48 | F77: -1.50 | G77: -0.03
A78: 0.2296558846 | B78: 0.39 | C78: -0.32 | D78: 0.26 | E78: 0.48 | F78: -0.90 | G78: 0.08
A79: 4.805329848 | B79: -3.69 | C79: 3.69 | D79: 0.19 | E79: -0.95 | F79: -0.03 | G79: 0.79
A80: 1.175204599 | B80: -0.23 | C80: -0.34 | D80: -0.65 | E80: -1.57 | F80: 0.74 | G80: 1.86
A81: 0.4902026272 | B81: 0.74 | C81: 0.68 | D81: 0.53 | E81: 0.01 | F81: -0.56 | G81: -1.15

Sheet trust
A1: =AVERAGE(var!B2:'var'!G81) -> 0.00 | B1: =ROUND(AVERAGE(trust!B2:B81),2) -> 77.23 | C1: =ROUND(AVERAGE(trust!C2:C81),2) -> 80.31 | D1: =ROUND(AVERAGE(trust!D2:D81),2) -> 74.75 | E1: =ROUND(AVERAGE(trust!E2:E81),2) -> 75.81 | F1: =ROUND(AVERAGE(trust!F2:F81),2) -> 63.18 | G1: =ROUND(AVERAGE(trust!G2:G81),2) -> 64.43 | H1: =ROUND(AVERAGE(trust!H2:H81),2) ->  | I1: =ROUND(AVERAGE(trust!I2:I81),2) ->  | J1: =ROUND(AVERAGE(trust!J2:J76),2) ->  | K1: =ROUND(AVERAGE(trust!K2:K76),2) ->  | L1: =ROUND(AVERAGE(trust!L2:L76),2) ->  | M1: =ROUND(AVERAGE(trust!M2:M76),2) ->  | N1: =ROUND(AVERAGE(trust!N2:N76),2) ->  | O1: =ROUND(AVERAGE(trust!O2:O76),2) ->  | P1: =ROUND(AVERAGE(trust!P2:P76),2) ->  | Q1: =ROUND(AVERAGE(trust!Q2:Q76),2) ->  | R1: =ROUND(AVERAGE(trust!R2:R76),2) ->  | S1: =ROUND(AVERAGE(trust!S2:S76),2) ->  | T1: =ROUND(AVERAGE(trust!T2:T76),2) ->  | U1: =ROUND(AVERAGE(trust!U2:U76),2) ->  | V1: =ROUND(AVERAGE(trust!V2:V76),2) ->  | W1: =ROUND(AVERAGE(trust!W2:W76),2) ->  | X1: =ROUND(AVERAGE(trust!X2:X76),2) ->  | Y1: =ROUND(AVERAGE(trust!Y2:Y76),2) ->  | Z1: =ROUND(AVERAGE(trust!Z2:Z76),2) -> 
A2: =ROUND(AVERAGE(trust!B2:G2),2) -> 74.9 | B2: 72.18406593 | C2: 87.59615385 | D2: 71.15384615 | E2: 74.75961538 | F2: 73.3974359 | G2: 70.32967033
A3: =ROUND(AVERAGE(trust!B3:G3),2) -> 79.15 | B3: 81.02678571 | C3: 88.75 | D3: 80.46875 | E3: 79.296875 | F3: 73.95833333 | G3: 71.42857143
A4: =ROUND(AVERAGE(trust!B4:G4),2) -> 68.11 | B4: 70.53571429 | C4: 81.25 | D4: 65.3125 | E4: 60.625 | F4: 60.41666667 | G4: 70.53571429
A5: =ROUND(AVERAGE(trust!B5:G5),2) -> 61.41 | B5: 58.29081633 | C5: 80.17857143 | D5: 43.75 | E5: 63.83928571 | F5: 56.8452381 | G5: 65.56122449
A6: =ROUND(AVERAGE(trust!B6:G6),2) -> 66.5 | B6: 65 | C6: 81.75 | D6: 56.875 | E6: 61.875 | F6: 63.33333333 | G6: 70.17857143
A7: =ROUND(AVERAGE(trust!B7:G7),2) -> 65.46 | B7: 64.79591837 | C7: 73.13186813 | D7: 62.39697802 | E7: 61.83035714 | F7: 63.91941392 | G7: 66.67974882
A8: =ROUND(AVERAGE(trust!B8:G8),2) -> 75 | B8: 71.45408163 | C8: 88.75 | D8: 69.86607143 | E8: 76.29464286 | F8: 69.82142857 | G8: 73.82653061
A9: =ROUND(AVERAGE(trust!B9:G9),2) -> 66.58 | B9: 61.54336735 | C9: 78.83928571 | D9: 63.00223214 | E9: 64.00669643 | F9: 61.75595238 | G9: 70.34438776
A10: =ROUND(AVERAGE(trust!B10:G10),2) -> 69.72 | B10: 65.41149068 | C10: 84.02173913 | D10: 58.2201087 | E10: 62.70380435 | F10: 75.09057971 | G10: 72.86490683
A11: =ROUND(AVERAGE(trust!B11:G11),2) -> 76.57 | B11: 84.64285714 | C11: 84 | D11: 80.625 | E11: 76.25 | F11: 65.13888889 | G11: 68.75
A12: =ROUND(AVERAGE(trust!B12:G12),2) -> 62.7 | B12: 70.53571429 | C12: 81.25 | D12: 62.5 | E12: 62.5 | F12: 39.58333333 | G12: 59.82142857
A13: =ROUND(AVERAGE(trust!B13:G13),2) -> 70.67 | B13: 69.43277311 | C13: 84.55882353 | D13: 67.1875 | E13: 69.39338235 | F13: 64.46078431 | G13: 68.96008403
A14: =ROUND(AVERAGE(trust!B14:G14),2) -> 69.86 | B14: 62.5 | C14: 87.578125 | D14: 62.20703125 | E14: 65.4296875 | F14: 67.70833333 | G14: 73.71651786
A15: =ROUND(AVERAGE(trust!B15:G15),2) -> 73.07 | B15: 78.71565934 | C15: 78.42307692 | D15: 76.27403846 | E15: 78.14903846 | F15: 62.93269231 | G15: 63.9010989
A16: =ROUND(AVERAGE(trust!B16:G16),2) -> 72.43 | B16: 81.76291793 | C16: 77.34042553 | D16: 79.25531915 | E16: 80.45212766 | F16: 58.15602837 | G16: 57.59878419
A17: =ROUND(AVERAGE(trust!B17:G17),2) -> 69.08 | B17: 76.47515528 | C17: 73.91304348 | D17: 75.95108696 | E17: 78.39673913 | F17: 51.53985507 | G17: 58.19099379
A18: =ROUND(AVERAGE(trust!B18:G18),2) -> 75.59 | B18: 87.71008403 | C18: 85.66176471 | D18: 82.62867647 | E18: 80.97426471 | F18: 55.0245098 | G18: 61.55462185
A19: =ROUND(AVERAGE(trust!B19:G19),2) -> 79.39 | B19: 87.11734694 | C19: 88.30357143 | D19: 87.61160714 | E19: 87.16517857 | F19: 64.23611111 | G19: 61.92602041
A20: =ROUND(AVERAGE(trust!B20:G20),2) -> 70.42 | B20: 80.08760108 | C20: 73.3254717 | D20: 76.29716981 | E20: 75.85495283 | F20: 58.01886792 | G20: 58.96226415
A21: =ROUND(AVERAGE(trust!B21:G21),2) -> 70.69 | B21: 82.87815126 | C21: 75.07352941 | D21: 77.48161765 | E21: 78.40073529 | F21: 54.53431373 | G21: 55.77731092
A22: =ROUND(AVERAGE(trust!B22:G22),2) -> 78.48 | B22: 87.82467532 | C22: 86.875 | D22: 86.29261364 | E22: 88.28125 | F22: 59.75378788 | G22: 61.85064935
A23: =ROUND(AVERAGE(trust!B23:G23),2) -> 75.17 | B23: 81.57967033 | C23: 83.21153846 | D23: 81.17788462 | E23: 81.97115385 | F23: 61.21794872 | G23: 61.88186813
A24: =ROUND(AVERAGE(trust!B24:G24),2) -> 76.1 | B24: 83.15637066 | C24: 81.48648649 | D24: 80.57432432 | E24: 82.17905405 | F24: 62.01201201 | G24: 67.18146718
A25: =ROUND(AVERAGE(trust!B25:G25),2) -> 74.55 | B25: 83.2820197 | C25: 82.99568966 | D25: 81.4924569 | E25: 82.38146552 | F25: 59.08764368 | G25: 58.06650246
A26: =ROUND(AVERAGE(trust!B26:G26),2) -> 72.85 | B26: 79.06141115 | C26: 76.95121951 | D26: 78.96341463 | E26: 80.39253049 | F26: 57.92682927 | G26: 63.80662021
A27: =ROUND(AVERAGE(trust!B27:G27),2) -> 65.37 | B27: 59.26995798 | C27: 71.21323529 | D27: 63.46507353 | E27: 63.32720588 | F27: 61.09068627 | G27: 73.84453782
A28: =ROUND(AVERAGE(trust!B28:G28),2) -> 70.91 | B28: 80.46875 | C28: 75.9375 | D28: 77.9296875 | E28: 73.2421875 | F28: 53.73263889 | G28: 64.17410714
A29: =ROUND(AVERAGE(trust!B29:G29),2) -> 74.56 | B29: 81.29658385 | C29: 79.52173913 | D29: 81.08695652 | E29: 82.30978261 | F29: 57.80797101 | G29: 65.34161491
A30: =ROUND(AVERAGE(trust!B30:G30),2) -> 77.47 | B30: 85.26785714 | C30: 80.78125 | D30: 86.9140625 | E30: 89.2578125 | F30: 59.63541667 | G30: 62.94642857
A31: =ROUND(AVERAGE(trust!B31:G31),2) -> 74.06 | B31: 82.58928571 | C31: 74.94318182 | D31: 79.97159091 | E31: 81.67613636 | F31: 60.98484848 | G31: 64.20454545
A32: =ROUND(AVERAGE(trust!B32:G32),2) -> 68.81 | B32: 73.64285714 | C32: 73.6 | D32: 72.4375 | E32: 74.5 | F32: 55.83333333 | G32: 62.82142857
A33: =ROUND(AVERAGE(trust!B33:G33),2) -> 80.45 | B33: 85.38961039 | C33: 89.77272727 | D33: 87.64204545 | E33: 87.64204545 | F33: 67.04545455 | G33: 65.17857143
A34: =ROUND(AVERAGE(trust!B34:G34),2) -> 80.19 | B34: 83.50243506 | C34: 88.23863636 | D34: 85.72443182 | E34: 87.109375 | F34: 67.99242424 | G34: 68.58766234
A35: =ROUND(AVERAGE(trust!B35:G35),2) -> 74.76 | B35: 82.43038741 | C35: 81.56779661 | D35: 82.20338983 | E35: 82.28283898 | F35: 57.09745763 | G35: 62.99939467
A36: =ROUND(AVERAGE(trust!B36:G36),2) -> 77.89 | B36: 85.50420168 | C36: 87.64705882 | D36: 82.90441176 | E36: 84.28308824 | F36: 60.41666667 | G36: 66.59663866
A37: =ROUND(AVERAGE(trust!B37:G37),2) -> 72.82 | B37: 79.24107143 | C37: 78.4375 | D37: 78.90625 | E37: 75.9765625 | F37: 62.5 | G37: 61.83035714
A38: =ROUND(AVERAGE(trust!B38:G38),2) -> 62.95 | B38: 59.28571429 | C38: 82 | D38: 48.4375 | E38: 54.0625 | F38: 65 | G38: 68.92857143
A39: =ROUND(AVERAGE(trust!B39:G39),2) -> 59.32 | B39: 44.64285714 | C39: 63.75 | D39: 43.75 | E39: 68.75 | F39: 61.80555556 | G39: 73.21428571
A40: =ROUND(AVERAGE(trust!B40:G40),2) -> 63.4 | B40: 60.82589286 | C40: 75.15625 | D40: 54.296875 | E40: 60.7421875 | F40: 63.54166667 | G40: 65.84821429
A41: =ROUND(AVERAGE(trust!B41:G41),2) -> 74.56 | B41: 81.07718894 | C41: 80.28225806 | D41: 77.77217742 | E41: 78.52822581 | F41: 65.65860215 | G41: 64.05529954
A42: =ROUND(AVERAGE(trust!B42:G42),2) -> 76.77 | B42: 81.33640553 | C42: 81.06854839 | D42: 81.32560484 | E42: 80.64516129 | F42: 69.82526882 | G42: 66.43145161
A43: =ROUND(AVERAGE(trust!B43:G43),2) -> 66.72 | B43: 72.97794118 | C43: 69.66911765 | D43: 68.77297794 | E43: 69.39338235 | F43: 59.12990196 | G43: 60.37289916
A44: =ROUND(AVERAGE(trust!B44:G44),2) -> 68.6 | B44: 74.85294118 | C44: 74.27941176 | D44: 71.21323529 | E44: 70.27573529 | F44: 61.64215686 | G44: 59.31722689
A45: =ROUND(AVERAGE(trust!B45:G45),2) -> 68.82 | B45: 78.57142857 | C45: 78.25 | D45: 69.0625 | E45: 73.28125 | F45: 56.875 | G45: 56.875
A46: =ROUND(AVERAGE(trust!B46:G46),2) -> 78.61 | B46: 87.94642857 | C46: 78.25 | D46: 82.65625 | E46: 84.0625 | F46: 66.04166667 | G46: 72.67857143
A47: =ROUND(AVERAGE(trust!B47:G47),2) -> 69.58 | B47: 73.21428571 | C47: 75.19230769 | D47: 67.54807692 | E47: 68.99038462 | F47: 64.26282051 | G47: 68.26923077
A48: =ROUND(AVERAGE(trust!B48:G48),2) -> 74.73 | B48: 76.65816327 | C48: 75.35714286 | D48: 79.91071429 | E48: 77.23214286 | F48: 70.23809524 | G48: 69.00510204
A49: =ROUND(AVERAGE(trust!B49:G49),2) -> 74.07 | B49: 81.78571429 | C49: 73.5625 | D49: 80.3125 | E49: 78.671875 | F49: 63.02083333 | G49: 67.05357143
A50: =ROUND(AVERAGE(trust!B50:G50),2) -> 72.53 | B50: 78.3110119 | C50: 77.5 | D50: 74.8046875 | E50: 76.953125 | F50: 64.67013889 | G50: 62.94642857
A51: =ROUND(AVERAGE(trust!B51:G51),2) -> 76.21 | B51: 86.60714286 | C51: 73.75 | D51: 85.9375 | E51: 85.9375 | F51: 62.5 | G51: 62.5
A52: =ROUND(AVERAGE(trust!B52:G52),2) -> 65.73 | B52: 67.1875 | C52: 68.125 | D52: 71.875 | E52: 72.4609375 | F52: 58.59375 | G52: 56.13839286
A53: =ROUND(AVERAGE(trust!B53:G53),2) -> 75.86 | B53: 87.5 | C53: 83.75 | D53: 78.125 | E53: 84.375 | F53: 62.5 | G53: 58.92857143
A54: =ROUND(AVERAGE(trust!B54:G54),2) -> 70.34 | B54: 77.23214286 | C54: 67.1875 | D54: 69.53125 | E54: 76.5625 | F54: 63.02083333 | G54: 68.52678571
A55: =ROUND(AVERAGE(trust!B55:G55),2) -> 63.04 | B55: 73.21428571 | C55: 67.5 | D55: 64.0625 | E55: 64.0625 | F55: 57.63888889 | G55: 51.78571429
A56: =ROUND(AVERAGE(trust!B56:G56),2) -> 67.84 | B56: 72.54464286 | C56: 66.25 | D56: 77.734375 | E56: 73.046875 | F56: 53.64583333 | G56: 63.83928571
A57: =ROUND(AVERAGE(trust!B57:G57),2) -> 81.07 | B57: 91.96428571 | C57: 88.75 | D57: 90.625 | E57: 85.9375 | F57: 66.66666667 | G57: 62.5
A58: =ROUND(AVERAGE(trust!B58:G58),2) -> 73.54 | B58: 78.83928571 | C58: 80.125 | D58: 77.265625 | E58: 75.15625 | F58: 64.79166667 | G58: 65.04464286
A59: =ROUND(AVERAGE(trust!B59:G59),2) -> 79.18 | B59: 84.9025974 | C59: 88.75 | D59: 85.51136364 | E59: 87.64204545 | F59: 73.10606061 | G59: 55.19480519
A60: =ROUND(AVERAGE(trust!B60:G60),2) -> 77.8 | B60: 75.89285714 | C60: 100 | D60: 81.25 | E60: 53.125 | F60: 83.33333333 | G60: 73.21428571
A61: =ROUND(AVERAGE(trust!B61:G61),2) -> 85.8 | B61: 90.625 | C61: 91.47727273 | D61: 90.19886364 | E61: 91.26420455 | F61: 84.09090909 | G61: 67.12662338
A62: =ROUND(AVERAGE(trust!B62:G62),2) -> 79.09 | B62: 85.71428571 | C62: 87.5 | D62: 84.375 | E62: 82.8125 | F62: 74.30555556 | G62: 59.82142857
A63: =ROUND(AVERAGE(trust!B63:G63),2) -> 48.56 | B63: 51.78571429 | C63: 51.25 | D63: 20.3125 | E63: 53.125 | F63: 60.41666667 | G63: 54.46428571
A64: =ROUND(AVERAGE(trust!B64:G64),2) -> 68.76 | B64: 75.51020408 | C64: 74.55357143 | D64: 69.19642857 | E64: 65.51339286 | F64: 62.79761905 | G64: 64.9872449
A65: =ROUND(AVERAGE(trust!B65:G65),2) -> 89.68 | B65: 97.32142857 | C65: 100 | D65: 100 | E65: 100 | F65: 72.91666667 | G65: 67.85714286
A66: =ROUND(AVERAGE(trust!B66:G66),2) -> 79.83 | B66: 82.21428571 | C66: 86.65 | D66: 85 | E66: 82.1875 | F66: 75.58333333 | G66: 67.32142857
A67: =ROUND(AVERAGE(trust!B67:G67),2) -> 91.14 | B67: 96.39778325 | C67: 97.54310345 | D67: 95.95905172 | E67: 97.25215517 | F67: 91.09195402 | G67: 68.59605911
A68: =ROUND(AVERAGE(trust!B68:G68),2) -> 76.7 | B68: 85.26785714 | C68: 81.015625 | D68: 80.37109375 | E68: 86.23046875 | F68: 62.109375 | G68: 65.17857143
A69: =ROUND(AVERAGE(trust!B69:G69),2) -> 72.93 | B69: 81.75223214 | C69: 82.1875 | D69: 75.09765625 | E69: 78.61328125 | F69: 66.796875 | G69: 53.125
A70: =ROUND(AVERAGE(trust!B70:G70),2) -> 69.92 | B70: 77.3538961 | C70: 74.94318182 | D70: 72.94034091 | E70: 78.26704545 | F70: 55.49242424 | G70: 60.55194805
A71: =ROUND(AVERAGE(trust!B71:G71),2) -> 61.75 | B71: 67.67857143 | C71: 63.75 | D71: 63.28125 | E71: 63.28125 | F71: 53.40277778 | G71: 59.10714286
A72: =ROUND(AVERAGE(trust!B72:G72),2) -> 71.58 | B72: 79.14540816 | C72: 71.875 | D72: 75.55803571 | E72: 75.55803571 | F72: 65.77380952 | G72: 61.54336735
A73: =ROUND(AVERAGE(trust!B73:G73),2) -> 75.39 | B73: 78.77435065 | C73: 80.68181818 | D73: 79.11931818 | E73: 77.41477273 | F73: 67.20328283 | G73: 69.15584416
A74: =ROUND(AVERAGE(trust!B74:G74),2) -> 82.4 | B74: 89.09438776 | C74: 92.23214286 | D74: 90.625 | E74: 85.9375 | F74: 67.70833333 | G74: 68.81377551
A75: =ROUND(AVERAGE(trust!B75:G75),2) -> 74.38 | B75: 80.04464286 | C75: 82.375 | D75: 75.625 | E75: 76.796875 | F75: 64.0625 | G75: 67.38839286
A76: =ROUND(AVERAGE(trust!B76:G76),2) -> 82.33 | B76: 91.69642857 | C76: 92.625 | D76: 91.25 | E76: 90.46875 | F76: 69.02777778 | G76: 58.92857143
A77: =ROUND(AVERAGE(trust!B77:G77),2) -> 75.54 | B77: 84.65909091 | C77: 88.75 | D77: 80.82386364 | E77: 75.71022727 | F77: 55.68181818 | G77: 67.61363636
A78: =ROUND(AVERAGE(trust!B78:G78),2) -> 70.31 | B78: 77.97619048 | C78: 76.66666667 | D78: 74.47916667 | E78: 77.08333333 | F78: 53.47222222 | G78: 62.20238095
A79: =ROUND(AVERAGE(trust!B79:G79),2) -> 63.3 | B79: 42.41071429 | C79: 98.125 | D79: 67.1875 | E79: 60.15625 | F79: 52.08333333 | G79: 59.82142857
A80: =ROUND(AVERAGE(trust!B80:G80),2) -> 59.42 | B80: 63.39285714 | C80: 66.875 | D80: 57.03125 | E80: 51.5625 | F80: 53.81944444 | G80: 63.83928571
A81: =ROUND(AVERAGE(trust!B81:G81),2) -> 77.58 | B81: 86.27232143 | C81: 88.28125 | D81: 83.0078125 | E81: 80.6640625 | F81: 65.10416667 | G81: 62.16517857

Sheet fre
A1: =AVERAGE(C2:C11105) -> 2.660714286 | B1: =STDEV(C2:C11104) -> 0.9730936219 | F1: 難度 | G1: loading | H1: 鑑別度 | I1: PTMEAS | N1: 100 | O1: 100 | P1: =COUNTA(P2:P4000)+2 -> 602 | Q1: 通過率 | R1: =AVERAGE(P2:P2000) -> 0.1449107143 | S1: =AVERAGE(Q2:Q2000) -> 0.6465277778
A2: Teamwork Climate | C2: 2 | D2: =0.737-1/24 -> 0.6953333333 | F2: 0.01 | G2: 0.6259 | H2: 0.4722398142 | I2: 0.6259 | K2: 各章成績之分佈與受評醫院落點 | P2: 0.125 | Q2: 0.75 | R2: 0.7
A3: Safety Climate | C3: 1 | F3: 0.17 | G3: 0.6715 | H3: 0.5215311005 | I3: 0.6715 | P3: 0.125 | Q3: 0.5833333333 | R3: 0.7
A4: Job Satisfaction | C4: 2 | F4: 0.53 | G4: 0.6262 | H4: 0.5229690407 | I4: 0.6262 | P4: 0.1160714286 | Q4: 0.75 | R4: 0.7
A5: Stress Recognition | C5: 3 | F5: -0.01 | G5: 0.6721 | H5: 0.506294742 | I5: 0.6721 | P5: 0.1071428571 | Q5: 0.4166666667 | R5: 0.7
A6: Perception of Management | C6: 2 | F6: -0.37 | G6: 0.6895 | H6: 0.4528941897 | I6: 0.6895 | P6: 0.125 | Q6: 0.5 | R6: 0.7
A7: Working Condition | C7: 3 | F7: -0.1 | G7: 0.7296 | H7: 0.5446265938 | I7: 0.7296 | P7: 0.1517857143 | Q7: 0.5 | R7: 0.7
C8: 1 | F8: -0.44 | G8: 0.69 | H8: 0.4730463192 | I8: 0.69 | P8: 0.1964285714 | Q8: 0.75 | R8: 0.7
C9: 1 | F9: 0.21 | G9: 0.6193 | H9: 0.5033030348 | I9: 0.6193 | P9: 0.1607142857 | Q9: 0.8333333333 | R9: 0.7
C10: 3 | P10: 0.1875 | Q10: 0.8333333333 | R10: 0.7
C11: 2 | P11: 0.1785714286 | Q11: 0.6666666667 | R11: 0.7
C12: 2 | P12: 0.1696428571 | Q12: 0.8333333333 | R12: 0.7
C13: 1 | P13: 0.125 | Q13: 0.4166666667 | R13: 0.7
C14: 2 | P14: 0.1428571429 | Q14: 0.8333333333 | R14: 0.7
C15: 2 | P15: 0.1696428571 | Q15: 0.8333333333 | R15: 0.7
C16: 2 | P16: 0.1696428571 | Q16: 0.8333333333 | R16: 0.7
C17: 2 | P17: 0.1339285714 | Q17: 0.5 | R17: 0.7
C18: 3 | P18: 0.1339285714 | Q18: 0.75 | R18: 0.7
C19: 3 | P19: 0.1160714286 | Q19: 0.4166666667 | R19: 0.7
C20: 4 | P20: 0.1607142857 | Q20: 0.8333333333 | R20: 0.7
C21: 2 | D21: skew_median | E21: -3.492157459 | P21: 0.1428571429 | Q21: 0.75 | R21: 0.7
C22: 4 | D22: 2.5% delta | E22: -3.858023167 | P22: 0.1696428571 | Q22: 0.8333333333 | R22: 0.7
C23: 3 | D23: 97.5% delta | E23: -3.182748556 | P23: 0.1160714286 | Q23: 0.75 | R23: 0.7
C24: 4 | D24: Kurtosis | E24: 18.31388664 | P24: 0.1607142857 | Q24: 0.8333333333 | R24: 0.7
C25: 2 | D25: 2.5% delta | E25: 15.88403893 | P25: 0.1696428571 | Q25: 0.75 | R25: 0.7
C26: 3 | D26: 97.5% delta | E26: 20.96597481 | P26: 0.1696428571 | Q26: 0.75 | R26: 0.7
C27: 2 | P27: 0.1428571429 | Q27: 0.75 | R27: 0.7
C28: 4 | P28: 0.08928571429 | Q28: 0.4166666667 | R28: 0.7
C29: 4 | P29: 0.08035714286 | Q29: 0.4166666667 | R29: 0.7
C30: 4 | P30: 0.125 | Q30: 0.5 | R30: 0.7
C31: 2 | P31: 0.1339285714 | Q31: 0.5833333333 | R31: 0.7
C32: 2 | P32: 0.125 | Q32: 0.5 | R32: 0.7
C33: 1 | P33: 0.1517857143 | Q33: 0.4166666667 | R33: 0.7
C34: 2 | P34: 0.09821428571 | Q34: 0.4166666667 | R34: 0.7
C35: 4 | P35: 0.2053571429 | Q35: 0.8333333333 | R35: 0.7
C36: 4 | P36: 0.1607142857 | Q36: 0.75 | R36: 0.7
C37: 2 | P37: 0.1517857143 | Q37: 0.5 | R37: 0.7
C38: 3 | P38: 0.1071428571 | Q38: 0.4166666667 | R38: 0.7
C39: 3 | P39: 0.08035714286 | Q39: 0.5 | R39: 0.7
C40: 3 | P40: 0.125 | Q40: 0.5 | R40: 0.7
C41: 2 | P41: 0.1964285714 | Q41: 0.75 | R41: 0.7
C42: 2 | P42: 0.1160714286 | Q42: 0.5 | R42: 0.7
C43: 2 | P43: 0.1160714286 | Q43: 0.75 | R43: 0.7
C44: 2 | P44: 0.1607142857 | Q44: 0.8333333333 | R44: 0.7
C45: 3 | P45: 0.1607142857 | Q45: 0.75 | R45: 0.7
C46: 3 | P46: 0.1071428571 | Q46: 0.4166666667 | R46: 0.7
C47: 1 | P47: 0.1696428571 | Q47: 0.8333333333 | R47: 0.7
C48: 4 | P48: 0.1875 | Q48: 0.75 | R48: 0.7
C49: 4 | P49: 0.1517857143 | Q49: 0.8333333333 | R49: 0.7
C50: 3 | P50: 0.1339285714 | Q50: 0.75 | R50: 0.7
C51: 3 | P51: 0.1875 | Q51: 0.8333333333 | R51: 0.7
C52: 0 | P52: 0.1160714286 | Q52: 0.4166666667 | R52: 0.7
C53: 3 | P53: 0.09821428571 | Q53: 0.5 | R53: 0.7
C54: 2 | P54: 0.1428571429 | Q54: 0.75 | R54: 0.7
C55: 2 | P55: 0.1785714286 | Q55: 0.8333333333 | R55: 0.7
C56: 4 | P56: 0.125 | Q56: 0.75 | R56: 0.7
C57: 4 | P57: 0.08928571429 | Q57: 0.3333333333 | R57: 0.7
C58: 4 | P58: 0.1607142857 | Q58: 0.8333333333 | R58: 0.7
C59: 3 | P59: 0.125 | Q59: 0.75 | R59: 0.7
C60: 2 | P60: 0.1607142857 | Q60: 0.75 | R60: 0.7
C61: 2 | P61: 0.1428571429 | Q61: 0.75 | R61: 0.7
C62: 2 | P62: 0.1517857143 | Q62: 0.8333333333 | R62: 0.7
C63: 4 | P63: 0.125 | Q63: 0.4166666667 | R63: 0.7
C64: 1 | P64: 0.1339285714 | Q64: 0.75 | R64: 0.7
C65: 2 | P65: 0.1428571429 | Q65: 0.4166666667 | R65: 0.7
C66: 4 | P66: 0.1071428571 | Q66: 0.5 | R66: 0.7
C67: 3 | P67: 0.1607142857 | Q67: 0.75 | R67: 0.7
C68: 4 | P68: 0.1785714286 | Q68: 0.8333333333 | R68: 0.7
C69: 1 | P69: 0.1071428571 | Q69: 0.4166666667 | R69: 0.7
C70: 4 | P70: 0.1517857143 | Q70: 0.8333333333 | R70: 0.7
C71: 3 | P71: 0.1607142857 | Q71: 0.8333333333 | R71: 0.7
C72: 3 | P72: 0.1160714286 | Q72: 0.5 | R72: 0.7
C73: 2 | P73: 0.1428571429 | Q73: 0.8333333333 | R73: 0.7
C74: 4 | P74: 0.125 | Q74: 0.4166666667 | R74: 0.7
C75: 1 | P75: 0.1339285714 | Q75: 0.5 | R75: 0.7
C76: 3 | P76: 0.1339285714 | Q76: 0.6666666667 | R76: 0.7
C77: 3 | P77: 0.1696428571 | Q77: 0.8333333333 | R77: 0.7
C78: 3 | P78: 0.1696428571 | Q78: 0.75 | R78: 0.7
C79: 2 | P79: 0.1339285714 | Q79: 0.8333333333 | R79: 0.7
C80: 2 | P80: 0.1696428571 | Q80: 0.8333333333 | R80: 0.7
C81: 2 | P81: 0.1339285714 | Q81: 0.75 | R81: 0.7
C82: 4 | P82: 0.125 | Q82: 0.8333333333 | R82: 0.7
C83: 4 | P83: 0.1428571429 | Q83: 0.75 | R83: 0.7
C84: 4 | P84: 0.1696428571 | Q84: 0.5 | R84: 0.7
C85: 2 | P85: 0.1428571429 | Q85: 0.8333333333 | R85: 0.7
C86: 3 | P86: 0.1607142857 | Q86: 0.8333333333 | R86: 0.7
C87: 3 | P87: 0.1785714286 | Q87: 0.8333333333 | R87: 0.7
C88: 3 | P88: 0.1071428571 | Q88: 0.5 | R88: 0.7
C89: 2 | P89: 0.1517857143 | Q89: 0.8333333333 | R89: 0.7
C90: 0 | P90: 0.1607142857 | Q90: 0.8333333333 | R90: 0.7
C91: 4 | P91: 0.125 | Q91: 0.5 | R91: 0.7
C92: 2 | P92: 0.1517857143 | Q92: 0.8333333333 | R92: 0.7
C93: 3 | P93: 0.1428571429 | Q93: 0.75 | R93: 0.7
C94: 4 | P94: 0.1696428571 | Q94: 0.75 | R94: 0.7
C95: 2 | P95: 0.1785714286 | Q95: 0.6666666667 | R95: 0.7
C96: 4 | P96: 0.1517857143 | Q96: 0.75 | R96: 0.7
C97: 2 | P97: 0.1517857143 | Q97: 0.4166666667 | R97: 0.7
C98: 3 | P98: 0.1517857143 | Q98: 0.75 | R98: 0.7
C99: 3 | P99: 0.09821428571 | Q99: 0.4166666667 | R99: 0.7
C100: 3 | P100: 0.09821428571 | Q100: 0.4166666667 | R100: 0.7
C101: 2 | P101: 0.1696428571 | Q101: 0.8333333333 | R101: 0.7
C102: 3 | P102: 0.1696428571 | Q102: 0.8333333333 | R102: 0.7
C103: 3 | P103: 0.1517857143 | Q103: 0.8333333333 | R103: 0.7
C104: 3 | P104: 0.1696428571 | Q104: 0.75 | R104: 0.7
C105: 3 | P105: 0.1696428571 | Q105: 0.8333333333 | R105: 0.7
C106: 3 | P106: 0.1607142857 | Q106: 0.8333333333 | R106: 0.7
C107: 3 | P107: 0.1517857143 | Q107: 0.8333333333 | R107: 0.7
C108: 3 | P108: 0.125 | Q108: 0.5 | R108: 0.7
C109: 1 | P109: 0.1071428571 | Q109: 0.4166666667 | R109: 0.7
C110: 3 | P110: 0.1428571429 | Q110: 0.4166666667 | R110: 0.7
C111: 3 | P111: 0.1785714286 | Q111: 0.8333333333 | R111: 0.7
C112: 3 | P112: 0.1160714286 | Q112: 0.5 | R112: 0.7
C113: 3 | P113: 0.1160714286 | Q113: 0.8333333333 | R113: 0.7
P114: 0.1875 | Q114: 0.8333333333 | R114: 0.7
P115: 0.1339285714 | Q115: 0.5 | R115: 0.7
P116: 0.125 | Q116: 0.8333333333 | R116: 0.7
P117: 0.1607142857 | Q117: 0.75 | R117: 0.7
P118: 0.1875 | Q118: 0.8333333333 | R118: 0.7
P119: 0.1607142857 | Q119: 0.75 | R119: 0.7
P120: 0.1785714286 | Q120: 0.8333333333 | R120: 0.7
P121: 0.08928571429 | Q121: 0.5 | R121: 0.7
P122: 0.1696428571 | Q122: 0.75 | R122: 0.7
P123: 0.1428571429 | Q123: 0.8333333333 | R123: 0.7
P124: 0.1785714286 | Q124: 0.75 | R124: 0.7
P125: 0.09821428571 | Q125: 0.4166666667 | R125: 0.7
P126: 0.1875 | Q126: 0.8333333333 | R126: 0.7
P127: 0.125 | Q127: 0.4166666667 | R127: 0.7
P128: 0.1517857143 | Q128: 0.8333333333 | R128: 0.7
P129: 0.08928571429 | Q129: 0.5833333333 | R129: 0.7
P130: 0.08035714286 | Q130: 0.5 | R130: 0.7
P131: 0.125 | Q131: 0.5 | R131: 0.7
P132: 0.1607142857 | Q132: 0.75 | R132: 0.7
P133: 0.1339285714 | Q133: 0.5 | R133: 0.7
P134: 0.1785714286 | Q134: 0.8333333333 | R134: 0.7
P135: 0.1071428571 | Q135: 0.5 | R135: 0.7
P136: 0.1428571429 | Q136: 0.75 | R136: 0.7
P137: 0.1339285714 | Q137: 0.4166666667 | R137: 0.7
P138: 0.1607142857 | Q138: 0.8333333333 | R138: 0.7
P139: 0.1607142857 | Q139: 0.5 | R139: 0.7
P140: 0.1517857143 | Q140: 0.8333333333 | R140: 0.7
P141: 0.1071428571 | Q141: 0.5 | R141: 0.7
P142: 0.1071428571 | Q142: 0.4166666667 | R142: 0.7
P143: 0.1071428571 | Q143: 0.5 | R143: 0.7
P144: 0.08035714286 | Q144: 0.3333333333 | R144: 0.7
P145: 0.1160714286 | Q145: 0.5 | R145: 0.7
P146: 0.1428571429 | Q146: 0.5 | R146: 0.7
P147: 0.1785714286 | Q147: 0.8333333333 | R147: 0.7
P148: 0.09821428571 | Q148: 0.5 | R148: 0.7
P149: 0.1339285714 | Q149: 0.5 | R149: 0.7
P150: 0.1696428571 | Q150: 0.8333333333 | R150: 0.7
P151: 0.1875 | Q151: 0.8333333333 | R151: 0.7
P152: 0.1339285714 | Q152: 0.75 | R152: 0.7
P153: 0.1071428571 | Q153: 0.5 | R153: 0.7
P154: 0.1607142857 | Q154: 0.75 | R154: 0.7
P155: 0.08928571429 | Q155: 0.4166666667 | R155: 0.7
P156: 0.1607142857 | Q156: 0.8333333333 | R156: 0.7
P157: 0.1160714286 | Q157: 0.5 | R157: 0.7
P158: 0.1517857143 | Q158: 0.8333333333 | R158: 0.7
P159: 0.1428571429 | Q159: 0.5 | R159: 0.7
P160: 0.1517857143 | Q160: 0.8333333333 | R160: 0.7
P161: 0.1160714286 | Q161: 0.4166666667 | R161: 0.7
P162: 0.1875 | Q162: 0.8333333333 | R162: 0.7
P163: 0.1071428571 | Q163: 0.3333333333 | R163: 0.7
P164: 0.1607142857 | Q164: 0.8333333333 | R164: 0.7
P165: 0.1964285714 | Q165: 0.8333333333 | R165: 0.7
P166: 0.1517857143 | Q166: 0.75 | R166: 0.7
P167: 0.1696428571 | Q167: 0.8333333333 | R167: 0.7
P168: 0.1607142857 | Q168: 0.8333333333 | R168: 0.7
P169: 0.1160714286 | Q169: 0.6666666667 | R169: 0.7
P170: 0.1696428571 | Q170: 0.75 | R170: 0.7
P171: 0.08928571429 | Q171: 0.4166666667 | R171: 0.7
P172: 0.1160714286 | Q172: 0.4166666667 | R172: 0.7
P173: 0.1607142857 | Q173: 0.5 | R173: 0.7
P174: 0.1875 | Q174: 0.8333333333 | R174: 0.7
P175: 0.1785714286 | Q175: 0.8333333333 | R175: 0.7
P176: 0.1964285714 | Q176: 0.8333333333 | R176: 0.7
P177: 0.1339285714 | Q177: 0.5833333333 | R177: 0.7
P178: 0.1696428571 | Q178: 0.8333333333 | R178: 0.7
P179: 0.1428571429 | Q179: 0.5 | R179: 0.7
P180: 0.09821428571 | Q180: 0.5 | R180: 0.7
P181: 0.1160714286 | Q181: 0.5 | R181: 0.7
P182: 0.1517857143 | Q182: 0.8333333333 | R182: 0.7
P183: 0.1517857143 | Q183: 0.8333333333 | R183: 0.7
P184: 0.1160714286 | Q184: 0.4166666667 | R184: 0.7
P185: 0.1696428571 | Q185: 0.8333333333 | R185: 0.7
P186: 0.1517857143 | Q186: 0.5 | R186: 0.7
P187: 0.125 | Q187: 0.4166666667 | R187: 0.7
P188: 0.1339285714 | Q188: 0.75 | R188: 0.7
P189: 0.1517857143 | Q189: 0.8333333333 | R189: 0.7
P190: 0.1696428571 | Q190: 0.8333333333 | R190: 0.7
P191: 0.08928571429 | Q191: 0.4166666667 | R191: 0.7
P192: 0.1339285714 | Q192: 0.8333333333 | R192: 0.7
P193: 0.1339285714 | Q193: 0.75 | R193: 0.7
P194: 0.1428571429 | Q194: 0.5 | R194: 0.7
P195: 0.09821428571 | Q195: 0.5 | R195: 0.7
P196: 0.1607142857 | Q196: 0.75 | R196: 0.7
P197: 0.1428571429 | Q197: 0.8333333333 | R197: 0.7
P198: 0.1875 | Q198: 0.8333333333 | R198: 0.7
P199: 0.1517857143 | Q199: 0.8333333333 | R199: 0.7
P200: 0.1071428571 | Q200: 0.5 | R200: 0.7
... 401 more rows

Sheet random
A1: =AVERAGE(trust2!B2:'trust2'!G81) -> 0.726164743 | B1: =AVERAGE(trust2!B2:'trust2'!B81) -> 0.7722424001 | C1: =AVERAGE(trust2!C2:'trust2'!C81) -> 0.8030760447 | D1: =AVERAGE(trust2!D2:'trust2'!D81) -> 0.7474811977 | E1: =AVERAGE(trust2!E2:'trust2'!E81) -> 0.75808497 | F1: =AVERAGE(trust2!F2:'trust2'!F81) -> 0.6317999408 | G1: =AVERAGE(trust2!G2:'trust2'!G81) -> 0.6443039048 | H1: =AVERAGE(trust2!H2:'trust2'!H81) ->  | I1: =AVERAGE(trust2!I2:'trust2'!I81) ->  | J1: =AVERAGE(#REF!:#REF!) ->  | K1: =AVERAGE(#REF!:#REF!) ->  | L1: =AVERAGE(#REF!:#REF!) ->  | M1: =AVERAGE(#REF!:#REF!) ->  | N1: =AVERAGE(#REF!:#REF!) ->  | O1: =AVERAGE(#REF!:#REF!) ->  | P1: =AVERAGE(#REF!:#REF!) ->  | Q1: =AVERAGE(#REF!:#REF!) ->  | R1: =AVERAGE(#REF!:#REF!) ->  | S1: =AVERAGE(#REF!:#REF!) ->  | T1: =AVERAGE(#REF!:#REF!) ->  | U1: =AVERAGE(#REF!:#REF!) ->  | V1: =AVERAGE(#REF!:#REF!) ->  | W1: =AVERAGE(#REF!:#REF!) ->  | X1: =AVERAGE(#REF!:#REF!) ->  | Y1: =AVERAGE(#REF!:#REF!) ->  | Z1: =AVERAGE(#REF!:#REF!) -> 
A2: =AVERAGE(trust2!B2:'trust2'!G2) -> 0.75 | B2: -0.18 | C2: 0.14 | D2: -0.14 | E2: -0.08 | F2: 0.16 | G2: 0.07
A3: =AVERAGE(trust2!B3:'trust2'!G3) -> 0.79 | B3: -0.06 | C3: 0.09 | D3: -0.02 | E3: -0.07 | F3: 0.07 | G3: -0.02
A4: =AVERAGE(trust2!B4:'trust2'!G4) -> 0.68 | B4: -0.06 | C4: 0.11 | D4: -0.11 | E4: -0.24 | F4: 0.06 | G4: 0.23
A5: =AVERAGE(trust2!B5:'trust2'!G5) -> 0.61 | B5: -0.18 | C5: 0.20 | D5: -0.42 | E5: -0.03 | F5: 0.13 | G5: 0.28
A6: =AVERAGE(trust2!B6:'trust2'!G6) -> 0.67 | B6: -0.15 | C6: 0.15 | D6: -0.26 | E6: -0.18 | F6: 0.15 | G6: 0.26
A7: =AVERAGE(trust2!B7:'trust2'!G7) -> 0.65 | B7: -0.13 | C7: -0.03 | D7: -0.12 | E7: -0.16 | F7: 0.19 | G7: 0.22
A8: =AVERAGE(trust2!B8:'trust2'!G8) -> 0.75 | B8: -0.20 | C8: 0.17 | D8: -0.17 | E8: -0.04 | F8: 0.08 | G8: 0.14
A9: =AVERAGE(trust2!B9:'trust2'!G9) -> 0.67 | B9: -0.23 | C9: 0.08 | D9: -0.13 | E9: -0.13 | F9: 0.12 | G9: 0.26
A10: =AVERAGE(trust2!B10:'trust2'!G10) -> 0.70 | B10: -0.21 | C10: 0.14 | D10: -0.31 | E10: -0.24 | F10: 0.32 | G10: 0.25
A11: =AVERAGE(trust2!B11:'trust2'!G11) -> 0.77 | B11: 0.10 | C11: 0.01 | D11: 0.05 | E11: -0.08 | F11: -0.06 | G11: -0.00
A12: =AVERAGE(trust2!B12:'trust2'!G12) -> 0.63 | B12: 0.05 | C12: 0.20 | D12: -0.05 | E12: -0.08 | F12: -0.24 | G12: 0.14
A13: =AVERAGE(trust2!B13:'trust2'!G13) -> 0.71 | B13: -0.14 | C13: 0.14 | D13: -0.13 | E13: -0.11 | F13: 0.08 | G13: 0.14
A14: =AVERAGE(trust2!B14:'trust2'!G14) -> 0.70 | B14: -0.28 | C14: 0.23 | D14: -0.22 | E14: -0.18 | F14: 0.16 | G14: 0.26
A15: =AVERAGE(trust2!B15:'trust2'!G15) -> 0.73 | B15: 0.02 | C15: -0.06 | D15: 0.02 | E15: 0.04 | F15: -0.01 | G15: -0.02
A16: =AVERAGE(trust2!B16:'trust2'!G16) -> 0.72 | B16: 0.11 | C16: -0.08 | D16: 0.11 | E16: 0.11 | F16: -0.09 | G16: -0.13
A17: =AVERAGE(trust2!B17:'trust2'!G17) -> 0.69 | B17: 0.05 | C17: -0.09 | D17: 0.10 | E17: 0.13 | F17: -0.15 | G17: -0.04
A18: =AVERAGE(trust2!B18:'trust2'!G18) -> 0.76 | B18: 0.19 | C18: 0.07 | D18: 0.12 | E18: 0.06 | F18: -0.24 | G18: -0.13
A19: =AVERAGE(trust2!B19:'trust2'!G19) -> 0.79 | B19: 0.10 | C19: 0.07 | D19: 0.16 | E19: 0.13 | F19: -0.16 | G19: -0.24
A20: =AVERAGE(trust2!B20:'trust2'!G20) -> 0.70 | B20: 0.11 | C20: -0.13 | D20: 0.08 | E20: 0.05 | F20: -0.05 | G20: -0.06
A21: =AVERAGE(trust2!B21:'trust2'!G21) -> 0.71 | B21: 0.17 | C21: -0.09 | D21: 0.10 | E21: 0.10 | F21: -0.12 | G21: -0.13
A22: =AVERAGE(trust2!B22:'trust2'!G22) -> 0.78 | B22: 0.14 | C22: 0.05 | D22: 0.15 | E22: 0.18 | F22: -0.23 | G22: -0.21
A23: =AVERAGE(trust2!B23:'trust2'!G23) -> 0.75 | B23: 0.05 | C23: 0.02 | D23: 0.09 | E23: 0.09 | F23: -0.10 | G23: -0.11
A24: =AVERAGE(trust2!B24:'trust2'!G24) -> 0.76 | B24: 0.07 | C24: -0.05 | D24: 0.06 | E24: 0.07 | F24: -0.11 | G24: -0.03
A25: =AVERAGE(trust2!B25:'trust2'!G25) -> 0.75 | B25: 0.10 | C25: 0.03 | D25: 0.11 | E25: 0.11 | F25: -0.13 | G25: -0.18
A26: =AVERAGE(trust2!B26:'trust2'!G26) -> 0.73 | B26: 0.04 | C26: -0.09 | D26: 0.09 | E26: 0.10 | F26: -0.11 | G26: -0.01
A27: =AVERAGE(trust2!B27:'trust2'!G27) -> 0.65 | B27: -0.25 | C27: -0.07 | D27: -0.09 | E27: -0.12 | F27: 0.13 | G27: 0.36
A28: =AVERAGE(trust2!B28:'trust2'!G28) -> 0.71 | B28: 0.11 | C28: -0.08 | D28: 0.11 | E28: -0.02 | F28: -0.15 | G28: 0.04
A29: =AVERAGE(trust2!B29:'trust2'!G29) -> 0.75 | B29: 0.05 | C29: -0.07 | D29: 0.10 | E29: 0.11 | F29: -0.16 | G29: -0.03
A30: =AVERAGE(trust2!B30:'trust2'!G30) -> 0.77 | B30: 0.09 | C30: -0.10 | D30: 0.18 | E30: 0.22 | F30: -0.20 | G30: -0.16
A31: =AVERAGE(trust2!B31:'trust2'!G31) -> 0.74 | B31: 0.10 | C31: -0.17 | D31: 0.09 | E31: 0.11 | F31: -0.08 | G31: -0.04
A32: =AVERAGE(trust2!B32:'trust2'!G32) -> 0.69 | B32: -0.01 | C32: -0.09 | D32: 0.03 | E32: 0.05 | F32: -0.05 | G32: 0.06
A33: =AVERAGE(trust2!B33:'trust2'!G33) -> 0.80 | B33: 0.03 | C33: 0.09 | D33: 0.14 | E33: 0.12 | F33: -0.13 | G33: -0.19
A34: =AVERAGE(trust2!B34:'trust2'!G34) -> 0.80 | B34: -0.01 | C34: 0.05 | D34: 0.10 | E34: 0.11 | F34: -0.10 | G34: -0.11
A35: =AVERAGE(trust2!B35:'trust2'!G35) -> 0.75 | B35: 0.08 | C35: -0.02 | D35: 0.13 | E35: 0.11 | F35: -0.18 | G35: -0.08
A36: =AVERAGE(trust2!B36:'trust2'!G36) -> 0.78 | B36: 0.09 | C36: 0.08 | D36: 0.08 | E36: 0.09 | F36: -0.20 | G36: -0.09
A37: =AVERAGE(trust2!B37:'trust2'!G37) -> 0.73 | B37: 0.04 | C37: -0.06 | D37: 0.09 | E37: -0.00 | F37: -0.01 | G37: -0.05
A38: =AVERAGE(trust2!B38:'trust2'!G38) -> 0.63 | B38: -0.20 | C38: 0.22 | D38: -0.35 | E38: -0.27 | F38: 0.26 | G38: 0.31
A39: =AVERAGE(trust2!B39:'trust2'!G39) -> 0.59 | B39: -0.42 | C39: -0.12 | D39: -0.37 | E39: 0.12 | F39: 0.28 | G39: 0.48
A40: =AVERAGE(trust2!B40:'trust2'!G40) -> 0.63 | B40: -0.17 | C40: 0.05 | D40: -0.24 | E40: -0.13 | F40: 0.22 | G40: 0.24
A41: =AVERAGE(trust2!B41:'trust2'!G41) -> 0.75 | B41: 0.05 | C41: -0.05 | D41: 0.03 | E41: 0.02 | F41: 0.01 | G41: -0.05
A42: =AVERAGE(trust2!B42:'trust2'!G42) -> 0.77 | B42: 0.01 | C42: -0.07 | D42: 0.06 | E42: 0.02 | F42: 0.04 | G42: -0.06
A43: =AVERAGE(trust2!B43:'trust2'!G43) -> 0.67 | B43: 0.02 | C43: -0.14 | D43: -0.01 | E43: -0.02 | F43: 0.06 | G43: 0.06
A44: =AVERAGE(trust2!B44:'trust2'!G44) -> 0.69 | B44: 0.03 | C44: -0.07 | D44: 0.01 | E44: -0.04 | F44: 0.07 | G44: -0.00
A45: =AVERAGE(trust2!B45:'trust2'!G45) -> 0.69 | B45: 0.11 | C45: 0.02 | D45: -0.05 | E45: 0.02 | F45: -0.03 | G45: -0.06
A46: =AVERAGE(trust2!B46:'trust2'!G46) -> 0.79 | B46: 0.14 | C46: -0.20 | D46: 0.05 | E46: 0.07 | F46: -0.09 | G46: 0.03
A47: =AVERAGE(trust2!B47:'trust2'!G47) -> 0.70 | B47: -0.03 | C47: -0.07 | D47: -0.10 | E47: -0.09 | F47: 0.10 | G47: 0.16
A48: =AVERAGE(trust2!B48:'trust2'!G48) -> 0.75 | B48: -0.06 | C48: -0.18 | D48: 0.07 | E48: -0.02 | F48: 0.10 | G48: 0.05
A49: =AVERAGE(trust2!B49:'trust2'!G49) -> 0.74 | B49: 0.08 | C49: -0.21 | D49: 0.10 | E49: 0.03 | F49: -0.03 | G49: 0.02
A50: =AVERAGE(trust2!B50:'trust2'!G50) -> 0.73 | B50: 0.02 | C50: -0.07 | D50: 0.00 | E50: 0.03 | F50: 0.04 | G50: -0.02
A51: =AVERAGE(trust2!B51:'trust2'!G51) -> 0.76 | B51: 0.15 | C51: -0.26 | D51: 0.19 | E51: 0.16 | F51: -0.10 | G51: -0.13
A52: =AVERAGE(trust2!B52:'trust2'!G52) -> 0.66 | B52: -0.08 | C52: -0.15 | D52: 0.08 | E52: 0.07 | F52: 0.07 | G52: -0.00
A53: =AVERAGE(trust2!B53:'trust2'!G53) -> 0.76 | B53: 0.18 | C53: 0.02 | D53: 0.00 | E53: 0.13 | F53: -0.09 | G53: -0.20
A54: =AVERAGE(trust2!B54:'trust2'!G54) -> 0.70 | B54: 0.05 | C54: -0.28 | D54: -0.07 | E54: 0.06 | F54: 0.06 | G54: 0.14
A55: =AVERAGE(trust2!B55:'trust2'!G55) -> 0.63 | B55: 0.10 | C55: -0.11 | D55: -0.03 | E55: -0.06 | F55: 0.11 | G55: -0.03
A56: =AVERAGE(trust2!B56:'trust2'!G56) -> 0.68 | B56: -0.01 | C56: -0.24 | D56: 0.17 | E56: 0.04 | F56: -0.07 | G56: 0.10
A57: =AVERAGE(trust2!B57:'trust2'!G57) -> 0.81 | B57: 0.20 | C57: 0.05 | D57: 0.21 | E57: 0.06 | F57: -0.15 | G57: -0.28
A58: =AVERAGE(trust2!B58:'trust2'!G58) -> 0.74 | B58: 0.02 | C58: -0.03 | D58: 0.04 | E58: -0.04 | F58: 0.02 | G58: -0.01
A59: =AVERAGE(trust2!B59:'trust2'!G59) -> 0.79 | B59: 0.05 | C59: 0.09 | D59: 0.11 | E59: 0.15 | F59: 0.05 | G59: -0.38
A60: =AVERAGE(trust2!B60:'trust2'!G60) -> 0.78 | B60: -0.16 | C60: 0.43 | D60: 0.04 | E60: -0.70 | F60: 0.30 | G60: 0.06
A61: =AVERAGE(trust2!B61:'trust2'!G61) -> 0.86 | B61: 0.06 | C61: 0.03 | D61: 0.09 | E61: 0.10 | F61: 0.11 | G61: -0.34
A62: =AVERAGE(trust2!B62:'trust2'!G62) -> 0.79 | B62: 0.07 | C62: 0.06 | D62: 0.09 | E62: 0.02 | F62: 0.07 | G62: -0.27
A63: =AVERAGE(trust2!B63:'trust2'!G63) -> 0.49 | B63: -0.05 | C63: -0.15 | D63: -0.61 | E63: 0.02 | F63: 0.48 | G63: 0.33
A64: =AVERAGE(trust2!B64:'trust2'!G64) -> 0.69 | B64: 0.04 | C64: -0.07 | D64: -0.04 | E64: -0.15 | F64: 0.09 | G64: 0.11
A65: =AVERAGE(trust2!B65:'trust2'!G65) -> 0.90 | B65: 0.20 | C65: 0.27 | D65: 0.32 | E65: 0.31 | F65: -0.34 | G65: -0.51
A66: =AVERAGE(trust2!B66:'trust2'!G66) -> 0.80 | B66: -0.04 | C66: 0.02 | D66: 0.08 | E66: -0.01 | F66: 0.08 | G66: -0.13
A67: =AVERAGE(trust2!B67:'trust2'!G67) -> 0.91 | B67: 0.13 | C67: 0.14 | D67: 0.14 | E67: 0.18 | F67: 0.12 | G67: -0.58
A68: =AVERAGE(trust2!B68:'trust2'!G68) -> 0.77 | B68: 0.11 | C68: -0.07 | D68: 0.04 | E68: 0.16 | F68: -0.12 | G68: -0.09
A69: =AVERAGE(trust2!B69:'trust2'!G69) -> 0.73 | B69: 0.10 | C69: 0.04 | D69: -0.00 | E69: 0.06 | F69: 0.07 | G69: -0.24
A70: =AVERAGE(trust2!B70:'trust2'!G70) -> 0.70 | B70: 0.06 | C70: -0.08 | D70: 0.02 | E70: 0.11 | F70: -0.09 | G70: -0.01
A71: =AVERAGE(trust2!B71:'trust2'!G71) -> 0.62 | B71: 0.01 | C71: -0.17 | D71: -0.02 | E71: -0.05 | F71: 0.06 | G71: 0.14
A72: =AVERAGE(trust2!B72:'trust2'!G72) -> 0.72 | B72: 0.06 | C72: -0.19 | D72: 0.04 | E72: 0.01 | F72: 0.08 | G72: -0.03
A73: =AVERAGE(trust2!B73:'trust2'!G73) -> 0.75 | B73: -0.03 | C73: -0.05 | D73: 0.04 | E73: -0.03 | F73: 0.02 | G73: 0.03
A74: =AVERAGE(trust2!B74:'trust2'!G74) -> 0.82 | B74: 0.09 | C74: 0.13 | D74: 0.18 | E74: 0.03 | F74: -0.17 | G74: -0.17
A75: =AVERAGE(trust2!B75:'trust2'!G75) -> 0.74 | B75: 0.03 | C75: 0.01 | D75: -0.02 | E75: -0.02 | F75: -0.02 | G75: 0.02
A76: =AVERAGE(trust2!B76:'trust2'!G76) -> 0.82 | B76: 0.17 | C76: 0.14 | D76: 0.20 | E76: 0.16 | F76: -0.14 | G76: -0.40
A77: =AVERAGE(trust2!B77:'trust2'!G77) -> 0.76 | B77: 0.12 | C77: 0.16 | D77: 0.08 | E77: -0.07 | F77: -0.23 | G77: -0.00
A78: =AVERAGE(trust2!B78:'trust2'!G78) -> 0.70 | B78: 0.06 | C78: -0.05 | D78: 0.04 | E78: 0.08 | F78: -0.14 | G78: 0.01
A79: =AVERAGE(trust2!B79:'trust2'!G79) -> 0.63 | B79: -0.57 | C79: 0.57 | D79: 0.03 | E79: -0.14 | F79: -0.00 | G79: 0.12
A80: =AVERAGE(trust2!B80:'trust2'!G80) -> 0.59 | B80: -0.03 | C80: -0.05 | D80: -0.10 | E80: -0.24 | F80: 0.12 | G80: 0.29
A81: =AVERAGE(trust2!B81:'trust2'!G81) -> 0.78 | B81: 0.12 | C81: 0.11 | D81: 0.08 | E81: 0.00 | F81: -0.08 | G81: -0.18

Sheet 工作表1
A1: 泡泡圖 | B1: =COUNT(C2:C100) -> 16 | C1: X | D1: Y | E1: Size | F1: X | G1: Y | H1: No | W1: 工作表1
B2: 1 | C2: 0.01568928538 | D2: 0.07 | E2: 0.4279907721 | F2: 0.01568928538 | G2: 0.07 | H2: 1
B3: 2 | C3: 0.08847869861 | D3: -0.22 | E3: 0.3215246691 | F3: 0.08847869861 | G3: -0.22 | H3: 2
B4: 3 | C4: 0.003635271242 | D4: 0.24 | E4: 0.5063614124 | F4: 0.003635271242 | G4: 0.24 | H4: 3
B5: 4 | C5: -0.03351838771 | D5: -0.17 | E5: 0.3377499229 | F5: -0.03351838771 | G5: -0.17 | H5: 4
B6: 5 | C6: -0.06802008942 | D6: -0.16 | E6: 0.3410934679 | F6: -0.06802008942 | G6: -0.16 | H6: 5
B7: 6 | C7: 0.05300667795 | D7: 0.06 | E7: 0.4237825709 | F7: 0.05300667795 | G7: 0.06 | H7: 6
B8: 7 | C8: -0.0836443082 | D8: -0.42 | E8: 0.2641603741 | F8: -0.0836443082 | G8: -0.42 | H8: 7
B9: 8 | C9: -0.05923860152 | D9: 0.27 | E9: 0.5216282478 | F9: -0.05923860152 | G9: 0.27 | H9: 8
B10: 9 | C10: -0.06104268552 | D10: 0.21 | E10: 0.4915457839 | F10: -0.06104268552 | G10: 0.21 | H10: 9
B11: 10 | C11: -0.05953553624 | D11: 0.26 | E11: 0.5164883289 | F11: -0.05953553624 | G11: 0.26 | H11: 10
B12: 11 | C12: -0.0667913367 | D12: 0.03 | E12: 0.4114075416 | F12: -0.0667913367 | G12: 0.03 | H12: 11
B13: 12 | C13: -0.06092231964 | D13: -0.06 | E13: 0.3764339897 | F13: -0.06092231964 | G13: -0.06 | H13: 12
B14: 13 | C14: -0.05684218537 | D14: -0.82 | E14: 0.1787430727 | F14: -0.05684218537 | G14: -0.82 | H14: 13
B15: 14 | C15: -0.04376535848 | D15: 0.21 | E15: 0.4915457839 | F15: -0.04376535848 | G15: 0.21 | H15: 14
B16: 15 | C16: -0.05923860152 | D16: 0.27 | E16: 0.5216282478 | F16: -0.05923860152 | G16: 0.27 | H16: 15
B17: 16 | C17: -0.05529953747 | D17: 0.25 | E17: 0.5113995533 | F17: -0.05529953747 | G17: 0.25 | H17: 16

Sheet 工作表2
A1: 泡泡圖 | B1: =COUNT(C2:C100) -> 16 | C1: X | D1: Y | E1: Size | F1: X | G1: Y | H1: No | W1: 工作表2
B2: 1 | C2: -0.1542079612 | D2: 0.07 | E2: 0.4279907721 | F2: -0.1542079612 | G2: 0.07 | H2: 1
B3: 2 | C3: 0.1533114233 | D3: -0.22 | E3: 0.3215246691 | F3: 0.1533114233 | G3: -0.22 | H3: 2
B4: 3 | C4: 0.003635271242 | D4: 0.24 | E4: 0.5063614124 | F4: 0.003635271242 | G4: 0.24 | H4: 3
B5: 4 | C5: -0.03351838771 | D5: -0.17 | E5: 0.3377499229 | F5: -0.03351838771 | G5: -0.17 | H5: 4
B6: 5 | C6: -0.06802008942 | D6: -0.16 | E6: 0.3410934679 | F6: -0.06802008942 | G6: -0.16 | H6: 5
B7: 6 | C7: 0.05300667795 | D7: 0.06 | E7: 0.4237825709 | F7: 0.05300667795 | G7: 0.06 | H7: 6
B8: 7 | C8: -0.0836443082 | D8: -0.42 | E8: 0.2641603741 | F8: -0.0836443082 | G8: -0.42 | H8: 7
B9: 8 | C9: -0.05923860152 | D9: 0.27 | E9: 0.5216282478 | F9: -0.05923860152 | G9: 0.27 | H9: 8
B10: 9 | C10: -0.06104268552 | D10: 0.21 | E10: 0.4915457839 | F10: -0.06104268552 | G10: 0.21 | H10: 9
B11: 10 | C11: -0.05953553624 | D11: 0.26 | E11: 0.5164883289 | F11: -0.05953553624 | G11: 0.26 | H11: 10
B12: 11 | C12: -0.0667913367 | D12: 0.03 | E12: 0.4114075416 | F12: -0.0667913367 | G12: 0.03 | H12: 11
B13: 12 | C13: -0.06092231964 | D13: -0.06 | E13: 0.3764339897 | F13: -0.06092231964 | G13: -0.06 | H13: 12
B14: 13 | C14: -0.05684218537 | D14: -0.82 | E14: 0.1787430727 | F14: -0.05684218537 | G14: -0.82 | H14: 13
B15: 14 | C15: -0.04376535848 | D15: 0.21 | E15: 0.4915457839 | F15: -0.04376535848 | G15: 0.21 | H15: 14
B16: 15 | C16: -0.05923860152 | D16: 0.27 | E16: 0.5216282478 | F16: -0.05923860152 | G16: 0.27 | H16: 15
B17: 16 | C17: -0.05529953747 | D17: 0.25 | E17: 0.5113995533 | F17: -0.05529953747 | G17: 0.25 | H17: 16

Sheet 工作表3
A1: 泡泡圖 | B1: =COUNT(C2:C100) -> 16 | C1: X | D1: Y | E1: Size | F1: X | G1: Y | H1: No | W1: 工作表3
B2: 1 | C2: -0.1542079612 | D2: 0.07 | E2: 0.4279907721 | F2: -0.1542079612 | G2: 0.07 | H2: 1
B3: 2 | C3: 0.1533114233 | D3: -0.22 | E3: 0.3215246691 | F3: 0.1533114233 | G3: -0.22 | H3: 2
B4: 3 | C4: 0.003635271242 | D4: 0.24 | E4: 0.5063614124 | F4: 0.003635271242 | G4: 0.24 | H4: 3
B5: 4 | C5: -0.03351838771 | D5: -0.17 | E5: 0.3377499229 | F5: -0.03351838771 | G5: -0.17 | H5: 4
B6: 5 | C6: -0.06802008942 | D6: -0.16 | E6: 0.3410934679 | F6: -0.06802008942 | G6: -0.16 | H6: 5
B7: 6 | C7: 0.05300667795 | D7: 0.06 | E7: 0.4237825709 | F7: 0.05300667795 | G7: 0.06 | H7: 6
B8: 7 | C8: -0.0836443082 | D8: -0.42 | E8: 0.2641603741 | F8: -0.0836443082 | G8: -0.42 | H8: 7
B9: 8 | C9: -0.05923860152 | D9: 0.27 | E9: 0.5216282478 | F9: -0.05923860152 | G9: 0.27 | H9: 8
B10: 9 | C10: -0.06104268552 | D10: 0.21 | E10: 0.4915457839 | F10: -0.06104268552 | G10: 0.21 | H10: 9
B11: 10 | C11: -0.05953553624 | D11: 0.26 | E11: 0.5164883289 | F11: -0.05953553624 | G11: 0.26 | H11: 10
B12: 11 | C12: -0.0667913367 | D12: 0.03 | E12: 0.4114075416 | F12: -0.0667913367 | G12: 0.03 | H12: 11
B13: 12 | C13: -0.06092231964 | D13: -0.06 | E13: 0.3764339897 | F13: -0.06092231964 | G13: -0.06 | H13: 12
B14: 13 | C14: -0.05684218537 | D14: -0.82 | E14: 0.1787430727 | F14: -0.05684218537 | G14: -0.82 | H14: 13
B15: 14 | C15: -0.04376535848 | D15: 0.21 | E15: 0.4915457839 | F15: -0.04376535848 | G15: 0.21 | H15: 14
B16: 15 | C16: -0.05923860152 | D16: 0.27 | E16: 0.5216282478 | F16: -0.05923860152 | G16: 0.27 | H16: 15
B17: 16 | C17: -0.05529953747 | D17: 0.25 | E17: 0.5113995533 | F17: -0.05529953747 | G17: 0.25 | H17: 16

Sheet 工作表4
A1: 泡泡圖 | B1: =COUNT(C2:C100) -> 16 | C1: X | D1: Y | E1: Size | F1: X | G1: Y | H1: No | W1: 工作表4
B2: 1 | C2: -2.289382547 | D2: 0.07 | E2: 0.4279907721 | F2: -2.289382547 | G2: 0.07 | H2: 1
B3: 2 | C3: 2.684644905 | D3: -0.22 | E3: 0.3215246691 | F3: 2.684644905 | G3: -0.22 | H3: 2
B4: 3 | C4: 0.003635271242 | D4: 0.24 | E4: 0.5063614124 | F4: 0.003635271242 | G4: 0.24 | H4: 3
B5: 4 | C5: -0.03351838771 | D5: -0.17 | E5: 0.3377499229 | F5: -0.03351838771 | G5: -0.17 | H5: 4
B6: 5 | C6: -0.06802008942 | D6: -0.16 | E6: 0.3410934679 | F6: -0.06802008942 | G6: -0.16 | H6: 5
B7: 6 | C7: 0.05300667795 | D7: 0.06 | E7: 0.4237825709 | F7: 0.05300667795 | G7: 0.06 | H7: 6
B8: 7 | C8: -0.0836443082 | D8: -0.42 | E8: 0.2641603741 | F8: -0.0836443082 | G8: -0.42 | H8: 7
B9: 8 | C9: -0.05923860152 | D9: 0.27 | E9: 0.5216282478 | F9: -0.05923860152 | G9: 0.27 | H9: 8
B10: 9 | C10: -0.06104268552 | D10: 0.21 | E10: 0.4915457839 | F10: -0.06104268552 | G10: 0.21 | H10: 9
B11: 10 | C11: -0.05953553624 | D11: 0.26 | E11: 0.5164883289 | F11: -0.05953553624 | G11: 0.26 | H11: 10
B12: 11 | C12: -0.0667913367 | D12: 0.03 | E12: 0.4114075416 | F12: -0.0667913367 | G12: 0.03 | H12: 11
B13: 12 | C13: -0.06092231964 | D13: -0.06 | E13: 0.3764339897 | F13: -0.06092231964 | G13: -0.06 | H13: 12
B14: 13 | C14: -0.05684218537 | D14: -0.82 | E14: 0.1787430727 | F14: -0.05684218537 | G14: -0.82 | H14: 13
B15: 14 | C15: -0.04376535848 | D15: 0.21 | E15: 0.4915457839 | F15: -0.04376535848 | G15: 0.21 | H15: 14
B16: 15 | C16: -0.05923860152 | D16: 0.27 | E16: 0.5216282478 | F16: -0.05923860152 | G16: 0.27 | H16: 15
B17: 16 | C17: -0.05529953747 | D17: 0.25 | E17: 0.5113995533 | F17: -0.05529953747 | G17: 0.25 | H17: 16

Sheet bubble
A1: 泡泡圖 | B1: =COUNT(C2:C100) -> 16 | C1: X | D1: Y | E1: Size | F1: X | G1: Y | H1: No
B2: 1 | C2: -2.289382547 | D2: 0.07 | E2: 0.4279907721 | F2: -2.289382547 | G2: 0.07 | H2: 1
B3: 2 | C3: 2.684644905 | D3: -0.22 | E3: 0.3215246691 | F3: 2.684644905 | G3: -0.22 | H3: 2
B4: 3 | C4: 0.003635271242 | D4: 0.24 | E4: 0.5063614124 | F4: 0.003635271242 | G4: 0.24 | H4: 3
B5: 4 | C5: -0.03351838771 | D5: -0.17 | E5: 0.3377499229 | F5: -0.03351838771 | G5: -0.17 | H5: 4
B6: 5 | C6: -0.06802008942 | D6: -0.16 | E6: 0.3410934679 | F6: -0.06802008942 | G6: -0.16 | H6: 5
B7: 6 | C7: 0.05300667795 | D7: 0.06 | E7: 0.4237825709 | F7: 0.05300667795 | G7: 0.06 | H7: 6
B8: 7 | C8: -0.0836443082 | D8: -0.42 | E8: 0.2641603741 | F8: -0.0836443082 | G8: -0.42 | H8: 7
B9: 8 | C9: -0.05923860152 | D9: 0.27 | E9: 0.5216282478 | F9: -0.05923860152 | G9: 0.27 | H9: 8
B10: 9 | C10: -0.06104268552 | D10: 0.21 | E10: 0.4915457839 | F10: -0.06104268552 | G10: 0.21 | H10: 9
B11: 10 | C11: -0.05953553624 | D11: 0.26 | E11: 0.5164883289 | F11: -0.05953553624 | G11: 0.26 | H11: 10
B12: 11 | C12: -0.0667913367 | D12: 0.03 | E12: 0.4114075416 | F12: -0.0667913367 | G12: 0.03 | H12: 11
B13: 12 | C13: -0.06092231964 | D13: -0.06 | E13: 0.3764339897 | F13: -0.06092231964 | G13: -0.06 | H13: 12
B14: 13 | C14: -0.05684218537 | D14: -0.82 | E14: 0.1787430727 | F14: -0.05684218537 | G14: -0.82 | H14: 13
B15: 14 | C15: -0.04376535848 | D15: 0.21 | E15: 0.4915457839 | F15: -0.04376535848 | G15: 0.21 | H15: 14
B16: 15 | C16: -0.05923860152 | D16: 0.27 | E16: 0.5216282478 | F16: -0.05923860152 | G16: 0.27 | H16: 15
B17: 16 | C17: -0.05529953747 | D17: 0.25 | E17: 0.5113995533 | F17: -0.05529953747 | G17: 0.25 | H17: 16

Sheet ANOVA2
A1: =COUNT(B2:B4000)+2 -> 4 | X1: B23 | Y1: B24 | Z1: B25
B2: -0.26 | C2: 0.09 | X2: 20.83 | Y2: 66.67 | Z2: 66.67
B3: -0.47 | C3: 0.47 | X3: 24.66 | Y3: 62.33 | Z3: 46.58

Sheet TableA
A1: Error of .05 | B1: 2 | C1: 3 | D1: 4 | E1: 5 | F1: 6 | G1: 7 | H1: 8 | I1: 9 | J1: 10 | K1: 11 | L1: 12 | M1: 13 | N1: 14 | O1: 15 | S1: Nomal Residual Test | V1: 0.1 | W1: 0.05 | X1: 0.025 | Y1: 0.01 | Z1: 0.005 | AA1: 固定效果模式 | AB1: v2 | AC1: v1 | AD1: v2v1 | AE1: 1 | AF1: 1.5 | AG1: 2 | AH1: 2.5 | AI1: 3 | AJ1: 3.5 | AK1: 4 | AL1: 4.5 | AM1: 5
A2: 1 | B2: 17.97 | C2: 26.98 | D2: 32.82 | E2: 37.08 | F2: 40.41 | G2: 43.12 | H2: 45.4 | I2: 47.36 | J2: 49.07 | K2: 50.59 | L2: 51.96 | M2: 53.2 | N2: 54.33 | O2: 55.36 | S2: (本書附表H) | U2: 5 | V2: 0.903 | W2: 0.88 | X2: 0.865 | Y2: 0.826 | Z2: 0.807 | AA2: alpha=.05 | AB2: 1 | AC2: 2 | AD2: 12 | AE2: 8 | AF2: 11 | AG2: 14 | AH2: 18 | AI2: 21 | AJ2: 24 | AK2: 27 | AL2: 31 | AM2: 34
A3: 2 | B3: 6.08 | C3: 8.33 | D3: 9.8 | E3: 1088 | F3: 11.74 | G3: 12.44 | H3: 13.03 | I3: 13.54 | J3: 13.99 | K3: 14.39 | L3: 14.75 | M3: 15.08 | N3: 15.38 | O3: 15.65 | U3: 6 | V3: 0.91 | W3: 0.888 | X3: 0.866 | Y3: 0.838 | Z3: 0.82 | AA3: (本書附表2) | AB3: 2 | AC3: 2 | AD3: 22 | AE3: 12 | AF3: 20 | AG3: 30 | AH3: 41 | AI3: 52 | AJ3: 62 | AK3: 71 | AL3: 79 | AM3: 85
A4: 3 | B4: 4.5 | C4: 5.91 | D4: 6.82 | E4: 7.5 | F4: 8.04 | G4: 8.48 | H4: 8.85 | I4: 9.18 | J4: 9.46 | K4: 9.72 | L4: 9.95 | M4: 10.15 | N4: 10.35 | O4: 10.53 | U4: 7 | V4: 0.918 | W4: 0.898 | X4: 0.877 | Y4: 0.85 | Z4: 0.828 | AB4: 3 | AC4: 2 | AD4: 32 | AE4: 15 | AF4: 28 | AG4: 44 | AH4: 60 | AI4: 75 | AJ4: 86 | AK4: 93 | AL4: 97 | AM4: 99
A5: 4 | B5: 3.39 | C5: 5.04 | D5: 5.76 | E5: 6.29 | F5: 6.71 | G5: 7.05 | H5: 7.35 | I5: 7.6 | J5: 7.33 | K5: 8.03 | L5: 8.21 | M5: 8.37 | N5: 8.52 | O5: 8.66 | U5: 8 | V5: 0.924 | W5: 0.906 | X5: 0.887 | Y5: 0.861 | Z5: 0.84 | AB5: 4 | AC5: 2 | AD5: 42 | AE5: 18 | AF5: 34 | AG5: 54 | AH5: 73 | AI5: 86 | AJ5: 94 | AK5: 98 | AL5: 99 | AM5: 100
A6: 5 | B6: 3.64 | C6: 1.6 | D6: 5.22 | E6: 5.67 | F6: 6.03 | G6: 6.33 | H6: 6.58 | I6: 6.8 | J6: 7 | K6: 7.17 | L6: 7.32 | M6: 7.47 | N6: 7.6 | O6: 7.72 | U6: 9 | V6: 0.93 | W6: 0.912 | X6: 0.894 | Y6: 0.871 | Z6: 0.854 | AB6: 5 | AC6: 2 | AD6: 52 | AE6: 20 | AF6: 39 | AG6: 61 | AH6: 80 | AI6: 92 | AJ6: 97 | AK6: 99 | AL6: 100 | AM6: 100
A7: 6 | B7: 3.46 | C7: 4.34 | D7: 4.9 | E7: 5.31 | F7: 5.63 | G7: 5.9 | H7: 6.12 | I7: 6.32 | J7: 6.49 | K7: 6.65 | L7: 6.79 | M7: 6.92 | N7: 7.03 | O7: 7.14 | U7: 10 | V7: 0.934 | W7: 0.918 | X7: 0.901 | Y7: 0.879 | Z7: 0.862 | AB7: 6 | AC7: 2 | AD7: 62 | AE7: 21 | AF7: 42 | AG7: 66 | AH7: 85 | AI7: 95 | AJ7: 99 | AK7: 100 | AL7: 100 | AM7: 100
A8: 7 | B8: 3.34 | C8: 4.16 | D8: 4.68 | E8: 5.06 | F8: 5.36 | G8: 5.61 | H8: 5.82 | I8: 6 | J8: 6.16 | K8: 6.3 | L8: 6.43 | M8: 6.55 | N8: 6.66 | O8: 6.76 | U8: 12 | V8: 0.942 | W8: 0.928 | X8: 0.912 | Y8: 0.892 | Z8: 0.876 | AB8: 7 | AC8: 2 | AD8: 72 | AE8: 22 | AF8: 45 | AG8: 70 | AH8: 88 | AI8: 96 | AJ8: 99 | AK8: 100 | AL8: 100 | AM8: 100
A9: 8 | B9: 3.26 | C9: 4.04 | D9: 4.53 | E9: 4.89 | F9: 5.17 | G9: 5.4 | H9: 5.6 | I9: 5.77 | J9: 5.92 | K9: 6.05 | L9: 6.18 | M9: 6.29 | N9: 6.39 | O9: 6.48 | U9: 14 | V9: 0.948 | W9: 0.935 | X9: 0.923 | Y9: 0.905 | Z9: 0.89 | AB9: 8 | AC9: 2 | AD9: 82 | AE9: 23 | AF9: 47 | AG9: 72 | AH9: 90 | AI9: 97 | AJ9: 100 | AK9: 100 | AL9: 100 | AM9: 100
A10: 9 | B10: 3.2 | C10: 3.95 | D10: 4.42 | E10: 4.76 | F10: 5.02 | G10: 5.24 | H10: 5.43 | I10: 5.6 | J10: 5.74 | K10: 5.87 | L10: 5.98 | M10: 6.09 | N10: 6.19 | O10: 6.28 | U10: 16 | V10: 0.953 | W10: 0.941 | X10: 0.929 | Y10: 0.913 | Z10: 0.899 | AB10: 9 | AC10: 2 | AD10: 92 | AE10: 24 | AF10: 49 | AG10: 74 | AH10: 91 | AI10: 98 | AJ10: 100 | AK10: 100 | AL10: 100 | AM10: 100
A11: 10 | B11: 3.15 | C11: 3.88 | D11: 4.33 | E11: 4.65 | F11: 4.91 | G11: 5.12 | H11: 5.3 | I11: 5.46 | J11: 5.6 | K11: 5.72 | L11: 5.83 | M11: 5.94 | N11: 6.03 | O11: 6.11 | U11: 18 | V11: 0.957 | W11: 0.946 | X11: 0.935 | Y11: 0.92 | Z11: 0.908 | AB11: 10 | AC11: 2 | AD11: 102 | AE11: 25 | AF11: 50 | AG11: 76 | AH11: 92 | AI11: 98 | AJ11: 100 | AK11: 100 | AL11: 100 | AM11: 100
A12: 11 | B12: 3.11 | C12: 3.82 | D12: 4.26 | E12: 4.57 | F12: 4.82 | G12: 5.03 | H12: 5.2 | I12: 5.35 | J12: 5.49 | K12: 5.6 | L12: 5.71 | M12: 5.81 | N12: 5.9 | O12: 5.98 | U12: 20 | V12: 0.96 | W12: 0.951 | X12: 0.94 | Y12: 0.926 | Z12: 0.916 | AB12: 12 | AC12: 2 | AD12: 122 | AE12: 26 | AF12: 53 | AG12: 78 | AH12: 93 | AI12: 99 | AJ12: 100 | AK12: 100 | AL12: 100 | AM12: 100
A13: 12 | B13: 3.08 | C13: 3.77 | D13: 4.2 | E13: 4.51 | F13: 4.75 | G13: 4.95 | H13: 5.12 | I13: 5.26 | J13: 5.4 | K13: 5.51 | L13: 5.62 | M13: 5.71 | N13: 5.79 | O13: 5.88 | U13: 22 | V13: 0.963 | W13: 0.954 | X13: 0.945 | Y13: 0.933 | Z13: 0.923 | AB13: 14 | AC13: 2 | AD13: 142 | AE13: 27 | AF13: 54 | AG13: 80 | AH13: 94 | AI13: 99 | AJ13: 100 | AK13: 100 | AL13: 100 | AM13: 100
A14: 13 | B14: 3.06 | C14: 3.74 | D14: 4.15 | E14: 4.45 | F14: 4.69 | G14: 4.88 | H14: 5.05 | I14: 5.19 | J14: 5.32 | K14: 5.43 | L14: 5.53 | M14: 5.63 | N14: 5.71 | O14: 5.79 | U14: 24 | V14: 0.965 | W14: 0.957 | X14: 0.949 | Y14: 0.937 | Z14: 0.927 | AB14: 16 | AC14: 2 | AD14: 162 | AE14: 27 | AF14: 55 | AG14: 81 | AH14: 95 | AI14: 99 | AJ14: 100 | AK14: 100 | AL14: 100 | AM14: 100
A15: 14 | B15: 3.03 | C15: 3.7 | D15: 4.11 | E15: 4.41 | F15: 4.64 | G15: 4.83 | H15: 4.99 | I15: 5.13 | J15: 5.25 | K15: 5.36 | L15: 5.46 | M15: 5.55 | N15: 5.64 | O15: 5.71 | U15: 26 | V15: 0.967 | W15: 0.96 | X15: 0.952 | Y15: 0.941 | Z15: 0.932 | AB15: 18 | AC15: 2 | AD15: 182 | AE15: 28 | AF15: 56 | AG15: 82 | AH15: 95 | AI15: 99 | AJ15: 100 | AK15: 100 | AL15: 100 | AM15: 100
A16: 15 | B16: 3.01 | C16: 3.67 | D16: 4.08 | E16: 4.37 | F16: 4.6 | G16: 4.78 | H16: 4.94 | I16: 5.08 | J16: 5.2 | K16: 5.31 | L16: 5.4 | M16: 5.49 | N16: 5.57 | O16: 5.65 | U16: 28 | V16: 0.969 | W16: 0.962 | X16: 0.955 | Y16: 0.944 | Z16: 0.936 | AB16: 20 | AC16: 2 | AD16: 202 | AE16: 28 | AF16: 57 | AG16: 83 | AH16: 96 | AI16: 99 | AJ16: 100 | AK16: 100 | AL16: 100 | AM16: 100
A17: 16 | B17: 3 | C17: 3.65 | D17: 4.05 | E17: 4.33 | F17: 4.56 | G17: 4.74 | H17: 4.9 | I17: 5.03 | J17: 5.15 | K17: 5.26 | L17: 5.35 | M17: 5.44 | N17: 5.52 | O17: 5.59 | U17: 30 | V17: 0.971 | W17: 0.964 | X17: 0.957 | Y17: 0.947 | Z17: 0.939 | AB17: 22 | AC17: 2 | AD17: 222 | AE17: 29 | AF17: 58 | AG17: 83 | AH17: 96 | AI17: 99 | AJ17: 100 | AK17: 100 | AL17: 100 | AM17: 100
A18: 17 | B18: 2.98 | C18: 3.63 | D18: 4.02 | E18: 4.3 | F18: 4.52 | G18: 4.7 | H18: 4.86 | I18: 4.99 | J18: 5.11 | K18: 5.21 | L18: 5.31 | M18: 5.39 | N18: 5.47 | O18: 5.54 | U18: 40 | V18: 0.977 | W18: 0.972 | X18: 0.966 | Y18: 0.959 | Z18: 0.953 | AB18: 24 | AC18: 2 | AD18: 242 | AE18: 29 | AF18: 58 | AG18: 84 | AH18: 96 | AI18: 99 | AJ18: 100 | AK18: 100 | AL18: 100 | AM18: 100
A19: 18 | B19: 2.97 | C19: 3.61 | D19: 4 | E19: 4.28 | F19: 4.5 | G19: 4.67 | H19: 4.82 | I19: 4.96 | J19: 5.07 | K19: 5.17 | L19: 5.27 | M19: 5.35 | N19: 5.43 | O19: 5.5 | U19: 50 | V19: 0.981 | W19: 0.977 | X19: 0.972 | Y19: 0.966 | Z19: 0.961 | AB19: 26 | AC19: 2 | AD19: 262 | AE19: 29 | AF19: 59 | AG19: 84 | AH19: 96 | AI19: 99 | AJ19: 100 | AK19: 100 | AL19: 100 | AM19: 100
A20: 19 | B20: 2.96 | C20: 3.59 | D20: 3.98 | E20: 4.25 | F20: 4.47 | G20: 4.64 | H20: 4.79 | I20: 4.92 | J20: 5.04 | K20: 5.14 | L20: 5.23 | M20: 5.32 | N20: 5.39 | O20: 5.46 | U20: 60 | V20: 0.984 | W20: 0.98 | X20: 0.976 | Y20: 0.971 | Z20: 0.967 | AB20: 28 | AC20: 2 | AD20: 282 | AE20: 29 | AF20: 59 | AG20: 85 | AH20: 96 | AI20: 100 | AJ20: 100 | AK20: 100 | AL20: 100 | AM20: 100
A21: 20 | B21: 2.95 | C21: 3.58 | D21: 3.96 | E21: 4.23 | F21: 4.44 | G21: 4.62 | H21: 4.77 | I21: 4.9 | J21: 5.01 | K21: 5.11 | L21: 5.2 | M21: 5.28 | N21: 5.36 | O21: 5.43 | U21: 70 | V21: 0.986 | W21: 0.983 | X21: 0.979 | Y21: 0.975 | Z21: 0.971 | AB21: 30 | AC21: 2 | AD21: 302 | AE21: 29 | AF21: 60 | AG21: 85 | AH21: 97 | AI21: 100 | AJ21: 100 | AK21: 100 | AL21: 100 | AM21: 100
A22: 24 | B22: 2.92 | C22: 3.53 | D22: 3.9 | E22: 4.17 | F22: 4.37 | G22: 4.54 | H22: 4.68 | I22: 4.81 | J22: 1.92 | K22: 5.01 | L22: 5.1 | M22: 5.18 | N22: 5.25 | O22: 5.32 | U22: 80 | V22: 0.987 | W22: 0.985 | X22: 0.982 | Y22: 0.978 | Z22: 0.975 | AB22: 60 | AC22: 2 | AD22: 602 | AE22: 31 | AF22: 62 | AG22: 87 | AH22: 97 | AI22: 100 | AJ22: 100 | AK22: 100 | AL22: 100 | AM22: 100
A23: 30 | B23: 2.89 | C23: 3.49 | D23: 3.84 | E23: 4.1 | F23: 4.3 | G23: 4.46 | H23: 4.6 | I23: 4.72 | J23: 4.82 | K23: 4.92 | L23: 5 | M23: 5.08 | N23: 5.15 | O23: 5.21 | U23: 90 | V23: 0.988 | W23: 0.986 | X23: 0.984 | Y23: 0.98 | Z23: 0.977 | AB23: 120 | AC23: 2 | AD23: 1202 | AE23: 31 | AF23: 63 | AG23: 88 | AH23: 98 | AI23: 100 | AJ23: 100 | AK23: 100 | AL23: 100 | AM23: 100
A24: 40 | B24: 2.86 | C24: 3.44 | D24: 3.79 | E24: 4.04 | F24: 4.23 | G24: 4.39 | H24: 4.52 | I24: 4.64 | J24: 4.74 | K24: 4.82 | L24: 4.9 | M24: 4.98 | N24: 5.04 | O24: 5.11 | U24: 100 | V24: 0.989 | W24: 0.987 | X24: 0.985 | Y24: 0.985 | Z24: 0.979 | AB24: 300 | AC24: 2 | AD24: 3002 | AE24: 32 | AF24: 64 | AG24: 88 | AH24: 98 | AI24: 100 | AJ24: 100 | AK24: 100 | AL24: 100 | AM24: 100
A25: 60 | B25: 2.83 | C25: 3.4 | D25: 3.74 | E25: 3.98 | F25: 4.16 | G25: 4.31 | H25: 4.44 | I25: 4.55 | J25: 4.65 | K25: 4.73 | L25: 4.81 | M25: 4.88 | N25: 4.94 | O25: 5 | AB25: 1 | AC25: 3 | AD25: 13 | AE25: 8 | AF25: 10 | AG25: 13 | AH25: 16 | AI25: 19 | AJ25: 22 | AK25: 25 | AL25: 28 | AM25: 31
A26: 102 | B26: 2.8 | C26: 3.36 | D26: 3.69 | E26: 3.92 | F26: 4.1 | G26: 4.24 | H26: 4.36 | I26: 4.47 | J26: 4.56 | K26: 4.64 | L26: 4.71 | M26: 4.78 | N26: 4.84 | O26: 4.9 | AB26: 2 | AC26: 3 | AD26: 23 | AE26: 11 | AF26: 18 | AG26: 27 | AH26: 38 | AI26: 48 | AJ26: 58 | AK26: 68 | AL26: 76 | AM26: 82
A27: others | B27: 2.77 | C27: 3.31 | D27: 3.63 | E27: 3.86 | F27: 4.03 | G27: 4.17 | H27: 4.29 | I27: 4.39 | J27: 4.47 | K27: 4.55 | L27: 4.62 | M27: 4.68 | N27: 4.74 | O27: 4.8 | AB27: 3 | AC27: 3 | AD27: 33 | AE27: 14 | AF27: 26 | AG27: 42 | AH27: 58 | AI27: 73 | AJ27: 84 | AK27: 92 | AL27: 96 | AM27: 98
AB28: 4 | AC28: 3 | AD28: 43 | AE28: 17 | AF28: 33 | AG28: 53 | AH28: 72 | AI28: 86 | AJ28: 94 | AK28: 98 | AL28: 99 | AM28: 100
AB29: 5 | AC29: 3 | AD29: 53 | AE29: 19 | AF29: 38 | AG29: 61 | AH29: 81 | AI29: 93 | AJ29: 98 | AK29: 99 | AL29: 100 | AM29: 100
AB30: 6 | AC30: 3 | AD30: 63 | AE30: 21 | AF30: 43 | AG30: 67 | AH30: 86 | AI30: 96 | AJ30: 99 | AK30: 100 | AL30: 100 | AM30: 100
AB31: 7 | AC31: 3 | AD31: 73 | AE31: 22 | AF31: 46 | AG31: 72 | AH31: 89 | AI31: 97 | AJ31: 100 | AK31: 100 | AL31: 100 | AM31: 100
AB32: 8 | AC32: 3 | AD32: 83 | AE32: 24 | AF32: 49 | AG32: 75 | AH32: 92 | AI32: 98 | AJ32: 100 | AK32: 100 | AL32: 100 | AM32: 100
AB33: 9 | AC33: 3 | AD33: 93 | AE33: 25 | AF33: 51 | AG33: 77 | AH33: 93 | AI33: 99 | AJ33: 100 | AK33: 100 | AL33: 100 | AM33: 100
AB34: 10 | AC34: 3 | AD34: 103 | AE34: 25 | AF34: 53 | AG34: 79 | AH34: 94 | AI34: 99 | AJ34: 100 | AK34: 100 | AL34: 100 | AM34: 100
AB35: 12 | AC35: 3 | AD35: 123 | AE35: 27 | AF35: 56 | AG35: 82 | AH35: 96 | AI35: 99 | AJ35: 100 | AK35: 100 | AL35: 100 | AM35: 100
AB36: 14 | AC36: 3 | AD36: 143 | AE36: 28 | AF36: 58 | AG36: 84 | AH36: 97 | AI36: 100 | AJ36: 100 | AK36: 100 | AL36: 100 | AM36: 100
AB37: 16 | AC37: 3 | AD37: 163 | AE37: 29 | AF37: 60 | AG37: 86 | AH37: 97 | AI37: 100 | AJ37: 100 | AK37: 100 | AL37: 100 | AM37: 100
AB38: 18 | AC38: 3 | AD38: 183 | AE38: 29 | AF38: 61 | AG38: 87 | AH38: 97 | AI38: 100 | AJ38: 100 | AK38: 100 | AL38: 100 | AM38: 100
AB39: 20 | AC39: 3 | AD39: 203 | AE39: 30 | AF39: 62 | AG39: 87 | AH39: 98 | AI39: 100 | AJ39: 100 | AK39: 100 | AL39: 100 | AM39: 100
AB40: 22 | AC40: 3 | AD40: 223 | AE40: 31 | AF40: 63 | AG40: 88 | AH40: 98 | AI40: 100 | AJ40: 100 | AK40: 100 | AL40: 100 | AM40: 100
AB41: 24 | AC41: 3 | AD41: 243 | AE41: 31 | AF41: 63 | AG41: 89 | AH41: 98 | AI41: 100 | AJ41: 100 | AK41: 100 | AL41: 100 | AM41: 100
AB42: 26 | AC42: 3 | AD42: 263 | AE42: 31 | AF42: 64 | AG42: 89 | AH42: 98 | AI42: 100 | AJ42: 100 | AK42: 100 | AL42: 100 | AM42: 100
AB43: 28 | AC43: 3 | AD43: 283 | AE43: 32 | AF43: 65 | AG43: 89 | AH43: 98 | AI43: 100 | AJ43: 100 | AK43: 100 | AL43: 100 | AM43: 100
AB44: 30 | AC44: 3 | AD44: 303 | AE44: 32 | AF44: 65 | AG44: 90 | AH44: 98 | AI44: 100 | AJ44: 100 | AK44: 100 | AL44: 100 | AM44: 100
AB45: 60 | AC45: 3 | AD45: 603 | AE45: 34 | AF45: 68 | AG45: 92 | AH45: 99 | AI45: 100 | AJ45: 100 | AK45: 100 | AL45: 100 | AM45: 100
AB46: 120 | AC46: 3 | AD46: 1203 | AE46: 35 | AF46: 70 | AG46: 93 | AH46: 99 | AI46: 100 | AJ46: 100 | AK46: 100 | AL46: 100 | AM46: 100
AB47: 300 | AC47: 3 | AD47: 3003 | AE47: 36 | AF47: 71 | AG47: 93 | AH47: 99 | AI47: 100 | AJ47: 100 | AK47: 100 | AL47: 100 | AM47: 100
AB48: 1 | AC48: 4 | AD48: 14 | AE48: 8 | AF48: 10 | AG48: 13 | AH48: 15 | AI48: 18 | AJ48: 21 | AK48: 24 | AL48: 27 | AM48: 29
AB49: 2 | AC49: 4 | AD49: 24 | AE49: 11 | AF49: 18 | AG49: 26 | AH49: 36 | AI49: 46 | AJ49: 56 | AK49: 66 | AL49: 74 | AM49: 80
AB50: 3 | AC50: 4 | AD50: 34 | AE50: 14 | AF50: 26 | AG50: 41 | AH50: 57 | AI50: 72 | AJ50: 83 | AK50: 91 | AL50: 96 | AM50: 98
AB51: 4 | AC51: 4 | AD51: 44 | AE51: 17 | AF51: 33 | AG51: 53 | AH51: 72 | AI51: 86 | AJ51: 94 | AK51: 98 | AL51: 99 | AM51: 100
AB52: 5 | AC52: 4 | AD52: 54 | AE52: 19 | AF52: 39 | AG52: 62 | AH52: 81 | AI52: 93 | AJ52: 98 | AK52: 100 | AL52: 100 | AM52: 100
AB53: 6 | AC53: 4 | AD53: 64 | AE53: 21 | AF53: 43 | AG53: 69 | AH53: 87 | AI53: 96 | AJ53: 99 | AK53: 100 | AL53: 100 | AM53: 100
AB54: 7 | AC54: 4 | AD54: 74 | AE54: 23 | AF54: 47 | AG54: 73 | AH54: 91 | AI54: 98 | AJ54: 100 | AK54: 100 | AL54: 100 | AM54: 100
AB55: 8 | AC55: 4 | AD55: 84 | AE55: 24 | AF55: 50 | AG55: 77 | AH55: 93 | AI55: 99 | AJ55: 100 | AK55: 100 | AL55: 100 | AM55: 100
AB56: 9 | AC56: 4 | AD56: 94 | AE56: 25 | AF56: 53 | AG56: 80 | AH56: 98 | AI56: 99 | AJ56: 100 | AK56: 100 | AL56: 100 | AM56: 100
AB57: 10 | AC57: 4 | AD57: 104 | AE57: 26 | AF57: 55 | AG57: 82 | AH57: 96 | AI57: 99 | AJ57: 100 | AK57: 100 | AL57: 100 | AM57: 100
AB58: 12 | AC58: 4 | AD58: 124 | AE58: 28 | AF58: 59 | AG58: 85 | AH58: 97 | AI58: 100 | AJ58: 100 | AK58: 100 | AL58: 100 | AM58: 100
AB59: 14 | AC59: 4 | AD59: 144 | AE59: 29 | AF59: 61 | AG59: 87 | AH59: 98 | AI59: 100 | AJ59: 100 | AK59: 100 | AL59: 100 | AM59: 100
AB60: 16 | AC60: 4 | AD60: 164 | AE60: 30 | AF60: 63 | AG60: 89 | AH60: 98 | AI60: 100 | AJ60: 100 | AK60: 100 | AL60: 100 | AM60: 100
AB61: 18 | AC61: 4 | AD61: 184 | AE61: 31 | AF61: 65 | AG61: 90 | AH61: 99 | AI61: 100 | AJ61: 100 | AK61: 100 | AL61: 100 | AM61: 100
AB62: 20 | AC62: 4 | AD62: 204 | AE62: 32 | AF62: 66 | AG62: 91 | AH62: 99 | AI62: 100 | AJ62: 100 | AK62: 100 | AL62: 100 | AM62: 100
AB63: 22 | AC63: 4 | AD63: 224 | AE63: 33 | AF63: 67 | AG63: 91 | AH63: 99 | AI63: 100 | AJ63: 100 | AK63: 100 | AL63: 100 | AM63: 100
AB64: 24 | AC64: 4 | AD64: 244 | AE64: 33 | AF64: 68 | AG64: 92 | AH64: 99 | AI64: 100 | AJ64: 100 | AK64: 100 | AL64: 100 | AM64: 100
AB65: 26 | AC65: 4 | AD65: 264 | AE65: 33 | AF65: 69 | AG65: 92 | AH65: 99 | AI65: 100 | AJ65: 100 | AK65: 100 | AL65: 100 | AM65: 100
AB66: 28 | AC66: 4 | AD66: 284 | AE66: 34 | AF66: 69 | AG66: 93 | AH66: 99 | AI66: 100 | AJ66: 100 | AK66: 100 | AL66: 100 | AM66: 100
AB67: 30 | AC67: 4 | AD67: 304 | AE67: 34 | AF67: 70 | AG67: 93 | AH67: 99 | AI67: 100 | AJ67: 100 | AK67: 100 | AL67: 100 | AM67: 100
AB68: 60 | AC68: 4 | AD68: 604 | AE68: 37 | AF68: 74 | AG68: 93 | AH68: 100 | AI68: 100 | AJ68: 100 | AK68: 100 | AL68: 100 | AM68: 100
AB69: 120 | AC69: 4 | AD69: 1204 | AE69: 38 | AF69: 76 | AG69: 96 | AH69: 100 | AI69: 100 | AJ69: 100 | AK69: 100 | AL69: 100 | AM69: 100
AB70: 300 | AC70: 4 | AD70: 3004 | AE70: 39 | AF70: 77 | AG70: 96 | AH70: 100 | AI70: 100 | AJ70: 100 | AK70: 100 | AL70: 100 | AM70: 100
AB71: 1 | AC71: 5 | AD71: 15 | AE71: 8 | AF71: 10 | AG71: 12 | AH71: 15 | AI71: 18 | AJ71: 20 | AK71: 23 | AL71: 26 | AM71: 29
AB72: 2 | AC72: 5 | AD72: 25 | AE72: 11 | AF72: 17 | AG72: 26 | AH72: 35 | AI72: 45 | AJ72: 55 | AK72: 64 | AL72: 72 | AM72: 79
AB73: 3 | AC73: 5 | AD73: 35 | AE73: 14 | AF73: 25 | AG73: 40 | AH73: 56 | AI73: 71 | AJ73: 83 | AK73: 91 | AL73: 95 | AM73: 98
AB74: 4 | AC74: 5 | AD74: 45 | AE74: 17 | AF74: 32 | AG74: 53 | AH74: 72 | AI74: 86 | AJ74: 94 | AK74: 98 | AL74: 99 | AM74: 100
AB75: 5 | AC75: 5 | AD75: 55 | AE75: 19 | AF75: 39 | AG75: 62 | AH75: 82 | AI75: 93 | AJ75: 98 | AK75: 100 | AL75: 100 | AM75: 100
AB76: 6 | AC76: 5 | AD76: 65 | AE76: 21 | AF76: 44 | AG76: 70 | AH76: 88 | AI76: 97 | AJ76: 99 | AK76: 100 | AL76: 100 | AM76: 100
AB77: 7 | AC77: 5 | AD77: 75 | AE77: 23 | AF77: 48 | AG77: 75 | AH77: 92 | AI77: 98 | AJ77: 100 | AK77: 100 | AL77: 100 | AM77: 100
AB78: 8 | AC78: 5 | AD78: 85 | AE78: 24 | AF78: 52 | AG78: 79 | AH78: 94 | AI78: 99 | AJ78: 100 | AK78: 100 | AL78: 100 | AM78: 100
AB79: 9 | AC79: 5 | AD79: 95 | AE79: 26 | AF79: 55 | AG79: 82 | AH79: 96 | AI79: 99 | AJ79: 100 | AK79: 100 | AL79: 100 | AM79: 100
AB80: 10 | AC80: 5 | AD80: 105 | AE80: 27 | AF80: 57 | AG80: 84 | AH80: 97 | AI80: 100 | AJ80: 100 | AK80: 100 | AL80: 100 | AM80: 100
AB81: 12 | AC81: 5 | AD81: 125 | AE81: 29 | AF81: 61 | AG81: 88 | AH81: 98 | AI81: 100 | AJ81: 100 | AK81: 100 | AL81: 100 | AM81: 100
AB82: 14 | AC82: 5 | AD82: 145 | AE82: 30 | AF82: 64 | AG82: 90 | AH82: 99 | AI82: 100 | AJ82: 100 | AK82: 100 | AL82: 100 | AM82: 100
AB83: 16 | AC83: 5 | AD83: 165 | AE83: 32 | AF83: 66 | AG83: 91 | AH83: 99 | AI83: 100 | AJ83: 100 | AK83: 100 | AL83: 100 | AM83: 100
AB84: 18 | AC84: 5 | AD84: 185 | AE84: 33 | AF84: 68 | AG84: 92 | AH84: 99 | AI84: 100 | AJ84: 100 | AK84: 100 | AL84: 100 | AM84: 100
AB85: 20 | AC85: 5 | AD85: 205 | AE85: 34 | AF85: 70 | AG85: 93 | AH85: 99 | AI85: 100 | AJ85: 100 | AK85: 100 | AL85: 100 | AM85: 100
AB86: 22 | AC86: 5 | AD86: 225 | AE86: 34 | AF86: 71 | AG86: 94 | AH86: 100 | AI86: 100 | AJ86: 100 | AK86: 100 | AL86: 100 | AM86: 100
AB87: 24 | AC87: 5 | AD87: 245 | AE87: 35 | AF87: 72 | AG87: 94 | AH87: 100 | AI87: 100 | AJ87: 100 | AK87: 100 | AL87: 100 | AM87: 100
AB88: 26 | AC88: 5 | AD88: 265 | AE88: 36 | AF88: 73 | AG88: 95 | AH88: 100 | AI88: 100 | AJ88: 100 | AK88: 100 | AL88: 100 | AM88: 100
AB89: 28 | AC89: 5 | AD89: 285 | AE89: 36 | AF89: 73 | AG89: 95 | AH89: 100 | AI89: 100 | AJ89: 100 | AK89: 100 | AL89: 100 | AM89: 100
AB90: 30 | AC90: 5 | AD90: 305 | AE90: 36 | AF90: 74 | AG90: 95 | AH90: 100 | AI90: 100 | AJ90: 100 | AK90: 100 | AL90: 100 | AM90: 100
AB91: 60 | AC91: 5 | AD91: 605 | AE91: 40 | AF91: 78 | AG91: 97 | AH91: 100 | AI91: 100 | AJ91: 100 | AK91: 100 | AL91: 100 | AM91: 100
AB92: 120 | AC92: 5 | AD92: 1205 | AE92: 41 | AF92: 80 | AG92: 97 | AH92: 100 | AI92: 100 | AJ92: 100 | AK92: 100 | AL92: 100 | AM92: 100
AB93: 300 | AC93: 5 | AD93: 3005 | AE93: 43 | AF93: 82 | AG93: 98 | AH93: 100 | AI93: 100 | AJ93: 100 | AK93: 100 | AL93: 100 | AM93: 100
AB94: 1 | AC94: 6 | AD94: 16 | AE94: 7 | AF94: 10 | AG94: 12 | AH94: 18 | AI94: 17 | AJ94: 20 | AK94: 23 | AL94: 25 | AM94: 28
AB95: 2 | AC95: 6 | AD95: 26 | AE95: 10 | AF95: 17 | AG95: 25 | AH95: 34 | AI95: 44 | AJ95: 54 | AK95: 63 | AL95: 71 | AM95: 78
AB96: 3 | AC96: 6 | AD96: 36 | AE96: 14 | AF96: 25 | AG96: 40 | AH96: 56 | AI96: 71 | AJ96: 82 | AK96: 90 | AL96: 95 | AM96: 98
AB97: 4 | AC97: 6 | AD97: 46 | AE97: 16 | AF97: 32 | AG97: 53 | AH97: 72 | AI97: 86 | AJ97: 94 | AK97: 98 | AL97: 99 | AM97: 100
AB98: 5 | AC98: 6 | AD98: 56 | AE98: 19 | AF98: 39 | AG98: 63 | AH98: 82 | AI98: 94 | AJ98: 98 | AK98: 100 | AL98: 100 | AM98: 100
AB99: 6 | AC99: 6 | AD99: 66 | AE99: 21 | AF99: 44 | AG99: 70 | AH99: 89 | AI99: 97 | AJ99: 99 | AK99: 100 | AL99: 100 | AM99: 100
AB100: 7 | AC100: 6 | AD100: 76 | AE100: 23 | AF100: 49 | AG100: 76 | AH100: 93 | AI100: 98 | AJ100: 100 | AK100: 100 | AL100: 100 | AM100: 100
AB101: 8 | AC101: 6 | AD101: 86 | AE101: 25 | AF101: 53 | AG101: 80 | AH101: 95 | AI101: 100 | AJ101: 100 | AK101: 100 | AL101: 100 | AM101: 100
AB102: 9 | AC102: 6 | AD102: 96 | AE102: 26 | AF102: 56 | AG102: 83 | AH102: 96 | AI102: 100 | AJ102: 100 | AK102: 100 | AL102: 100 | AM102: 100
AB103: 10 | AC103: 6 | AD103: 106 | AE103: 28 | AF103: 59 | AG103: 86 | AH103: 97 | AI103: 100 | AJ103: 100 | AK103: 100 | AL103: 100 | AM103: 100
AB104: 12 | AC104: 6 | AD104: 126 | AE104: 30 | AF104: 63 | AG104: 89 | AH104: 98 | AI104: 100 | AJ104: 100 | AK104: 100 | AL104: 100 | AM104: 100
AB105: 14 | AC105: 6 | AD105: 146 | AE105: 32 | AF105: 66 | AG105: 91 | AH105: 99 | AI105: 100 | AJ105: 100 | AK105: 100 | AL105: 100 | AM105: 100
AB106: 16 | AC106: 6 | AD106: 166 | AE106: 33 | AF106: 69 | AG106: 93 | AH106: 99 | AI106: 100 | AJ106: 100 | AK106: 100 | AL106: 100 | AM106: 100
AB107: 18 | AC107: 6 | AD107: 186 | AE107: 34 | AF107: 71 | AG107: 94 | AH107: 99 | AI107: 100 | AJ107: 100 | AK107: 100 | AL107: 100 | AM107: 100
AB108: 20 | AC108: 6 | AD108: 206 | AE108: 35 | AF108: 73 | AG108: 95 | AH108: 100 | AI108: 100 | AJ108: 100 | AK108: 100 | AL108: 100 | AM108: 100
AB109: 22 | AC109: 6 | AD109: 226 | AE109: 36 | AF109: 74 | AG109: 95 | AH109: 100 | AI109: 100 | AJ109: 100 | AK109: 100 | AL109: 100 | AM109: 100
AB110: 24 | AC110: 6 | AD110: 246 | AE110: 37 | AF110: 75 | AG110: 96 | AH110: 100 | AI110: 100 | AJ110: 100 | AK110: 100 | AL110: 100 | AM110: 100
AB111: 26 | AC111: 6 | AD111: 266 | AE111: 37 | AF111: 76 | AG111: 96 | AH111: 100 | AI111: 100 | AJ111: 100 | AK111: 100 | AL111: 100 | AM111: 100
AB112: 28 | AC112: 6 | AD112: 286 | AE112: 38 | AF112: 77 | AG112: 96 | AH112: 100 | AI112: 100 | AJ112: 100 | AK112: 100 | AL112: 100 | AM112: 100
AB113: 30 | AC113: 6 | AD113: 306 | AE113: 39 | AF113: 77 | AG113: 97 | AH113: 100 | AI113: 100 | AJ113: 100 | AK113: 100 | AL113: 100 | AM113: 100
AB114: 60 | AC114: 6 | AD114: 606 | AE114: 42 | AF114: 82 | AG114: 98 | AH114: 100 | AI114: 100 | AJ114: 100 | AK114: 100 | AL114: 100 | AM114: 100
AB115: 120 | AC115: 6 | AD115: 1206 | AE115: 45 | AF115: 84 | AG115: 99 | AH115: 100 | AI115: 100 | AJ115: 100 | AK115: 100 | AL115: 100 | AM115: 100
AB116: 300 | AC116: 6 | AD116: 3006 | AE116: 47 | AF116: 86 | AG116: 99 | AH116: 100 | AI116: 100 | AJ116: 100 | AK116: 100 | AL116: 100 | AM116: 100

Sheet ICC

Sheet SST
A1: =AVERAGE(trust!B2:G81)/100 -> 0.7261777695 | B1: =residual!B3 -> -0.02098866955 | C1: =residual!C3 -> 0.03141211654 | D1: =SUM(A2:A76) -> 0 | E1: =residual!E3 -> -0.02667310086 | F1: =AVERAGE(trust!B2:Z76)/100 -> 0.7284358885 | G1: =SUM(A2:A76) -> 0 | H1: =residual!H3 -> 0 | I1: TSE | J1: SST | K1: Regress
B2: -0.004337110159 | C2: 0.149783769 | D2: -0.01463930796 | E2: 0.02141838435 | F2: 0.007796589475 | G2: -0.0228810662
B3: 0.08409008764 | C3: 0.1613222305 | D3: 0.0785097305 | E3: 0.0667909805 | F3: 0.01340556383 | G3: -0.01189205521
B4: -0.02082062664 | C4: 0.0863222305 | D4: -0.0730527695 | E4: -0.1199277695 | F4: -0.1220111028 | G4: -0.02082062664
B5: -0.1432696062 | C5: 0.07560794479 | D5: -0.2886777695 | E5: -0.08778491236 | F5: -0.1577253885 | G5: -0.0705655246
B6: -0.0761777695 | C6: 0.0913222305 | D6: -0.1574277695 | E6: -0.1074277695 | F6: -0.09284443617 | G6: -0.02439205521
B7: -0.07821858583 | C7: 0.005140911819 | D7: -0.1022079893 | E7: -0.1078741981 | F7: -0.08698363031 | G7: -0.05938028127
B8: -0.01163695317 | C8: 0.1613222305 | D8: -0.02751705521 | E8: 0.03676865907 | F8: -0.02796348379 | G8: 0.01208753662
B9: -0.110744096 | C9: 0.06221508764 | D9: -0.09615544807 | E9: -0.08611080521 | F9: -0.1086182457 | G9: -0.02273389195
B10: -0.07206286267 | C10: 0.1140396218 | D10: -0.1439766825 | E10: -0.09913972602 | F10: 0.0247280276 | G10: 0.002471298823
B11: 0.1202508019 | C11: 0.1138222305 | D11: 0.0800722305 | E11: 0.0363222305 | F11: -0.07478888061 | G11: -0.0386777695
B12: -0.02082062664 | C12: 0.0863222305 | D12: -0.1011777695 | E12: -0.1011777695 | F12: -0.3303444362 | G12: -0.1279634838
B13: -0.03185003841 | C13: 0.1194104658 | D13: -0.0543027695 | E13: -0.03224394597 | F13: -0.08156992636 | G13: -0.03657692916
B14: -0.1011777695 | C14: 0.1496034805 | D14: -0.104107457 | E14: -0.0718808945 | F14: -0.04909443617 | G14: 0.01098740907
B15: 0.06097882391 | C15: 0.05805299973 | D15: 0.03656261512 | E15: 0.05531261512 | F15: -0.09685084642 | G15: -0.08716678049
B16: 0.09145140983 | C16: 0.04722648582 | D16: 0.06637542199 | E16: 0.0783435071 | F16: -0.1446174858 | G16: -0.1501899276
B17: 0.0385737833 | C17: 0.01295266528 | D17: 0.03333310007 | E17: 0.0577896218 | F17: -0.2107792188 | G17: -0.1442678316
B18: 0.1509230708 | C18: 0.1304398776 | D18: 0.1001089952 | E18: 0.08356487756 | F18: -0.1759326715 | G18: -0.110631551
B19: 0.1449956999 | C19: 0.1568579448 | D19: 0.1499383019 | E19: 0.1454740162 | F19: -0.08381665839 | G19: -0.1069175654
B20: 0.07469824128 | C20: 0.007076947481 | D20: 0.03679392861 | E20: 0.0323717588 | F20: -0.1459890903 | G20: -0.136555128
B21: 0.1026037431 | C21: 0.02455752462 | D21: 0.04863840697 | E21: 0.05782958344 | F21: -0.1808346322 | G21: -0.1684046603
B22: 0.1520689837 | C22: 0.1425722305 | D22: 0.1367483669 | E22: 0.1566347305 | F22: -0.1286398907 | G22: -0.107671276
B23: 0.0896189338 | C23: 0.1059376151 | D23: 0.08560107665 | E23: 0.09353376896 | F23: -0.1139982823 | G23: -0.1073590882
B24: 0.1053859371 | C24: 0.08868709537 | D24: 0.07956547374 | E24: 0.09561277104 | F24: -0.1060576494 | G24: -0.05436309769
B25: 0.1066424275 | C25: 0.1037791271 | D25: 0.08874679947 | E25: 0.09763688567 | F25: -0.1353013327 | G25: -0.1455127449
B26: 0.064436342 | C26: 0.04333442562 | D26: 0.06345637684 | E26: 0.07774753538 | F26: -0.1469094768 | G26: -0.08811156741
B27: -0.1334781897 | C27: -0.01404541656 | D27: -0.09152703421 | E27: -0.09290571068 | F27: -0.1152709068 | G27: 0.01226760865
B28: 0.0785097305 | C28: 0.0331972305 | D28: 0.0531191055 | E28: 0.0062441055 | F28: -0.1888513806 | G28: -0.08443669807
B29: 0.08678806901 | C29: 0.0690396218 | D29: 0.08469179572 | E29: 0.09692005659 | F29: -0.1480980594 | G29: -0.07276162043
B30: 0.1265008019 | C30: 0.0816347305 | D30: 0.1429628555 | E30: 0.1664003555 | F30: -0.1298236028 | G30: -0.09671348379
B31: 0.09971508764 | C31: 0.02325404868 | D31: 0.07353813959 | E31: 0.09058359414 | F31: -0.1163292847 | G31: -0.08413231495
B32: 0.01025080193 | C32: 0.0098222305 | D32: -0.0018027695 | E32: 0.0188222305 | F32: -0.1678444362 | G32: -0.09796348379
B33: 0.1277183344 | C33: 0.1715495032 | D33: 0.150242685 | E33: 0.150242685 | F33: -0.05572322405 | G33: -0.07439205521
B34: 0.1088465811 | C34: 0.1562085941 | D34: 0.1310665487 | E34: 0.1449159805 | F34: -0.04625352708 | G34: -0.04030114612
B35: 0.09812610459 | C35: 0.0895001966 | D35: 0.09585612881 | E35: 0.09665062033 | F35: -0.1552031932 | G35: -0.09618382277
B36: 0.1288642473 | C36: 0.1502928187 | D36: 0.1028663481 | E36: 0.1166531129 | F36: -0.1220111028 | G36: -0.06021138295
B37: 0.06623294479 | C37: 0.0581972305 | D37: 0.0628847305 | E37: 0.0335878555 | F37: -0.1011777695 | G37: -0.1078741981
B38: -0.1333206266 | C38: 0.0938222305 | D38: -0.2418027695 | E38: -0.1855527695 | F38: -0.0761777695 | G38: -0.03689205521
B39: -0.2797491981 | C39: -0.0886777695 | D39: -0.2886777695 | E39: -0.0386777695 | F39: -0.1081222139 | G39: 0.005965087643
B40: -0.1179188409 | C40: 0.0253847305 | D40: -0.1832090195 | E40: -0.1187558945 | F40: -0.09076110283 | G40: -0.06769562664
B41: 0.0845941199 | C41: 0.07664481115 | D41: 0.05154400469 | E41: 0.05910448856 | F41: -0.06959174799 | G41: -0.08562477411
B42: 0.0871862858 | C42: 0.08450771437 | D42: 0.08707827889 | E42: 0.0802738434 | F42: -0.02792508133 | G42: -0.06186325337
B43: 0.003601642265 | C43: -0.02948659303 | D43: -0.03844799009 | E43: -0.03224394597 | F43: -0.1348787499 | G43: -0.1224487779
B44: 0.02235164226 | C44: 0.01661634815 | D44: -0.01404541656 | E44: -0.02342041656 | F44: -0.1097562009 | G44: -0.1330055006
B45: 0.05953651621 | C45: 0.0563222305 | D45: -0.0355527695 | E45: 0.0066347305 | F45: -0.1574277695 | G45: -0.1574277695
B46: 0.1532865162 | C46: 0.0563222305 | D46: 0.1003847305 | E46: 0.1144472305 | F46: -0.06576110283 | G46: 0.0006079447859
B47: 0.005965087643 | C47: 0.02574530742 | D47: -0.05069700027 | E47: -0.03627392335 | F47: -0.08354956437 | G47: -0.04348546181
B48: 0.04040386315 | C48: 0.02739365907 | D48: 0.07292937336 | E48: 0.04614365907 | F48: -0.02379681712 | G48: -0.03612674909
B49: 0.09167937336 | C49: 0.0094472305 | D49: 0.0769472305 | E49: 0.0605409805 | F49: -0.09596943617 | G49: -0.05564205521
B50: 0.05693234955 | C50: 0.0488222305 | D50: 0.0218691055 | E50: 0.0433534805 | F50: -0.07947638061 | G50: -0.09671348379
B51: 0.1398936591 | C51: 0.0113222305 | D51: 0.1331972305 | E51: 0.1331972305 | F51: -0.1011777695 | G51: -0.1011777695
B52: -0.0543027695 | C52: -0.0449277695 | D52: -0.0074277695 | E52: -0.0015683945 | F52: -0.1402402695 | G52: -0.1647938409
B53: 0.1488222305 | C53: 0.1113222305 | D53: 0.0550722305 | E53: 0.1175722305 | F53: -0.1011777695 | G53: -0.1368920552
B54: 0.04614365907 | C54: -0.0543027695 | D54: -0.0308652695 | E54: 0.0394472305 | F54: -0.09596943617 | G54: -0.04090991236
B55: 0.005965087643 | C55: -0.0511777695 | D55: -0.0855527695 | E55: -0.0855527695 | F55: -0.1497888806 | G55: -0.2083206266
B56: -0.0007313409284 | C56: -0.0636777695 | D56: 0.0511659805 | E56: 0.0042909805 | F56: -0.1897194362 | G56: -0.08778491236
B57: 0.1934650876 | C57: 0.1613222305 | D57: 0.1800722305 | E57: 0.1331972305 | F57: -0.05951110283 | G57: -0.1011777695
B58: 0.06221508764 | C58: 0.0750722305 | D58: 0.0464784805 | E58: 0.0253847305 | F58: -0.07826110283 | G58: -0.07573134093
B59: 0.1228482045 | C59: 0.1613222305 | D59: 0.1289358669 | E59: 0.150242685 | F59: 0.004882836561 | G59: -0.1742297176
B60: 0.03275080193 | C60: 0.2738222305 | D60: 0.0863222305 | E60: -0.1949277695 | F60: 0.1071555638 | G60: 0.005965087643
B61: 0.1800722305 | C61: 0.1885949578 | D61: 0.1758108669 | E61: 0.186464276 | F61: 0.1147313214 | G61: -0.05491153573
B62: 0.1309650876 | C62: 0.1488222305 | D62: 0.1175722305 | E62: 0.1019472305 | F62: 0.01687778606 | G62: -0.1279634838
B63: -0.2083206266 | C63: -0.2136777695 | D63: -0.5230527695 | E63: -0.1949277695 | F63: -0.1220111028 | G63: -0.1815349124
B64: 0.02892427132 | C64: 0.01935794479 | D64: -0.03421348379 | E64: -0.07104384093 | F64: -0.09820157902 | G64: -0.07630532052
B65: 0.2470365162 | C65: 0.2738222305 | D65: 0.2738222305 | E65: 0.2738222305 | F65: 0.002988897167 | G65: -0.04760634093
B66: 0.09596508764 | C66: 0.1403222305 | D66: 0.1238222305 | E66: 0.0956972305 | F66: 0.02965556383 | G66: -0.05296348379
B67: 0.237800063 | C67: 0.249253265 | D67: 0.2334127477 | E67: 0.2463437822 | F67: 0.1847417707 | G67: -0.04021717837
B68: 0.1265008019 | C68: 0.0839784805 | D68: 0.077533168 | E68: 0.136126918 | F68: -0.1050840195 | G68: -0.07439205521
B69: 0.09134455193 | C69: 0.0956972305 | D69: 0.024798793 | E69: 0.059955043 | F69: -0.0582090195 | G69: -0.1949277695
B70: 0.04736119154 | C70: 0.02325404868 | D70: 0.003225639591 | E70: 0.05649268505 | F70: -0.1712535271 | G70: -0.120658289
B71: -0.04939205521 | C71: -0.0886777695 | D71: -0.0933652695 | E71: -0.0933652695 | F71: -0.1921499917 | G71: -0.1351063409
B72: 0.06527631213 | C72: -0.0074277695 | D72: 0.02940258764 | E72: 0.02940258764 | F72: -0.06843967426 | G72: -0.110744096
B73: 0.06156573699 | C73: 0.08064041232 | D73: 0.06501541232 | E73: 0.04796995777 | F73: -0.05414494122 | G73: -0.03461932794
B74: 0.1647661081 | C74: 0.1961436591 | D74: 0.1800722305 | E74: 0.1331972305 | F74: -0.04909443617 | G74: -0.0380400144
B75: 0.07426865907 | C75: 0.0975722305 | D75: 0.0300722305 | E75: 0.0417909805 | F75: -0.0855527695 | G75: -0.05229384093
B76: 0.1907865162 | C76: 0.2000722305 | D76: 0.1863222305 | E76: 0.1785097305 | F76: -0.03589999172 | G76: -0.1368920552
B77: 0.1204131396 | C77: 0.1613222305 | D77: 0.08206086686 | E77: 0.03092450323 | F77: -0.1693595877 | G77: -0.05004140586
B78: 0.05358413526 | C78: 0.04048889717 | D78: 0.01861389717 | E78: 0.04465556383 | F78: -0.1914555473 | G78: -0.10415396
B79: -0.3020706266 | C79: 0.2550722305 | D79: -0.0543027695 | E79: -0.1246152695 | F79: -0.2053444362 | G79: -0.1279634838
B80: -0.09224919807 | C80: -0.0574277695 | D80: -0.1558652695 | E80: -0.2105527695 | F80: -0.1879833251 | G80: -0.08778491236
B81: 0.1365454448 | C81: 0.1566347305 | D81: 0.1039003555 | E81: 0.0804628555 | F81: -0.07513610283 | G81: -0.1045259838

Sheet output_w
C2: <Person Item:Infit MNSQ .5 1.0 1.5 2.0 2.5
CG3: Sig.
A4: 3.3 | CE4: 0 | CF4: 0
A5: 3.1 | CE5: 0 | CF5: 0
A6: 2.9 | CE6: 0 | CF6: 0
A7: 2.7 | CE7: 0 | CF7: 0
A8: 2.5 | CE8: 0 | CF8: 0
A9: 2.3 | CE9: 1 | CF9: 0
A10: 2.1 | CE10: 1 | CF10: 0
A11: 1.9 | CE11: 0 | CF11: 0
A12: 1.7 | CE12: 1 | CF12: 0
A13: 1.5 | CE13: 2 | CF13: 0
A14: 1.3 | CE14: 10 | CF14: 0
A15: 1.1 | CE15: 21 | CF15: 0
A16: 0.9 | CE16: 14 | CF16: 0
A17: 0.7 | CE17: 17 | CF17: 0
A18: 0.5 | CE18: 8 | CF18: 0
A19: 0.3 | AV19: 5 | AW19: 6 | CE19: 4 | CF19: 2
A20: 0.1 | CE20: 0 | CF20: 0
A21: -0.1 | AV21: 3 | CE21: 1 | CF21: 1
A22: -0.3 | AV22: 4 | AW22: 1 | CE22: 0 | CF22: 2
A23: -0.5 | AV23: 2 | CE23: 0 | CF23: 1
AC24: Each # eqauls to 1 case ( * stands for Infit MNSQ > 2.5) | CE24: =SUM(CE4:CE23) -> 80 | CF24: =SUM(CF4:CF23) -> 6
